Workbook

Sheet search
A1: القسم | H1: عدد السجلات الموجودة | J1: =COUNT(B6:B5000) -> 0
A5: الاسم | B5: رقم الايصال | C5: التاريخ | D5: مختلفة | E5: تسليف | F5: رسم سنوي | G5: خدمات | H5: مجموع | I5: نوع الايصال | J5: القسم | K5: الصفحة | M5: محاسبة
M6: ادارة مشروعات | N6: البرنامج | O6: ادارة مشروعات | P6: محاسبة | Q6: ترجمة | R6: اعلام | S6: رياض اطفال | T6: دراسات قانونية | U6: دبلوم تأهيل تربوي | V6: معلم صف | W6: دبلوماسية
M7: ترجمة | N7: استكمال رسوم
M8: اعلام | N8: براءة ذمة
M9: رياض اطفال | N9: اعتراض
M10: معلم صف | N10: كشف (1)
M11: دراسات قانونية | N11: كشف (6)
M12: دبلوماسية | N12: بدل ضائع مصدقة (1)
M13: دبلوم تأهيل تربوي | N13: بدل ضائع مصدقة (2)
N14: بدل تالف مصدقة
N15: مصدقة تخرج بديلة
N16: رسم شهادة
N17: بدل ضائع شهادة
N18: بدل تالف شهادة
N19: بدل ضائع بطاقة
N20: رسم اختبار ماجستير
N21: رسم تسجيل
N22: المجموع
N23: المجموع النهائي
N26: نوع الايصال | O26: العدد | P26: المجموع | Q26: نوع الايصال | R26: العدد | S26: المجموع
N27: استكمال رسوم | Q27: رسم شهادة
N28: اعتراض | Q28: كشف (1)
N29: بدل تالف شهادة | Q29: كشف (6)
N30: بدل تالف مصدقة | Q30: مصدقة تخرج بديلة
N31: بدل ضائع بطاقة | Q31: براءة ذمة
N32: بدل ضائع شهادة | Q32: رسم اختبار ماجستير
N33: بدل ضائع مصدقة (1) | Q33: رسم تسجيل

Sheet mine
A1: رقم الايصال | B1: التاريخ | C1: القسم | D1: نوع الخدمة | E1: قيمة الدفع | I1: القسم | K1: النوع | L1: التوصيف | M1: القيمة | N1: مختلفة | O1: تسليف | P1: رسم سنوي | Q1: خدمات | R1: مجموع | W1: 202399 | X1: ابراهيم عباس
A2: 4755 | B2: 2020-02-03 | I2: محاسبة | K2: استكمال رسوم | L2: خدمات | N2: 20000 | O2: 600 | P2: 4800 | Q2: 5700 | R2: 31100 | W2: 202401 | X2: ابراهيم محمد
I3: ادارة مشروعات | K3: براءة ذمة | L3: خدمات | W3: 202696 | X3: اسامه حصوه
I4: ترجمة | K4: اعتراض | L4: خدمات | M4: 1000 | N4: عدد الايصالات المسددة و المتبقية | W4: 202706 | X4: اسد الفرحان
I5: اعلام | K5: كشف (1) | L5: مختلفة | M5: 5000 | N5: مسدد | P5: 19 | Q5: متبقي | T5: 26 | W5: 202788 | X5: المعتصم الفياض
I6: رياض اطفال | K6: كشف (6) | L6: مختلفة | M6: 5000 | N6: اســتــعــلام و تــعــديــل | W6: 203118 | X6: أنس المقداد
I7: معلم صف | K7: بدل ضائع بطاقة | L7: مختلفة | M7: 10000 | W7: 203574 | X7: حسام النجم
I8: دراسات قانونية | K8: رسم شهادة | L8: مختلفة | M8: 200 | N8: التاريخ | O8: مختلفة | P8: تسليف | Q8: رسم سنوي | R8: خدمات | S8: مجموع | T8: النوع | U8: القسم | W8: 203684 | X8: حسين حسن
I9: دبلوماسية | K9: بدل ضائع شهادة | L9: مختلفة | M9: 5000 | W9: 203696 | X9: حسين عفوف
A10: استكمال رسوم | E10: =553*2000 -> 1106000 | I10: دبلوم تأهيل تربوي | K10: بدل تالف شهادة | L10: مختلفة | M10: 2000 | W10: 203708 | X10: حكمت المحمد الحسن
B11: 610 | E11: =B12-E10 -> -18200 | K11: بدل ضائع مصدقة (1) | L11: مختلفة | M11: 5000 | W11: 203820 | X11: خالد فرج
B12: 1087800 | K12: بدل ضائع مصدقة (2) | L12: مختلفة | M12: 3000 | W12: 203853 | X12: خلدون داود
K13: بدل تالف مصدقة | L13: تسليف+ رسم سنوي | M13: 900 | W13: 204008 | X13: ديما صالح
K14: مصدقة تخرج بديلة | L14: مختلفة | M14: 5000 | N14: مجموع الصفحات الغير مسددة | P14: من الصفحة | Q14: الى الصفحة | R14: خلية المبلغ | S14: مجموع | W14: 204096 | X14: راما الصالح
C15: =B12-1093000 -> -5200 | K15: رسم اختبار ماجستير | L15: خدمات | P15: p1 | Q15: p51 | R15: h47 | S15: 4236600 | W15: 204119 | X15: رامي الحلبي
K16: رسم تسجيل | W16: 204239 | X16: ربيع البيطار
K17: اعادة ارتباط | W17: 204640 | X17: زلفى بلول
K18: مدمج | W18: 204743 | X18: سامر الشوفي
W19: 204825 | X19: سعيد دعيبس
W20: 205174 | X20: صبري الحامد
W21: 205240 | X21: طارق ابو سمره
W22: 205323 | X22: عابد خيو
W23: 205460 | X23: عبد القادر الافندي
W24: 205680 | X24: علا علي
W25: 205699 | X25: علاء الدين الفراج
W26: 205796 | X26: علي حسن
W27: 205870 | X27: عماد داود
W28: 205896 | X28: عمار خرسه
W29: 206127 | X29: فادي العبد الله
W30: 206234 | X30: فراس الحمود
W31: 206298 | X31: فرحان الحسن
W32: 206326 | X32: فهد الجاسم
W33: 206338 | X33: فواز عبد الله
W34: 206436 | X34: كمى وهبي
W35: 206575 | X35: لورين اتمت
W36: 206640 | X36: ليندا علي احمد
W37: 206810 | X37: مجد دنوره
W38: 206827 | X38: محسن الحسن
W39: 207287 | X39: محمد ماجد سلوم
W40: 207664 | X40: منال قرحيلي
W41: 207784 | X41: مي سبع
W42: 208020 | X42: نسرين الشاويش
W43: 208121 | X43: نور ابراهيم
W44: 208272 | X44: هبه جزائرلي
W45: 208296 | X45: هدى الخليل
W46: 208433 | X46: هيلدا محمود
W47: 208927 | X47: راما سلامه
W48: 208980 | X48: صفاء شيخ عيد
W49: 209049 | X49: كريم كلاس
W50: 209099 | X50: مروه درزيه
W51: 209110 | X51: مهند الملاح
W52: 209152 | X52: وئام سبرطلي
W53: 209157 | X53: وردشان الجاسم
W54: 209176 | X54: دياب اسماعيل
W55: 209178 | X55: فداء حمدان
W56: 209194 | X56: جهينة نعيم
W57: 209206 | X57: هالة العبد الله
W58: 209216 | X58: حسين السلوم
W59: 209220 | X59: ديمه معتوق
W60: 209225 | X60: ريم العمري
W61: 209238 | X61: علا عزام
W62: 209257 | X62: منير درويش
W63: 209258 | X63: مها الطحان
W64: 209264 | X64: نور العلي الحويج
W65: 209268 | X65: همام الديري
W66: 209269 | X66: يعرب مطاوع
W67: 209271 | X67: يوسف علي الشيخ
W68: 209275 | X68: مها مريدن
W69: 209277 | X69: ابراهيم برهم
W70: 209278 | X70: ايلي عيسى
W71: 209280 | X71: حسين الاشقر
W72: 209281 | X72: رانية الحاج عيسى
W73: 209283 | X73: صادق وقاص
W74: 209285 | X74: غنوه عيد
W75: 209286 | X75: فراس نعيم
W76: 209287 | X76: لانا العطاري
W77: 209288 | X77: لمى الدروبي
W78: 209290 | X78: مايا العاقل
W79: 209294 | X79: مقدام فويتي
W80: 209304 | X80: اباء موسى
W81: 209305 | X81: ابراهيم حسن
W82: 209310 | X82: احمد الحميدي
W83: 209313 | X83: احمد تنزري
W84: 209314 | X84: احمد جمعه
W85: 209315 | X85: احمد رسلان
W86: 209324 | X86: اغيد حبابه
W87: 209326 | X87: اكثم ابو فخر
W88: 209327 | X88: اكرام قبلان
W89: 209330 | X89: الاء مجركش
W90: 209334 | X90: امجد ابراهيم
W91: 209336 | X91: اناس علاء الدين
W92: 209337 | X92: انجي سعد الدين
W93: 209339 | X93: انس الخطيب
W94: 209340 | X94: انس الرحال
W95: 209342 | X95: انس دويري
W96: 209343 | X96: انس نصر
W97: 209345 | X97: ايمار العلي الطوير
W98: 209349 | X98: باسل خيو
W99: 209351 | X99: بتول زينه
W100: 209356 | X100: بهاء الشعباني
W101: 209358 | X101: ثائر خيت
W102: 209359 | X102: ثبين خير بك
W103: 209366 | X103: جيني شليل
W104: 209368 | X104: حازم كليب
W105: 209370 | X105: حسان حبوباتي
W106: 209374 | X106: حمزه الزعبي
W107: 209375 | X107: حمزه حسين الغازي
W108: 209376 | X108: حنين السنيح
W109: 209379 | X109: حيدر مستل
W110: 209382 | X110: خالد عبد الواحد
W111: 209384 | X111: خلود الجيرودي
W112: 209386 | X112: خليل خليل
W113: 209387 | X113: خولة الشلق
W114: 209389 | X114: دارين حسين
W115: 209390 | X115: داني الحسين
W116: 209391 | X116: دريد علي
W117: 209392 | X117: دعاء شيخ الارض
W118: 209393 | X118: دعاء مراد
W119: 209395 | X119: ديالا العظم
W120: 209397 | X120: ديرين عزام
W121: 209398 | X121: ديما باره
W122: 209400 | X122: ذياب الزعبي
W123: 209401 | X123: راغب السليمان
W124: 209404 | X124: راما صدقي
W125: 209405 | X125: رامه خضر صهيوني
W126: 209406 | X126: رامي حسن
W127: 209409 | X127: ربى زين الدين
W128: 209411 | X128: رزان صالح
W129: 209412 | X129: رشا بربر
W130: 209413 | X130: رغد العاقل
W131: 209414 | X131: رفاه شيخ الجبل
W132: 209416 | X132: رنيم معصب
W133: 209417 | X133: رهام احمد
W134: 209422 | X134: روان الشامي
W135: 209423 | X135: رولا ديب
W136: 209427 | X136: ريم يعقوب
W137: 209428 | X137: زها الخير
W138: 209431 | X138: زينه رزق
W139: 209433 | X139: ساره ناصر
W140: 209435 | X140: سامر الحجي
W141: 209436 | X141: سامر الخطيب
W142: 209440 | X142: سربست كلش
W143: 209443 | X143: سلام الحمصي
W144: 209444 | X144: سلام الكسيري
W145: 209448 | X145: سمعان مخائيل
W146: 209453 | X146: سوزان ذياب
W147: 209454 | X147: سوسن عز الدين العقباني
W148: 209455 | X148: شادي طرابيشي
W149: 209459 | X149: شيخه عمر
W150: 209461 | X150: صفاء الجبان
W151: 209462 | X151: صفوان كوسه
W152: 209467 | X152: طارق دواليبي
W153: 209468 | X153: طالب عباس
W154: 209473 | X154: عاكف علي
W155: 209476 | X155: عبد الرحمن التاجر
W156: 209478 | X156: عبد الرحيم الشربجي
W157: 209479 | X157: عبد العزيز حاج درويش
W158: 209480 | X158: عبد الغني الحلاق
W159: 209481 | X159: عبد اللطيف مزكتلي
W160: 209482 | X160: عبد الله الجباوي
W161: 209483 | X161: عبد الله الخليف
W162: 209484 | X162: عبد الله السيد مطر
W163: 209485 | X163: عبد الله المرزوقي
W164: 209492 | X164: علاء الجوهري
W165: 209495 | X165: علاء ملوك
W166: 209496 | X166: علي شريقه
W167: 209498 | X167: عمار رضوان
W168: 209500 | X168: عمرو هاجر العمري
W169: 209502 | X169: غادة ابو الهيجاء
W170: 209506 | X170: غسان يوسف
W171: 209509 | X171: غنوه ليشو
W172: 209510 | X172: غيا كنعان
W173: 209511 | X173: غياث قباقيبي
W174: 209512 | X174: غيداء الرافعي
W175: 209513 | X175: غيداء العودات
W176: 209516 | X176: فدوى الكلاس
W177: 209518 | X177: قاسم حمد
W178: 209519 | X178: قصي الفلاح
W179: 209522 | X179: كنانه الحمود
W180: 209525 | X180: كيناز بركل
W181: 209528 | X181: لبانه شروف
W182: 209529 | X182: لجين سليمان
W183: 209530 | X183: لما ايوب
W184: 209531 | X184: لمى الناصر
W185: 209532 | X185: لميس المصري
W186: 209537 | X186: ليسار ريا
W187: 209539 | X187: ليلى رمضان
W188: 209545 | X188: مالك البرغوث
W189: 209546 | X189: ماهر الاطرش
W190: 209548 | X190: مايا الخوري
W191: 209551 | X191: مجد المشكاوي
W192: 209552 | X192: مجد لايقه
W193: 209553 | X193: محسن ديوب
W194: 209555 | X194: محمد السلو
W195: 209556 | X195: محمد الشحاده
W196: 209557 | X196: محمد الشيخ عبيد
W197: 209561 | X197: محمد امين
W198: 209562 | X198: محمد باسل ايوبي
W199: 209569 | X199: محمد خالد المحاميد
W200: 209570 | X200: محمد خضور
... 2050 more rows

Sheet p (hidden)
A1: الاسم | B1: رقم ايصال | C1: تاريخ | D1: مختلفة | E1: تسليف | F1: رسم سنوي | G1: خدمات | H1: مجموع | I1: النوع | J1: القسم | K1: mine!A1
D47: =SUM(D2:D46) -> 0 | E47: =SUM(E2:E46) -> 0 | F47: 0 | G47: 0 | H47: 0

Sheet p1
A1: الاسم | B1: رقم ايصال | C1: تاريخ | D1: مختلفة | E1: تسليف | F1: رسم سنوي | G1: خدمات | H1: مجموع | I1: النوع | J1: القسم
B2: 2441 | C2: 2019-06-12 | E2: 100 | F2: 800 | H2: 900 | I2: رسم تسجيل | J2: محاسبة
A3: سامي قباني | B3: 2442 | C3: 2019-06-12 | E3: 100 | F3: 800 | G3: 1000 | H3: 1900 | I3: استكمال رسوم | J3: اعلام
B4: 2443 | C4: 2019-06-12 | E4: 100 | F4: 800 | H4: 900 | I4: رسم تسجيل | J4: محاسبة | L4: استكمال رسوم
B5: 2444 | C5: 2019-06-12 | G5: 2500 | H5: 2500 | I5: استكمال رسوم | J5: ترجمة
A6: سحر الجرمقاني | B6: 2445 | C6: 2019-06-12 | E6: 100 | F6: 800 | G6: 1000 | H6: 1900 | I6: استكمال رسوم | J6: اعلام | M6: =COUNTIF(I2:I46,mine!A10) -> 23 | N6: =COUNTIFS(I2:I46,L4) -> 23
B7: 2446 | C7: 2019-06-12 | E7: 100 | F7: 800 | H7: 900 | I7: رسم تسجيل | J7: محاسبة | L7: =SUMIFS(H2:H46,I2:I46,L4) -> 42300
B8: 2447 | C8: 2019-06-13 | E8: 100 | F8: 800 | H8: 900 | I8: رسم تسجيل | J8: محاسبة
A9: ديمة عبيد | B9: 2448 | C9: 2019-06-13 | E9: 100 | F9: 800 | G9: 1000 | H9: 1900 | I9: استكمال رسوم | J9: اعلام
B10: 2449 | C10: 2019-06-13 | E10: 100 | F10: 800 | H10: 900 | I10: رسم تسجيل | J10: ادارة مشروعات
B11: 2450 | C11: 2019-06-13 | E11: 100 | F11: 800 | H11: 900 | I11: رسم تسجيل | J11: ادارة مشروعات
A12: وئام ديوب | B12: 2451 | C12: 2019-06-13 | E12: 100 | F12: 800 | G12: 1000 | H12: 1900 | I12: استكمال رسوم | J12: اعلام
B13: 2452 | C13: 2019-06-13 | G13: 1000 | H13: 1000 | I13: استكمال رسوم | J13: ترجمة
B14: 2453 | C14: 2019-06-13 | E14: 100 | F14: 800 | G14: 1000 | H14: 1900 | I14: استكمال رسوم | J14: ادارة مشروعات
A15: اية تباع | B15: 2454 | C15: 2019-06-13 | D15: 200 | H15: 200 | I15: بدل ضائع بطاقة | J15: اعلام
B16: 2455 | C16: 2019-06-13 | G16: 1000 | H16: 1000 | I16: استكمال رسوم | J16: ترجمة
B17: 2456 | C17: 2019-06-13 | G17: 1000 | H17: 1000 | I17: استكمال رسوم | J17: ترجمة
B18: 2457 | C18: 2019-06-13 | D18: 200 | H18: 200 | I18: بدل ضائع بطاقة | J18: ترجمة
B19: 2458 | C19: 2019-06-13 | D19: 2000 | H19: 2000 | I19: كشف (1) | J19: محاسبة
A20: نيرمين ثلجة | B20: 2459 | C20: 2019-06-13 | E20: 100 | F20: 800 | G20: 1000 | H20: 1900 | I20: استكمال رسوم | J20: اعلام
A21: فضيله خرنوب | B21: 2460 | C21: 2019-06-13 | G21: 3500 | H21: 3500 | I21: استكمال رسوم | J21: اعلام
B22: 2461 | C22: 2019-06-13 | E22: 100 | F22: 800 | G22: 1000 | H22: 1900 | I22: استكمال رسوم | J22: محاسبة
B23: 2462 | C23: 2019-06-13 | D23: 200 | H23: 200 | I23: بدل ضائع بطاقة | J23: ترجمة
B24: 2463 | C24: 2019-06-13 | E24: 100 | F24: 800 | H24: 900 | I24: رسم تسجيل | J24: محاسبة
A25: هيام الاغا | B25: 2464 | C25: 2019-06-13 | E25: 100 | F25: 800 | G25: 1000 | H25: 1900 | I25: استكمال رسوم | J25: اعلام
B26: 2465 | C26: 2019-06-13 | E26: 100 | F26: 800 | H26: 900 | I26: رسم تسجيل | J26: محاسبة
B27: 2466 | C27: 2019-06-13 | D27: 200 | H27: 200 | I27: بدل ضائع بطاقة | J27: ادارة مشروعات
B28: 2467 | C28: 2019-06-13 | E28: 100 | F28: 800 | H28: 900 | I28: رسم تسجيل | J28: محاسبة
B29: 2468 | C29: 2019-06-13 | E29: 100 | F29: 800 | H29: 900 | I29: رسم تسجيل | J29: ادارة مشروعات
A30: ايمان شبيب | B30: 2469 | C30: 2019-06-13 | E30: 100 | F30: 800 | G30: 1000 | H30: 1900 | I30: استكمال رسوم | J30: اعلام
B31: 2470 | C31: 2019-06-13 | E31: 100 | F31: 800 | G31: 1000 | H31: 1900 | I31: استكمال رسوم | J31: ادارة مشروعات
B32: 2471 | C32: 2019-06-13 | E32: 100 | F32: 800 | H32: 900 | I32: رسم تسجيل | J32: ترجمة
B33: 2472 | C33: 2019-06-13 | E33: 100 | F33: 800 | H33: 900 | I33: رسم تسجيل | J33: محاسبة
B34: 2473 | C34: 2019-06-13 | E34: 100 | F34: 800 | H34: 900 | I34: رسم تسجيل | J34: ادارة مشروعات
B35: 2474 | C35: 2019-06-13 | E35: 100 | F35: 800 | H35: 900 | I35: رسم تسجيل | J35: ادارة مشروعات
B36: 2475 | C36: 2019-06-13 | G36: 1000 | H36: 1000 | I36: استكمال رسوم | J36: ادارة مشروعات
B37: 2476 | C37: 2019-06-13 | D37: 2000 | H37: 2000 | I37: كشف (1) | J37: محاسبة
A38: محمد وردة | B38: 2477 | C38: 2019-06-13 | E38: 100 | F38: 800 | G38: 1000 | H38: 1900 | I38: استكمال رسوم | J38: اعلام
B39: 2478 | C39: 2019-06-13 | E39: 100 | F39: 800 | G39: 1000 | H39: 1900 | I39: استكمال رسوم | J39: ترجمة
A40: ديمه نزها | B40: 2479 | C40: 2019-06-13 | E40: 100 | F40: 800 | G40: 1000 | H40: 1900 | I40: استكمال رسوم | J40: اعلام
B41: 2480 | C41: 2019-06-13 | E41: 100 | F41: 800 | G41: 1000 | H41: 1900 | I41: استكمال رسوم | J41: محاسبة
A42: حسين علي | B42: 2481 | C42: 2019-06-13 | E42: 100 | F42: 800 | G42: 1000 | H42: 1900 | I42: استكمال رسوم | J42: اعلام
A43: محي الدين عكاشه | B43: 2482 | C43: 2019-06-13 | E43: 100 | F43: 800 | G43: 1000 | H43: 1900 | I43: استكمال رسوم | J43: اعلام
A44: اسامه اسعد | B44: 2483 | C44: 2019-06-13 | E44: 100 | F44: 800 | G44: 1000 | H44: 1900 | I44: استكمال رسوم | J44: اعلام
B45: 2484 | C45: 2019-06-13 | E45: 100 | F45: 800 | H45: 900 | I45: رسم تسجيل | J45: محاسبة
B46: 2485 | C46: 2019-06-13 | D46: 200 | H46: 200 | I46: بدل ضائع بطاقة | J46: ترجمة
H47: =SUM(H2:H46) -> 60800

Sheet p2
A1: الاسم | B1: رقم ايصال | C1: تاريخ | D1: مختلفة | E1: تسليف | F1: رسم سنوي | G1: خدمات | H1: مجموع | I1: النوع | J1: القسم
B2: 2486 | C2: 2019-06-13 | G2: 1000 | H2: 1000 | I2: استكمال رسوم | J2: محاسبة
B3: 2487 | C3: 2019-06-13 | E3: 100 | F3: 800 | G3: 1000 | H3: 1900 | I3: استكمال رسوم | J3: محاسبة
B4: 2488 | C4: 2019-06-13 | E4: 100 | F4: 800 | G4: 1000 | H4: 1900 | I4: استكمال رسوم | J4: ترجمة
B5: 2489 | C5: 2019-06-13 | E5: 100 | F5: 800 | H5: 900 | I5: رسم تسجيل | J5: محاسبة
B6: 2490 | C6: 2019-06-13 | G6: 1000 | H6: 1000 | I6: استكمال رسوم | J6: ترجمة
B7: 2491 | C7: 2019-06-13 | E7: 100 | F7: 800 | H7: 900 | I7: رسم تسجيل | J7: محاسبة
B8: 2492 | C8: 2019-06-16 | D8: 200 | H8: 200 | I8: بدل ضائع بطاقة | J8: ترجمة
B9: 2493 | C9: 2019-06-16 | E9: 100 | F9: 800 | H9: 900 | I9: رسم تسجيل | J9: محاسبة
B10: 2494 | C10: 2019-06-16 | E10: 100 | F10: 800 | H10: 900 | I10: رسم تسجيل | J10: محاسبة
A11: ربيع كساب | B11: 2495 | C11: 2019-06-16 | D11: 200 | H11: 200 | I11: بدل ضائع بطاقة | J11: اعلام
B12: 2496 | C12: 2019-06-16 | G12: 1000 | H12: 1000 | I12: استكمال رسوم | J12: ترجمة
B13: 2497 | C13: 2019-06-16 | G13: 4900 | H13: 4900 | I13: استكمال رسوم | J13: محاسبة
A14: عبد الله جراده | B14: 2498 | C14: 2019-06-16 | E14: 100 | F14: 800 | G14: 1000 | H14: 1900 | I14: استكمال رسوم | J14: اعلام
B15: 2499 | C15: 2019-06-17 | E15: 100 | F15: 800 | G15: 1000 | H15: 1900 | I15: استكمال رسوم | J15: محاسبة
B16: 2500 | C16: 2019-06-17 | E16: 100 | F16: 800 | G16: 1000 | H16: 1900 | I16: استكمال رسوم | J16: ادارة مشروعات
A17: علاء الدين القابوني | B17: 2501 | C17: 2019-06-17 | G17: 1500 | H17: 1500 | I17: استكمال رسوم | J17: اعلام
B18: 2502 | C18: 2019-06-17 | E18: 100 | F18: 800 | G18: 1000 | H18: 1900 | I18: استكمال رسوم | J18: ترجمة
B19: 2503 | C19: 2019-06-17 | E19: 100 | F19: 800 | G19: 1000 | H19: 1900 | I19: استكمال رسوم | J19: ترجمة
A20: محمد السلوم | B20: 2504 | C20: 2019-06-17 | E20: 100 | F20: 800 | H20: 900 | I20: رسم تسجيل | J20: اعلام
B21: 2505 | C21: 2019-06-17 | E21: 100 | F21: 800 | H21: 900 | I21: رسم تسجيل | J21: محاسبة
B22: 2506 | C22: 2019-06-17 | G22: 1000 | H22: 1000 | I22: استكمال رسوم | J22: ترجمة
B23: 2507 | C23: 2019-06-17 | G23: 1000 | H23: 1000 | I23: استكمال رسوم | J23: ترجمة
B24: 2508 | C24: 2019-06-17 | E24: 100 | F24: 800 | H24: 900 | I24: رسم تسجيل | J24: محاسبة
B25: 2509 | C25: 2019-06-17 | D25: 5000 | H25: 5000 | I25: كشف (6) | J25: ترجمة
B26: 2510 | C26: 2019-06-17 | E26: 100 | F26: 800 | G26: 1000 | H26: 1900 | I26: استكمال رسوم | J26: ترجمة
B27: 2511 | C27: 2019-06-17 | E27: 100 | F27: 800 | G27: 1000 | H27: 1900 | I27: استكمال رسوم | J27: ادارة مشروعات
B28: 2512 | C28: 2019-06-17 | E28: 100 | F28: 800 | G28: 1000 | H28: 1900 | I28: استكمال رسوم | J28: ترجمة
B29: 2513 | C29: 2019-06-17 | D29: 5000 | H29: 5000 | I29: كشف (6) | J29: ادارة مشروعات
B30: 2514 | C30: 2019-06-18 | E30: 100 | F30: 800 | H30: 900 | I30: رسم تسجيل | J30: محاسبة
B31: 2515 | C31: 2019-06-18 | D31: 2000 | H31: 2000 | I31: كشف (1) | J31: ترجمة
B32: 2516 | C32: 2019-06-18 | G32: 2500 | H32: 2500 | I32: استكمال رسوم | J32: ادارة مشروعات
B33: 2517 | C33: 2019-06-18 | G33: 2750 | H33: 2750 | I33: استكمال رسوم | J33: ادارة مشروعات
B34: 2518 | C34: 2019-06-18 | E34: 100 | F34: 800 | G34: 1000 | H34: 1900 | I34: استكمال رسوم | J34: ترجمة
B35: 2519 | C35: 2019-06-18 | D35: 2000 | H35: 2000 | I35: كشف (1) | J35: ادارة مشروعات
A36: احمد المنيني | B36: 2520 | C36: 2019-06-18 | D36: 200 | H36: 200 | I36: بدل ضائع بطاقة | J36: اعلام
B37: 2521 | C37: 2019-06-18 | D37: 2000 | H37: 2000 | I37: كشف (1) | J37: ترجمة
B38: 2522 | C38: 2019-06-18 | D38: 2000 | H38: 2000 | I38: كشف (1) | J38: محاسبة
B39: 2523 | C39: 2019-06-18 | E39: 100 | F39: 800 | H39: 900 | I39: رسم تسجيل | J39: محاسبة
B40: 2524 | C40: 2019-06-18 | E40: 100 | F40: 800 | H40: 900 | I40: رسم تسجيل | J40: ترجمة
B41: 2525 | C41: 2019-06-18 | E41: 100 | F41: 800 | H41: 900 | I41: رسم تسجيل | J41: ترجمة
A42: عبد العزيز حبال | B42: 2526 | C42: 2019-06-18 | G42: 2500 | H42: 2500 | I42: استكمال رسوم | J42: اعلام
B43: 2527 | C43: 2019-06-18 | E43: 100 | F43: 800 | G43: 1000 | H43: 1900 | I43: استكمال رسوم | J43: ترجمة
B44: 2528 | C44: 2019-06-18 | G44: 2500 | H44: 2500 | I44: استكمال رسوم | J44: ترجمة
B45: 2529 | C45: 2019-06-18 | E45: 100 | F45: 800 | G45: 1000 | H45: 1900 | I45: استكمال رسوم | J45: ترجمة
B46: 2530 | C46: 2019-06-18 | E46: 100 | F46: 800 | G46: 1000 | H46: 1900 | I46: استكمال رسوم | J46: ترجمة
D47: =SUM(D2:D46) -> 18600 | E47: =SUM(E2:E46) -> 2500 | F47: =SUM(F2:F46) -> 20000 | G47: =SUM(G2:G46) -> 35650 | H47: =SUM(H2:H46) -> 76750

Sheet p3
A1: الاسم | B1: رقم ايصال | C1: تاريخ | D1: مختلفة | E1: تسليف | F1: رسم سنوي | G1: خدمات | H1: مجموع | I1: النوع | J1: القسم
B2: 2531 | C2: 2019-06-18 | D2: 200 | H2: 200 | I2: بدل ضائع بطاقة | J2: ترجمة
B3: 2532 | C3: 2019-06-19 | G3: 400 | H3: 400 | I3: استكمال رسوم | J3: ترجمة
B4: 2533 | C4: 2019-06-19 | D4: 2000 | H4: 2000 | I4: كشف (1) | J4: محاسبة
B5: 2534 | C5: 2019-06-19 | E5: 100 | F5: 800 | G5: 1000 | H5: 1900 | I5: استكمال رسوم | J5: ترجمة
B6: 2535 | C6: 2019-06-19 | G6: 1500 | H6: 1500 | I6: استكمال رسوم | J6: ترجمة
B7: 2536 | C7: 2019-06-19 | E7: 100 | F7: 800 | G7: 1000 | H7: 1900 | I7: استكمال رسوم | J7: ترجمة
B8: 2537 | C8: 2019-06-19 | D8: 200 | H8: 200 | I8: بدل ضائع بطاقة | J8: ترجمة
B9: 2538 | C9: 2019-06-19 | D9: 200 | H9: 200 | I9: بدل ضائع بطاقة | J9: ترجمة
B10: 2539 | C10: 2019-06-19 | E10: 100 | F10: 800 | G10: 1000 | H10: 1900 | I10: استكمال رسوم | J10: ترجمة
B11: 2540 | C11: 2019-06-19 | D11: 5000 | H11: 5000 | I11: كشف (6) | J11: ترجمة
B12: 2541 | C12: 2019-06-19 | D12: 2000 | H12: 2000 | I12: كشف (1) | J12: ادارة مشروعات
B13: 2542 | C13: 2019-06-19 | E13: 100 | F13: 800 | G13: 1000 | H13: 1900 | I13: استكمال رسوم | J13: ترجمة
B14: 2543 | C14: 2019-06-19 | D14: 2000 | H14: 2000 | I14: كشف (1) | J14: محاسبة
B15: 2544 | C15: 2019-06-19 | E15: 100 | F15: 800 | G15: 1000 | H15: 1900 | I15: استكمال رسوم | J15: ترجمة
B16: 2545 | C16: 2019-06-19 | G16: 2500 | H16: 2500 | I16: استكمال رسوم | J16: ترجمة
B17: 2546 | C17: 2019-06-19 | G17: 2500 | H17: 2500 | I17: استكمال رسوم | J17: ترجمة
B18: 2547 | C18: 2019-06-19 | E18: 100 | F18: 800 | H18: 900 | I18: رسم تسجيل | J18: محاسبة
B19: 2548 | C19: 2019-06-19 | D19: 2000 | H19: 2000 | I19: كشف (1) | J19: ترجمة
B20: 2549 | C20: 2019-06-19 | E20: 100 | F20: 800 | G20: 1000 | H20: 1900 | I20: استكمال رسوم | J20: ادارة مشروعات
B21: 2550 | C21: 2019-06-19 | G21: 1500 | H21: 1500 | I21: استكمال رسوم | J21: ترجمة
B22: 2551 | C22: 2019-06-19 | D22: 5000 | H22: 5000 | I22: كشف (6) | J22: ترجمة
B23: 2552 | C23: 2019-06-19 | D23: 2000 | H23: 2000 | I23: كشف (1) | J23: ادارة مشروعات
B24: 2553 | C24: 2019-06-19 | E24: 100 | F24: 800 | G24: 1000 | H24: 1900 | I24: استكمال رسوم | J24: ترجمة
A25: عيشة السليمان | B25: 2554 | C25: 2019-06-19 | D25: 5000 | H25: 5000 | I25: كشف (6) | J25: اعلام
B26: 2555 | C26: 2019-06-19 | E26: 100 | F26: 800 | G26: 1000 | H26: 1900 | I26: استكمال رسوم | J26: ترجمة
A27: كوثر خليل | B27: 2556 | C27: 2019-06-20 | G27: 4000 | H27: 4000 | I27: استكمال رسوم | J27: اعلام
B28: 2557 | C28: 2019-06-20 | E28: 100 | F28: 800 | G28: 1000 | H28: 1900 | I28: استكمال رسوم | J28: ترجمة
B29: 2558 | C29: 2019-06-20 | G29: 1000 | H29: 1000 | I29: استكمال رسوم | J29: ترجمة
A30: مازن يوسف | B30: 2559 | C30: 2019-06-20 | G30: 2100 | H30: 2100 | I30: استكمال رسوم | J30: اعلام
B31: 2560 | C31: 2019-06-20 | E31: 100 | F31: 800 | H31: 900 | I31: رسم تسجيل | J31: محاسبة
B32: 2561 | C32: 2019-06-20 | G32: 2500 | H32: 2500 | I32: استكمال رسوم | J32: ادارة مشروعات
B33: 2562 | C33: 2019-06-20 | D33: 5000 | H33: 5000 | I33: كشف (6) | J33: ترجمة
A34: عدنان فياض | B34: 2563 | C34: 2019-06-20 | D34: 200 | H34: 200 | I34: بدل ضائع بطاقة | J34: اعلام
B35: 2564 | C35: 2019-06-20 | G35: 1000 | H35: 1000 | I35: استكمال رسوم | J35: ترجمة
B36: 2565 | C36: 2019-06-20 | E36: 100 | F36: 800 | G36: 1000 | H36: 1900 | I36: استكمال رسوم | J36: ترجمة
B37: 2566 | C37: 2019-06-20 | G37: 1000 | H37: 1000 | I37: استكمال رسوم | J37: ترجمة
B38: 2567 | C38: 2019-06-20 | E38: 100 | F38: 800 | H38: 900 | I38: رسم تسجيل | J38: محاسبة
B39: 2568 | C39: 2019-06-20 | G39: 1000 | H39: 1000 | I39: استكمال رسوم | J39: ترجمة
B40: 2569 | C40: 2019-06-20 | G40: 1000 | H40: 1000 | I40: استكمال رسوم | J40: ترجمة
B41: 2570 | C41: 2019-06-20 | E41: 100 | F41: 800 | H41: 900 | I41: رسم تسجيل | J41: ادارة مشروعات
B42: 2571 | C42: 2019-06-20 | D42: 5000 | H42: 5000 | I42: بدل ضائع مصدقة (1) | J42: معلم صف
A43: راما السيوري | B43: 2572 | C43: 2019-06-20 | G43: 1000 | H43: 1000 | I43: استكمال رسوم | J43: اعلام
A44: بشار الحلبي | B44: 2573 | C44: 2019-06-20 | D44: 200 | H44: 200 | I44: بدل ضائع بطاقة | J44: اعلام
B45: 2574 | C45: 2019-06-20 | D45: 5000 | H45: 5000 | I45: كشف (6) | J45: ترجمة
B46: 2575 | C46: 2019-06-20 | E46: 100 | F46: 800 | H46: 900 | I46: رسم تسجيل | J46: ادارة مشروعات
D47: =SUM(D2:D46) -> 41000 | E47: =SUM(E2:E46) -> 1500 | F47: =SUM(F2:F46) -> 12000 | G47: =SUM(G2:G46) -> 33000 | H47: =SUM(H2:H46) -> 87500

Sheet p4
A1: الاسم | B1: رقم ايصال | C1: تاريخ | D1: مختلفة | E1: تسليف | F1: رسم سنوي | G1: خدمات | H1: مجموع | I1: النوع | J1: القسم
B2: 2576 | C2: 2019-06-20 | E2: 100 | F2: 800 | G2: 1000 | H2: 1900 | I2: استكمال رسوم | J2: ترجمة
B3: 2577 | C3: 2019-06-20 | E3: 100 | F3: 800 | G3: 1000 | H3: 1900 | I3: استكمال رسوم | J3: ترجمة
B4: 2578 | C4: 2019-06-20 | G4: 1500 | H4: 1500 | I4: استكمال رسوم | J4: ترجمة
A5: وصال عبد الله | B5: 2579 | C5: 2019-06-20 | G5: 1500 | H5: 1500 | I5: استكمال رسوم | J5: اعلام
B6: 2580 | C6: 2019-06-20 | G6: 2000 | H6: 2000 | I6: استكمال رسوم | J6: محاسبة
A7: الاء الخضر | B7: 2581 | C7: 2019-06-20 | E7: 100 | F7: 800 | G7: 1000 | H7: 1900 | I7: استكمال رسوم | J7: اعلام
B8: 2582 | C8: 2019-06-20 | D8: 2000 | H8: 2000 | I8: كشف (1) | J8: محاسبة
B9: 2583 | C9: 2019-06-20 | D9: 2000 | H9: 2000 | I9: كشف (1) | J9: ادارة مشروعات
B10: 2584 | C10: 2019-06-20 | D10: 2000 | H10: 2000 | I10: كشف (1) | J10: محاسبة
B11: 2585 | C11: 2019-06-20 | E11: 100 | F11: 800 | G11: 1000 | H11: 1900 | I11: استكمال رسوم | J11: ادارة مشروعات
B12: 2586 | C12: 2019-06-23 | E12: 100 | F12: 800 | G12: 1000 | H12: 1900 | I12: استكمال رسوم | J12: ترجمة
B13: 2587 | C13: 2019-06-23 | D13: 5000 | H13: 5000 | I13: كشف (6) | J13: ترجمة
B14: 2588 | C14: 2019-06-23 | D14: 3000 | H14: 3000 | I14: رسم اختبار ماجستير | J14: ترجمة
B15: 2589 | C15: 2019-06-23 | D15: 200 | H15: 200 | I15: بدل ضائع بطاقة | J15: محاسبة
B16: 2590 | C16: 2019-06-23 | E16: 100 | F16: 800 | H16: 900 | I16: رسم تسجيل | J16: محاسبة
B17: 2591 | C17: 2019-06-23 | D17: 5000 | H17: 5000 | I17: مصدقة تخرج بديلة | J17: ترجمة
B18: 2592 | C18: 2019-06-23 | E18: 100 | F18: 800 | H18: 900 | I18: رسم تسجيل | J18: محاسبة
B19: 2593 | C19: 2019-06-23 | D19: 2000 | H19: 2000 | I19: كشف (1) | J19: محاسبة
B20: 2594 | C20: 2019-06-23 | D20: 2000 | H20: 2000 | I20: كشف (1) | J20: ادارة مشروعات
A21: رائد العلي المحمد | B21: 2595 | C21: 2019-06-24 | D21: 5000 | H21: 5000 | I21: كشف (6) | J21: اعلام
B22: 2596 | C22: 2019-06-24 | G22: 1250 | H22: 1250 | I22: استكمال رسوم | J22: ترجمة
B23: 2597 | C23: 2019-06-24 | D23: 200 | H23: 200 | I23: بدل ضائع بطاقة | J23: محاسبة
B24: 2598 | C24: 2019-06-24 | D24: 200 | H24: 200 | I24: بدل ضائع بطاقة | J24: ترجمة
A25: هاشم زرزر | B25: 2599 | C25: 2019-06-24 | D25: 2000 | H25: 2000 | I25: كشف (1) | J25: اعلام
B26: 2600 | C26: 2019-06-24 | E26: 100 | F26: 800 | H26: 900 | I26: رسم تسجيل | J26: محاسبة
B27: 2601 | C27: 2019-06-25 | D27: 3000 | H27: 3000 | I27: رسم اختبار ماجستير | J27: محاسبة
B28: 2602 | C28: 2019-06-25 | D28: 2000 | H28: 2000 | I28: كشف (1) | J28: محاسبة
B29: 2603 | C29: 2019-06-25 | G29: 1000 | H29: 1000 | I29: استكمال رسوم | J29: ترجمة
B30: 2604 | C30: 2019-06-25 | G30: 3500 | H30: 3500 | I30: استكمال رسوم | J30: ترجمة
A31: مجد رنجوس | B31: 2605 | C31: 2019-06-25 | D31: 200 | H31: 200 | I31: بدل ضائع بطاقة | J31: اعلام
B32: 2606 | C32: 2019-06-25 | D32: 2000 | H32: 2000 | I32: كشف (1) | J32: محاسبة
B33: 2607 | C33: 2019-06-25 | E33: 100 | F33: 800 | G33: 1000 | H33: 1900 | I33: استكمال رسوم | J33: ترجمة
B34: 2608 | C34: 2019-06-25 | D34: 5000 | H34: 5000 | I34: رسم شهادة | J34: محاسبة
B35: 2609 | C35: 2019-06-26 | E35: 100 | F35: 800 | H35: 900 | I35: رسم تسجيل | J35: محاسبة
B36: 2610 | C36: 2019-06-26 | D36: 3000 | H36: 3000 | I36: رسم اختبار ماجستير | J36: محاسبة
B37: 2611 | C37: 2019-06-26 | D37: 3000 | H37: 3000 | I37: رسم اختبار ماجستير | J37: ادارة مشروعات
B38: 2612 | C38: 2019-06-26 | D38: 3000 | H38: 3000 | I38: رسم اختبار ماجستير | J38: محاسبة
B39: 2613 | C39: 2019-06-26 | D39: 5000 | H39: 5000 | I39: مصدقة تخرج بديلة | J39: دراسات قانونية
B40: 2614 | C40: 2019-06-26 | D40: 200 | H40: 200 | I40: بدل ضائع بطاقة | J40: ترجمة
B41: 2615 | C41: 2019-06-27 | D41: 200 | H41: 200 | I41: بدل ضائع بطاقة | J41: ترجمة
B42: 2616 | C42: 2019-06-27 | D42: 5000 | H42: 5000 | I42: كشف (6) | J42: محاسبة
B43: 2617 | C43: 2019-06-27 | D43: 2000 | H43: 2000 | I43: كشف (1) | J43: ترجمة
B44: 2618 | C44: 2019-06-27 | D44: 200 | H44: 200 | I44: بدل ضائع بطاقة | J44: ترجمة
A45: محمد طارق جليقين | B45: 2619 | C45: 2019-06-27 | D45: 2000 | H45: 2000 | I45: كشف (1) | J45: اعلام
B46: 2620 | C46: 2019-06-27 | D46: 5000 | H46: 5000 | I46: رسم شهادة | J46: ترجمة
D47: =SUM(D2:D46) -> 71400 | E47: =SUM(E2:E46) -> 1000 | F47: =SUM(F2:F46) -> 8000 | G47: =SUM(G2:G46) -> 16750 | H47: =SUM(H2:H46) -> 97150

Sheet p5
A1: الاسم | B1: رقم ايصال | C1: تاريخ | D1: مختلفة | E1: تسليف | F1: رسم سنوي | G1: خدمات | H1: مجموع | I1: النوع | J1: القسم
B2: 2621 | C2: 2019-06-27 | D2: 200 | H2: 200 | I2: بدل ضائع بطاقة | J2: محاسبة
B3: 2622 | C3: 2019-06-27 | D3: 5000 | H3: 5000 | I3: كشف (6) | J3: محاسبة
B4: 2623 | C4: 2019-06-27 | D4: 200 | H4: 200 | I4: بدل ضائع بطاقة | J4: محاسبة
B5: 2624 | C5: 2019-06-27 | D5: 5000 | H5: 5000 | I5: كشف (6) | J5: محاسبة
B6: 2625 | C6: 2019-06-30 | D6: 2000 | H6: 2000 | I6: كشف (1) | J6: ترجمة
B7: 2626 | C7: 2019-06-30 | D7: 5000 | H7: 5000 | I7: رسم شهادة | J7: ترجمة
B8: 2627 | C8: 2019-07-01 | D8: 2000 | H8: 2000 | I8: كشف (1) | J8: محاسبة
B9: 2628 | C9: 2019-07-01 | D9: 200 | H9: 200 | I9: بدل ضائع بطاقة | J9: محاسبة
B10: 2629 | C10: 2019-07-01 | D10: 3000 | H10: 3000 | I10: رسم اختبار ماجستير | J10: ادارة مشروعات
B11: 2630 | C11: 2019-07-02 | D11: 3000 | H11: 3000 | I11: رسم اختبار ماجستير | J11: محاسبة
A12: وسيم ابو حرب | B12: 2631 | C12: 2019-07-02 | D12: 5000 | H12: 5000 | I12: كشف (6) | J12: اعلام
A13: منار الفيومي | B13: 2632 | C13: 2019-07-02 | D13: 2000 | H13: 2000 | I13: كشف (1) | J13: اعلام
A14: ساره صالح | B14: 2633 | C14: 2019-07-02 | D14: 200 | H14: 200 | I14: بدل ضائع بطاقة | J14: اعلام
B15: 2634 | C15: 2019-07-03 | D15: 5000 | H15: 5000 | I15: رسم شهادة | J15: محاسبة
A16: غياث الاجرد | B16: 2635 | C16: 2019-07-03 | D16: 5000 | H16: 5000 | I16: كشف (6) | J16: اعلام
B17: 2636 | C17: 2019-07-03 | D17: 200 | H17: 200 | I17: بدل ضائع بطاقة | J17: ادارة مشروعات
B18: 2637 | C18: 2019-07-04 | D18: 3000 | H18: 3000 | I18: رسم اختبار ماجستير | J18: محاسبة
B19: 2638 | C19: 2019-07-04 | D19: 200 | H19: 200 | I19: بدل ضائع بطاقة | J19: ترجمة
B20: 2639 | C20: 2019-07-04 | G20: 5000 | H20: 5000 | I20: براءة ذمة | J20: ترجمة
B21: 2640 | C21: 2019-07-04 | D21: 2000 | H21: 2000 | I21: كشف (1) | J21: محاسبة
B22: 2641 | C22: 2019-07-04 | G22: 1000 | H22: 1000 | I22: استكمال رسوم | J22: ترجمة
B23: 2642 | C23: 2019-07-04 | D23: 2000 | H23: 2000 | I23: كشف (1) | J23: ترجمة
A24: رهف سقر | B24: 2643 | C24: 2019-07-07 | D24: 2000 | H24: 2000 | I24: كشف (1) | J24: اعلام
B25: 2644 | C25: 2019-07-07 | D25: 3000 | H25: 3000 | I25: رسم اختبار ماجستير | J25: محاسبة
B26: 2645 | C26: 2019-07-07 | G26: 1000 | H26: 1000 | I26: استكمال رسوم | J26: ترجمة
B27: 2646 | C27: 2019-07-07 | D27: 3000 | H27: 3000 | I27: رسم اختبار ماجستير | J27: محاسبة
B28: 2647 | C28: 2019-07-07 | D28: 200 | H28: 200 | I28: بدل ضائع بطاقة | J28: محاسبة
B29: 2648 | C29: 2019-07-07 | D29: 5000 | H29: 5000 | I29: كشف (6) | J29: ترجمة
B30: 2649 | C30: 2019-07-07 | D30: 2000 | H30: 2000 | I30: كشف (1) | J30: محاسبة
A31: عبد الحميد الرفاعي | B31: 2650 | C31: 2019-07-07 | D31: 200 | H31: 200 | I31: بدل ضائع بطاقة | J31: اعلام
B32: 2651 | C32: 2019-07-07 | D32: 2000 | H32: 2000 | I32: كشف (1) | J32: محاسبة
B33: 2652 | C33: 2019-07-07 | D33: 5000 | H33: 5000 | I33: بدل ضائع مصدقة (1) | J33: معلم صف
B34: 2653 | C34: 2019-07-08 | G34: 1000 | H34: 1000 | I34: استكمال رسوم | J34: محاسبة
B35: 2654 | C35: 2019-07-08 | D35: 5000 | H35: 5000 | I35: كشف (6) | J35: ادارة مشروعات
B36: 2655 | C36: 2019-07-08 | D36: 2000 | H36: 2000 | I36: كشف (1) | J36: محاسبة
B37: 2656 | C37: 2019-07-08 | D37: 2000 | H37: 2000 | I37: كشف (1) | J37: محاسبة
B38: 2657 | C38: 2019-07-08 | D38: 2000 | H38: 2000 | I38: كشف (1) | J38: محاسبة
B39: 2658 | C39: 2019-07-08 | D39: 3000 | H39: 3000 | I39: رسم اختبار ماجستير | J39: ترجمة
B40: 2659 | C40: 2019-07-08 | D40: 200 | H40: 200 | I40: بدل ضائع بطاقة | J40: محاسبة
A41: رغد الحفار الحبال | B41: 2660 | C41: 2019-07-08 | G41: 1500 | H41: 1500 | I41: استكمال رسوم | J41: اعلام
B42: 2661 | C42: 2019-07-08 | D42: 3000 | H42: 3000 | I42: رسم اختبار ماجستير | J42: ادارة مشروعات
B43: 2662 | C43: 2019-07-08 | D43: 1000 | H43: 1000 | I43: كشف (1) | J43: محاسبة | L43: محاسبة(تتمة وصل سابق بقيمة 1000) | N43: رقم الوصل السابق 6828 | O43: 15/6/2017
B44: 2663 | C44: 2019-07-09 | G44: 1000 | H44: 1000 | I44: استكمال رسوم | J44: ادارة مشروعات
B45: 2664 | C45: 2019-07-09 | D45: 2000 | H45: 2000 | I45: كشف (1) | J45: محاسبة
B46: 2665 | C46: 2019-07-09 | G46: 1000 | H46: 1000 | I46: استكمال رسوم | J46: ترجمة
D47: =SUM(D2:D46) -> 92800 | E47: =SUM(E2:E46) -> 0 | F47: =SUM(F2:F46) -> 0 | G47: =SUM(G2:G46) -> 11500 | H47: =SUM(H2:H46) -> 104300

Sheet p6
A1: الاسم | B1: رقم ايصال | C1: تاريخ | D1: مختلفة | E1: تسليف | F1: رسم سنوي | G1: خدمات | H1: مجموع | I1: النوع | J1: القسم
B2: 2666 | C2: 2019-07-10 | D2: 2000 | H2: 2000 | I2: كشف (1) | J2: ترجمة
B3: 2667 | C3: 2019-07-10 | D3: 5000 | H3: 5000 | I3: كشف (6) | J3: ترجمة
A4: الاء عبد الله | B4: 2668 | C4: 2019-07-10 | D4: 2000 | H4: 2000 | I4: كشف (1) | J4: اعلام
B5: 2669 | C5: 2019-07-10 | D5: 5000 | H5: 5000 | I5: كشف (6) | J5: ادارة مشروعات
A6: سليم ادريس | B6: 2670 | C6: 2019-07-10 | G6: 2000 | H6: 2000 | I6: استكمال رسوم | J6: اعلام
B7: 2671 | C7: 2019-07-10 | D7: 5000 | H7: 5000 | I7: رسم شهادة | J7: ترجمة
B8: 2672 | C8: 2019-07-10 | G8: 1000 | H8: 1000 | I8: براءة ذمة | J8: ترجمة
B9: 2673 | C9: 2019-07-10 | D9: 2000 | H9: 2000 | I9: كشف (1) | J9: محاسبة
B10: 2674 | C10: 2019-07-10 | D10: 5000 | H10: 5000 | I10: كشف (6) | J10: ادارة مشروعات
B11: 2675 | C11: 2019-07-11 | D11: 5000 | H11: 5000 | I11: كشف (6) | J11: ترجمة
B12: 2676 | C12: 2019-07-11 | G12: 2500 | H12: 2500 | I12: استكمال رسوم | J12: محاسبة
B13: 2677 | C13: 2019-07-14 | D13: 5000 | H13: 5000 | I13: كشف (6) | J13: ترجمة
B14: 2678 | C14: 2019-07-14 | D14: 5000 | H14: 5000 | I14: رسم شهادة | J14: محاسبة
A15: مرح الحامد | B15: 2679 | C15: 2019-07-14 | E15: 100 | F15: 800 | G15: 1000 | H15: 1900 | I15: استكمال رسوم | J15: اعلام
B16: 2680 | C16: 2019-07-14 | D16: 2000 | H16: 2000 | I16: كشف (1) | J16: محاسبة
B17: 2681 | C17: 2019-07-15 | D17: 2000 | H17: 2000 | I17: كشف (1) | J17: ادارة مشروعات
B18: 2682 | C18: 2019-07-15 | D18: 200 | H18: 200 | I18: بدل ضائع بطاقة | J18: محاسبة
B19: 2683 | C19: 2019-07-15 | D19: 2000 | H19: 2000 | I19: كشف (1) | J19: ترجمة
B20: 2684 | C20: 2019-07-15 | D20: 200 | H20: 200 | I20: بدل ضائع بطاقة | J20: محاسبة
A21: انس المما | B21: 2685 | C21: 2019-07-16 | D21: 2000 | H21: 2000 | I21: كشف (1) | J21: اعلام
A22: هويده النقطة | B22: 2686 | C22: 2019-07-16 | D22: 2000 | H22: 2000 | I22: كشف (1) | J22: اعلام
B23: 2687 | C23: 2019-07-16 | D23: 200 | H23: 200 | I23: بدل ضائع بطاقة | J23: ادارة مشروعات
B24: 2688 | C24: 2019-07-16 | D24: 5000 | H24: 5000 | I24: كشف (6) | J24: ترجمة
B25: 2689 | C25: 2019-07-16 | D25: 2000 | H25: 2000 | I25: كشف (1) | J25: ترجمة
B26: 2690 | C26: 2019-07-17 | E26: 100 | F26: 800 | G26: 1000 | H26: 1900 | I26: استكمال رسوم | J26: ترجمة
B27: 2691 | C27: 2019-07-17 | D27: 2000 | H27: 2000 | I27: كشف (1) | J27: ادارة مشروعات
B28: 2692 | C28: 2019-07-17 | D28: 2000 | H28: 2000 | I28: كشف (1) | J28: محاسبة
A29: حسن ططري | B29: 2693 | C29: 2019-07-18 | D29: 2000 | H29: 2000 | I29: كشف (1) | J29: اعلام
B30: 2694 | C30: 2019-07-18 | D30: 5000 | H30: 5000 | I30: بدل ضائع مصدقة (1) | J30: معلم صف
B31: 2695 | C31: 2019-07-18 | G31: 1500 | H31: 1500 | I31: استكمال رسوم | J31: ترجمة
B32: 2696 | C32: 2019-07-18 | D32: 5000 | H32: 5000 | I32: كشف (6) | J32: محاسبة
B33: 2697 | C33: 2019-07-18 | D33: 2000 | H33: 2000 | I33: كشف (1) | J33: محاسبة
B34: 2698 | C34: 2019-07-18 | G34: 500 | H34: 500 | I34: استكمال رسوم | J34: ترجمة
B35: 2699 | C35: 2019-07-18 | D35: 200 | H35: 200 | I35: بدل ضائع بطاقة | J35: ترجمة
B36: 2700 | C36: 2019-07-18 | E36: 100 | F36: 800 | G36: 1000 | H36: 1900 | I36: استكمال رسوم | J36: دبلوماسية
B37: 2701 | C37: 2019-07-21 | G37: 1500 | H37: 1500 | I37: استكمال رسوم | J37: ترجمة
B38: 2702 | C38: 2019-07-21 | D38: 2000 | H38: 2000 | I38: كشف (1) | J38: محاسبة
B39: 2703 | C39: 2019-07-21 | D39: 2000 | H39: 2000 | I39: كشف (1) | J39: ادارة مشروعات
B40: 2704 | C40: 2019-07-22 | D40: 2000 | H40: 2000 | I40: كشف (1) | J40: ترجمة
B41: 2705 | C41: 2019-07-22 | D41: 2000 | H41: 2000 | I41: كشف (1) | J41: ادارة مشروعات
B42: 2706 | C42: 2019-07-23 | D42: 2000 | H42: 2000 | I42: كشف (1) | J42: محاسبة
B43: 2707 | C43: 2019-07-23 | D43: 2000 | H43: 2000 | I43: كشف (1) | J43: ادارة مشروعات
B44: 2708 | C44: 2019-07-23 | G44: 1500 | H44: 1500 | I44: استكمال رسوم | J44: رياض اطفال
B45: 2709 | C45: 2019-07-23 | D45: 2000 | H45: 2000 | I45: كشف (1) | J45: محاسبة
B46: 2710 | C46: 2019-07-23 | D46: 200 | H46: 200 | I46: بدل ضائع بطاقة | J46: محاسبة
D47: =SUM(D2:D46) -> 91000 | E47: =SUM(E2:E46) -> 300 | F47: =SUM(F2:F46) -> 2400 | G47: =SUM(G2:G46) -> 13500 | H47: =SUM(H2:H46) -> 107200

Sheet p7
A1: الاسم | B1: رقم ايصال | C1: تاريخ | D1: مختلفة | E1: تسليف | F1: رسم سنوي | G1: خدمات | H1: مجموع | I1: النوع | J1: القسم
A2: نائل اسمندر | B2: 2711 | C2: 2019-07-23 | D2: 2000 | H2: 2000 | I2: كشف (1) | J2: اعلام
B3: 2712 | C3: 2019-07-23 | D3: 200 | H3: 200 | I3: بدل ضائع بطاقة | J3: محاسبة
B4: 2713 | C4: 2019-07-23 | D4: 2000 | H4: 2000 | I4: كشف (1) | J4: ترجمة
B5: 2714 | C5: 2019-07-23 | D5: 5000 | H5: 5000 | I5: كشف (6) | J5: ترجمة
B6: 2715 | C6: 2019-07-23 | G6: 1000 | H6: 1000 | I6: استكمال رسوم | J6: ادارة مشروعات
B7: 2716 | C7: 2019-07-23 | D7: 2000 | H7: 2000 | I7: كشف (1) | J7: محاسبة
B8: 2717 | C8: 2019-07-23 | D8: 2000 | H8: 2000 | I8: كشف (1) | J8: محاسبة
B9: 2718 | C9: 2019-07-23 | D9: 200 | H9: 200 | I9: بدل ضائع بطاقة | J9: ترجمة
B10: 2719 | C10: 2019-07-23 | D10: 5000 | H10: 5000 | I10: كشف (6) | J10: ادارة مشروعات
B11: 2720 | C11: 2019-07-24 | D11: 2000 | H11: 2000 | I11: كشف (1) | J11: محاسبة
A12: ماجد الحاحي | B12: 2721 | C12: 2019-07-24 | G12: 1000 | H12: 1000 | I12: استكمال رسوم | J12: اعلام
A13: مجد وهيبي | B13: 2722 | C13: 2019-07-24 | G13: 1000 | H13: 1000 | I13: استكمال رسوم | J13: اعلام
B14: 2723 | C14: 2019-07-24 | D14: 200 | H14: 200 | I14: بدل ضائع بطاقة | J14: ترجمة
B15: 2724 | C15: 2019-07-24 | D15: 2000 | H15: 2000 | I15: كشف (1) | J15: ادارة مشروعات
B16: 2725 | C16: 2019-07-24 | D16: 5000 | H16: 5000 | I16: كشف (6) | J16: ترجمة
B17: 2726 | C17: 2019-07-24 | D17: 200 | H17: 200 | I17: بدل ضائع بطاقة | J17: محاسبة
B18: 2727 | C18: 2019-07-24 | D18: 2000 | H18: 2000 | I18: كشف (1) | J18: ترجمة
B19: 2728 | C19: 2019-07-24 | D19: 5000 | H19: 5000 | I19: كشف (6) | J19: ترجمة
B20: 2729 | C20: 2019-07-25 | D20: 5000 | H20: 5000 | I20: كشف (6) | J20: رياض اطفال
B21: 2730 | C21: 2019-07-25 | D21: 2000 | H21: 2000 | I21: كشف (1) | J21: ترجمة
B22: 2731 | C22: 2019-07-25 | D22: 2000 | H22: 2000 | I22: كشف (1) | J22: محاسبة
B23: 2732 | C23: 2019-07-25 | D23: 5000 | H23: 5000 | I23: كشف (6) | J23: محاسبة
B24: 2733 | C24: 2019-07-28 | D24: 2000 | H24: 2000 | I24: كشف (1) | J24: محاسبة
A25: حسين عبد الحق | B25: 2734 | C25: 2019-07-28 | D25: 200 | H25: 200 | I25: بدل ضائع بطاقة | J25: اعلام
B26: 2735 | C26: 2019-07-28 | D26: 5000 | H26: 5000 | I26: كشف (6) | J26: محاسبة
B27: 2736 | C27: 2019-07-28 | D27: 2000 | H27: 2000 | I27: كشف (1) | J27: ترجمة
B28: 2737 | C28: 2019-07-28 | D28: 2000 | H28: 2000 | I28: كشف (1) | J28: محاسبة
B29: 2738 | C29: 2019-07-28 | D29: 5000 | H29: 5000 | I29: كشف (6) | J29: ترجمة
B30: 2739 | C30: 2019-07-28 | D30: 2000 | H30: 2000 | I30: كشف (1) | J30: دبلوم تأهيل تربوي
B31: 2740 | C31: 2019-07-28 | D31: 2000 | H31: 2000 | I31: كشف (1) | J31: ترجمة
B32: 2741 | C32: 2019-07-28 | G32: 5400 | H32: 5400 | I32: براءة ذمة | J32: رياض اطفال
B33: 2742 | C33: 2019-07-28 | G33: 4500 | H33: 4500 | I33: استكمال رسوم | J33: ترجمة
B34: 2743 | C34: 2019-07-29 | D34: 5000 | H34: 5000 | I34: بدل ضائع مصدقة (1) | J34: معلم صف
B35: 2744 | C35: 2019-07-29 | G35: 1500 | H35: 1500 | I35: استكمال رسوم | J35: ترجمة
B36: 2745 | C36: 2019-07-29 | D36: 2000 | H36: 2000 | I36: كشف (1) | J36: ترجمة
B37: 2746 | C37: 2019-07-29 | D37: 3000 | H37: 3000 | I37: كشف (1) | J37: محاسبة | K37: تتمة وصل كشف علامات سابق رقمه 2731 | N37: ليصبح 6 نسخ بدل نسخة واحدة
B38: 2747 | C38: 2019-07-29 | G38: 2500 | H38: 2500 | I38: استكمال رسوم | J38: ادارة مشروعات
B39: 2748 | C39: 2019-07-29 | D39: 2000 | H39: 2000 | I39: كشف (1) | J39: ادارة مشروعات
A40: لينا فرح | B40: 2749 | C40: 2019-07-29 | G40: 1000 | H40: 1000 | I40: اعتراض | J40: اعلام
B41: 2750 | C41: 2019-07-29 | G41: 1000 | H41: 1000 | I41: استكمال رسوم | J41: ترجمة
B42: 2751 | C42: 2019-07-30 | D42: 2000 | H42: 2000 | I42: كشف (1) | J42: ترجمة
A43: مروه عبده | B43: 2752 | C43: 2019-07-30 | D43: 200 | H43: 200 | I43: بدل ضائع بطاقة | J43: اعلام
A44: سلام عبودي | B44: 2753 | C44: 2019-07-30 | D44: 200 | H44: 200 | I44: بدل ضائع بطاقة | J44: اعلام
B45: 2754 | C45: 2019-07-30 | D45: 5000 | H45: 5000 | I45: كشف (6) | J45: ترجمة
B46: 2755 | C46: 2019-07-30 | D46: 2000 | H46: 2000 | I46: كشف (1) | J46: محاسبة
D47: =SUM(D2:D46) -> 90400 | E47: =SUM(E2:E46) -> 0 | F47: =SUM(F2:F46) -> 0 | G47: =SUM(G2:G46) -> 18900 | H47: =SUM(H2:H46) -> 109300

Sheet p8
A1: الاسم | B1: رقم ايصال | C1: تاريخ | D1: مختلفة | E1: تسليف | F1: رسم سنوي | G1: خدمات | H1: مجموع | I1: النوع | J1: القسم
B2: 2756 | C2: 2019-07-30 | D2: 2000 | H2: 2000 | I2: كشف (1) | J2: محاسبة
B3: 2757 | C3: 2019-07-31 | D3: 2000 | H3: 2000 | I3: كشف (1) | J3: ترجمة
B4: 2758 | C4: 2019-07-31 | G4: 400 | H4: 400 | I4: استكمال رسوم | J4: ادارة مشروعات
A5: لانا نعسان | B5: 2759 | C5: 2019-07-31 | D5: 5000 | H5: 5000 | I5: كشف (6) | J5: اعلام
B6: 2760 | C6: 2019-07-31 | D6: 2000 | H6: 2000 | I6: كشف (1) | J6: محاسبة
B7: 2761 | C7: 2019-07-31 | G7: 1000 | H7: 1000 | I7: استكمال رسوم | J7: ترجمة
B8: 2762 | C8: 2019-07-31 | D8: 5000 | H8: 5000 | I8: بدل ضائع مصدقة (1) | J8: معلم صف
B9: 2763 | C9: 2019-08-01 | D9: 200 | H9: 200 | I9: بدل ضائع بطاقة | J9: محاسبة
B10: 2764 | C10: 2019-08-01 | D10: 2000 | H10: 2000 | I10: كشف (1) | J10: ادارة مشروعات
B11: 2765 | C11: 2019-08-01 | D11: 5000 | H11: 5000 | I11: بدل ضائع مصدقة (1) | J11: دراسات قانونية
B12: 2766 | C12: 2019-08-01 | D12: 2000 | H12: 2000 | I12: كشف (1) | J12: ترجمة
B13: 2767 | C13: 2019-08-04 | G13: 1000 | H13: 1000 | I13: استكمال رسوم | J13: ادارة مشروعات
B14: 2768 | C14: 2019-08-04 | D14: 5000 | H14: 5000 | I14: كشف (6) | J14: ترجمة
B15: 2769 | C15: 2019-08-04 | G15: 5000 | H15: 5000 | I15: استكمال رسوم | J15: ادارة مشروعات
B16: 2770 | C16: 2019-08-04 | G16: 2000 | H16: 2000 | I16: استكمال رسوم | J16: ادارة مشروعات
B17: 2771 | C17: 2019-08-04 | D17: 200 | H17: 200 | I17: بدل ضائع بطاقة | J17: محاسبة
B18: 2772 | C18: 2019-08-04 | G18: 2500 | H18: 2500 | I18: استكمال رسوم | J18: ادارة مشروعات
B19: 2773 | C19: 2019-08-04 | G19: 1000 | H19: 1000 | I19: استكمال رسوم | J19: ادارة مشروعات
B20: 2774 | C20: 2019-08-04 | G20: 4000 | H20: 4000 | I20: استكمال رسوم | J20: ادارة مشروعات
B21: 2775 | C21: 2019-08-04 | D21: 5000 | H21: 5000 | I21: كشف (6) | J21: محاسبة
B22: 2776 | C22: 2019-08-04 | D22: 2000 | H22: 2000 | I22: كشف (1) | J22: ادارة مشروعات
B23: 2777 | C23: 2019-08-04 | G23: 1000 | H23: 1000 | I23: اعتراض | J23: ادارة مشروعات
B24: 2778 | C24: 2019-08-05 | D24: 5000 | H24: 5000 | I24: كشف (6) | J24: ترجمة
B25: 2779 | C25: 2019-08-04 | G25: 4000 | H25: 4000 | I25: استكمال رسوم | J25: ادارة مشروعات
B26: 2780 | C26: 2019-08-05 | G26: 2200 | H26: 2200 | I26: استكمال رسوم | J26: ادارة مشروعات
B27: 2781 | C27: 2019-08-05 | D27: 2000 | H27: 2000 | I27: كشف (1) | J27: ادارة مشروعات
B28: 2782 | C28: 2019-08-05 | D28: 5000 | H28: 5000 | I28: كشف (6) | J28: محاسبة
A29: طارق الحسين | B29: 2783 | C29: 2019-08-06 | D29: 2000 | H29: 2000 | I29: كشف (1) | J29: اعلام
B30: 2784 | C30: 2019-08-06 | G30: 1500 | H30: 1500 | I30: استكمال رسوم | J30: ادارة مشروعات
B31: 2785 | C31: 2019-08-06 | D31: 2000 | H31: 2000 | I31: كشف (1) | J31: محاسبة
A32: ريم سموني | B32: 2786 | C32: 2019-08-06 | G32: 1000 | H32: 1000 | I32: اعتراض | J32: اعلام
B33: 2787 | C33: 2019-08-06 | D33: 2000 | H33: 2000 | I33: كشف (1) | J33: ترجمة
A34: بشار الجفال | B34: 2788 | C34: 2019-08-06 | G34: 1000 | H34: 1000 | I34: اعتراض | J34: اعلام
A35: تيماء العلي الحبيب | B35: 2789 | C35: 2019-08-07 | G35: 1000 | H35: 1000 | I35: اعتراض | J35: اعلام
B36: 2790 | C36: 2019-08-07 | D36: 2000 | H36: 2000 | I36: كشف (1) | J36: محاسبة
B37: 2791 | C37: 2019-08-07 | D37: 5000 | H37: 5000 | I37: كشف (6) | J37: ترجمة
B38: 2792 | C38: 2019-08-08 | G38: 1500 | H38: 1500 | I38: استكمال رسوم | J38: رياض اطفال
A39: فاطمه عمشة | B39: 2793 | C39: 2019-08-08 | G39: 1000 | H39: 1000 | I39: اعتراض | J39: اعلام
B40: 2794 | C40: 2019-08-08 | D40: 2000 | H40: 2000 | I40: كشف (1) | J40: ادارة مشروعات
B41: 2795 | C41: 2019-08-08 | D41: 3000 | H41: 3000 | I41: كشف (6) | J41: محاسبة | K41: استكمال نسخ
B42: 2796 | C42: 2019-08-08 | G42: 1500 | H42: 1500 | I42: استكمال رسوم | J42: ادارة مشروعات
B43: 2797 | C43: 2019-08-08 | G43: 1000 | H43: 1000 | I43: استكمال رسوم | J43: ادارة مشروعات
A44: احمد مزاحم | B44: 2798 | C44: 2019-08-08 | G44: 1000 | H44: 1000 | I44: اعتراض | J44: اعلام
B45: 2799 | C45: 2019-08-08 | G45: 1500 | H45: 1500 | I45: استكمال رسوم | J45: ترجمة
A46: محمد عمار مهايني | B46: 2800 | C46: 2019-08-08 | G46: 1000 | H46: 1000 | I46: اعتراض | J46: اعلام
D47: =SUM(D2:D46) -> 67400 | E47: =SUM(E2:E46) -> 0 | F47: =SUM(F2:F46) -> 0 | G47: =SUM(G2:G46) -> 37100 | H47: =SUM(H2:H46) -> 104500

Sheet p9
A1: الاسم | B1: رقم ايصال | C1: تاريخ | D1: مختلفة | E1: تسليف | F1: رسم سنوي | G1: خدمات | H1: مجموع | I1: النوع | J1: القسم
B2: 2801 | C2: 2019-08-08 | G2: 2500 | H2: 2500 | I2: استكمال رسوم | J2: ادارة مشروعات
B3: 2802 | C3: 2019-08-08 | G3: 2000 | H3: 2000 | I3: استكمال رسوم | J3: ادارة مشروعات
B4: 2803 | C4: 2019-08-08 | G4: 1500 | H4: 1500 | I4: استكمال رسوم | J4: ترجمة
B5: 2804 | C5: 2019-08-08 | G5: 1500 | H5: 1500 | I5: استكمال رسوم | J5: ترجمة
B6: 2805 | C6: 2019-08-08 | G6: 1500 | H6: 1500 | I6: استكمال رسوم | J6: ترجمة
B7: 2806 | C7: 2019-08-08 | G7: 5000 | H7: 5000 | I7: استكمال رسوم | J7: ادارة مشروعات
B8: 2807 | C8: 2019-08-08 | G8: 750 | H8: 750 | I8: استكمال رسوم | J8: محاسبة
B9: 2808 | C9: 2019-08-08 | D9: 2000 | H9: 2000 | I9: كشف (1) | J9: ترجمة
B10: 2809 | C10: 2019-08-08 | G10: 1500 | H10: 1500 | I10: استكمال رسوم | J10: ادارة مشروعات
B11: 2810 | C11: 2019-08-18 | G11: 1000 | H11: 1000 | I11: استكمال رسوم | J11: ترجمة
B12: 2811 | C12: 2019-08-18 | G12: 2500 | H12: 2500 | I12: استكمال رسوم | J12: ترجمة
B13: 2812 | C13: 2019-08-18 | G13: 1500 | H13: 1500 | I13: استكمال رسوم | J13: ترجمة
B14: 2813 | C14: 2019-08-18 | G14: 3500 | H14: 3500 | I14: استكمال رسوم | J14: ادارة مشروعات
B15: 2814 | C15: 2019-08-18 | G15: 1000 | H15: 1000 | I15: اعتراض | J15: ترجمة
A16: ديمة طناطرة | B16: 2815 | C16: 2019-08-18 | D16: 2000 | H16: 2000 | I16: كشف (1) | J16: اعلام
B17: 2816 | C17: 2019-08-18 | G17: 500 | H17: 500 | I17: استكمال رسوم | J17: ترجمة
B18: 2817 | C18: 2019-08-18 | D18: 5000 | H18: 5000 | I18: كشف (6) | J18: محاسبة
B19: 2818 | C19: 2019-08-18 | D19: 3000 | H19: 3000 | I19: رسم اختبار ماجستير | J19: ادارة مشروعات
B20: 2819 | C20: 2019-08-18 | D20: 5000 | H20: 5000 | I20: كشف (6) | J20: محاسبة
B21: 2820 | C21: 2019-08-18 | G21: 1000 | H21: 1000 | I21: استكمال رسوم | J21: ترجمة
B22: 2821 | C22: 2019-08-18 | G22: 900 | H22: 900 | I22: استكمال رسوم | J22: محاسبة
B23: 2822 | C23: 2019-08-18 | G23: 900 | H23: 900 | I23: استكمال رسوم | J23: محاسبة
B24: 2823 | C24: 2019-08-18 | D24: 2000 | H24: 2000 | I24: كشف (1) | J24: محاسبة
B25: 2824 | C25: 2019-08-18 | G25: 1000 | H25: 1000 | I25: براءة ذمة | J25: ترجمة
B26: 2825 | C26: 2019-08-18 | G26: 1500 | H26: 1500 | I26: استكمال رسوم | J26: ترجمة
A27: احلام حمدوني | B27: 2826 | C27: 2019-08-18 | G27: 1000 | H27: 1000 | I27: اعتراض | J27: اعلام
B28: 2827 | C28: 2019-08-18 | D28: 5000 | H28: 5000 | I28: رسم شهادة | J28: معلم صف
B29: 2828 | C29: 2019-08-18 | D29: 2000 | H29: 2000 | I29: كشف (1) | J29: ادارة مشروعات
B30: 2829 | C30: 2019-08-18 | G30: 900 | H30: 900 | I30: استكمال رسوم | J30: محاسبة
B31: 2830 | C31: 2019-08-18 | G31: 3500 | H31: 3500 | I31: استكمال رسوم | J31: ادارة مشروعات
B32: 2831 | C32: 2019-08-18 | G32: 200 | H32: 200 | I32: براءة ذمة | J32: ترجمة
B33: 2832 | C33: 2019-08-18 | D33: 5000 | H33: 5000 | I33: رسم شهادة | J33: ترجمة
B34: 2833 | C34: 2019-08-19 | G34: 1000 | H34: 1000 | I34: اعتراض | J34: محاسبة
B35: 2834 | C35: 2019-08-19 | G35: 2500 | H35: 2500 | I35: استكمال رسوم | J35: ترجمة
B36: 2835 | C36: 2019-08-19 | G36: 1500 | H36: 1500 | I36: استكمال رسوم | J36: ترجمة
B37: 2836 | C37: 2019-08-19 | G37: 1000 | H37: 1000 | I37: استكمال رسوم | J37: ترجمة
B38: 2837 | C38: 2019-08-19 | G38: 1000 | H38: 1000 | I38: استكمال رسوم | J38: ترجمة
B39: 2838 | C39: 2019-08-19 | G39: 2000 | H39: 2000 | I39: استكمال رسوم | J39: ترجمة
B40: 2839 | C40: 2019-08-19 | G40: 4500 | H40: 4500 | I40: استكمال رسوم | J40: ترجمة
B41: 2840 | C41: 2019-08-19 | D41: 2000 | H41: 2000 | I41: كشف (1) | J41: محاسبة
B42: 2841 | C42: 2019-08-19 | G42: 900 | H42: 900 | I42: استكمال رسوم | J42: محاسبة
B43: 2842 | C43: 2019-08-19 | G43: 900 | H43: 900 | I43: استكمال رسوم | J43: محاسبة
B44: 2843 | C44: 2019-08-19 | G44: 5000 | H44: 5000 | I44: استكمال رسوم | J44: ترجمة
B45: 2844 | C45: 2019-08-19 | D45: 2000 | H45: 2000 | I45: كشف (1) | J45: محاسبة
B46: 2845 | C46: 2019-08-19 | G46: 1500 | H46: 1500 | I46: استكمال رسوم | J46: ترجمة
D47: =SUM(D2:D46) -> 35000 | E47: =SUM(E2:E46) -> 0 | F47: =SUM(F2:F46) -> 0 | G47: =SUM(G2:G46) -> 58950 | H47: =SUM(H2:H46) -> 93950

Sheet p10
A1: الاسم | B1: رقم ايصال | C1: تاريخ | D1: مختلفة | E1: تسليف | F1: رسم سنوي | G1: خدمات | H1: مجموع | I1: النوع | J1: القسم
B2: 2846 | C2: 2019-08-19 | G2: 3500 | H2: 3500 | I2: استكمال رسوم | J2: ترجمة
B3: 2847 | C3: 2019-08-19 | G3: 1000 | H3: 1000 | I3: اعتراض | J3: ترجمة
B4: 2848 | C4: 2019-08-19 | G4: 900 | H4: 900 | I4: استكمال رسوم | J4: محاسبة
B5: 2849 | C5: 2019-08-19 | D5: 2000 | H5: 2000 | I5: كشف (1) | J5: محاسبة
B6: 2850 | C6: 2019-08-19 | G6: 2500 | H6: 2500 | I6: استكمال رسوم | J6: ترجمة
B7: 2851 | C7: 2019-08-19 | G7: 900 | H7: 900 | I7: استكمال رسوم | J7: محاسبة
B8: 2852 | C8: 2019-08-19 | G8: 1500 | H8: 1500 | I8: استكمال رسوم | J8: ترجمة
A9: قصي رقيه | B9: 2853 | C9: 2019-08-19 | G9: 1000 | H9: 1000 | I9: اعتراض | J9: اعلام
B10: 2854 | C10: 2019-08-19 | D10: 2000 | H10: 2000 | I10: كشف (1) | J10: محاسبة
B11: 2855 | C11: 2019-08-19 | D11: 5000 | H11: 5000 | I11: كشف (6) | J11: محاسبة
A12: ساره جبر | B12: 2856 | C12: 2019-08-19 | G12: 1000 | H12: 1000 | I12: اعتراض | J12: اعلام
B13: 2857 | C13: 2019-08-19 | G13: 2500 | H13: 2500 | I13: استكمال رسوم | J13: ترجمة
B14: 2858 | C14: 2019-08-20 | D14: 2000 | H14: 2000 | I14: كشف (1) | J14: ترجمة
B15: 2859 | C15: 2019-08-20 | D15: 2000 | H15: 2000 | I15: كشف (1) | J15: ترجمة
B16: 2860 | C16: 2019-08-20 | G16: 900 | H16: 900 | I16: استكمال رسوم | J16: محاسبة
B17: 2861 | C17: 2019-08-20 | D17: 2000 | H17: 2000 | I17: كشف (1) | J17: محاسبة
A18: محمد ملهم حموي | B18: 2862 | C18: 2019-08-20 | G18: 1000 | H18: 1000 | I18: اعتراض | J18: اعلام
B19: 2863 | C19: 2019-08-20 | G19: 1500 | H19: 1500 | I19: استكمال رسوم | J19: ادارة مشروعات
B20: 2864 | C20: 2019-08-20 | D20: 200 | H20: 200 | I20: بدل ضائع بطاقة | J20: ترجمة
B21: 2865 | C21: 2019-08-20 | G21: 2000 | H21: 2000 | I21: استكمال رسوم | J21: ادارة مشروعات
B22: 2866 | C22: 2019-08-20 | G22: 900 | H22: 900 | I22: استكمال رسوم | J22: محاسبة
B23: 2867 | C23: 2019-08-20 | G23: 1000 | H23: 1000 | I23: استكمال رسوم | J23: ترجمة
B24: 2868 | C24: 2019-08-20 | D24: 2000 | H24: 2000 | I24: كشف (1) | J24: رياض اطفال
B25: 2869 | C25: 2019-08-20 | G25: 1000 | H25: 1000 | I25: استكمال رسوم | J25: ترجمة
B26: 2870 | C26: 2019-08-20 | G26: 1500 | H26: 1500 | I26: استكمال رسوم | J26: ترجمة
B27: 2871 | C27: 2019-08-20 | G27: 2500 | H27: 2500 | I27: استكمال رسوم | J27: ترجمة
B28: 2872 | C28: 2019-08-20 | G28: 900 | H28: 900 | I28: استكمال رسوم | J28: محاسبة
B29: 2873 | C29: 2019-08-20 | G29: 900 | H29: 900 | I29: استكمال رسوم | J29: محاسبة
B30: 2874 | C30: 2019-08-20 | D30: 2000 | H30: 2000 | I30: كشف (1) | J30: ادارة مشروعات
A31: غسان الموسى | B31: 2875 | C31: 2019-08-21 | D31: 2000 | H31: 2000 | I31: كشف (1) | J31: اعلام
B32: 2876 | C32: 2019-08-21 | G32: 2500 | H32: 2500 | I32: استكمال رسوم | J32: ترجمة
B33: 2877 | C33: 2019-08-21 | G33: 900 | H33: 900 | I33: استكمال رسوم | J33: محاسبة
B34: 2878 | C34: 2019-08-21 | D34: 2000 | H34: 2000 | I34: كشف (1) | J34: محاسبة
B35: 2879 | C35: 2019-08-21 | D35: 5000 | H35: 5000 | I35: كشف (6) | J35: ترجمة
B36: 2880 | C36: 2019-08-21 | G36: 1000 | H36: 1000 | I36: اعتراض | J36: محاسبة
B37: 2881 | C37: 2019-08-21 | G37: 1500 | H37: 1500 | I37: استكمال رسوم | J37: ترجمة
B38: 2882 | C38: 2019-08-21 | D38: 5000 | H38: 5000 | I38: رسم شهادة | J38: محاسبة
B39: 2883 | C39: 2019-08-21 | G39: 1000 | H39: 1000 | I39: اعتراض | J39: ادارة مشروعات
B40: 2884 | C40: 2019-08-21 | D40: 2000 | H40: 2000 | I40: كشف (1) | J40: محاسبة
B41: 2885 | C41: 2019-08-21 | D41: 5000 | H41: 5000 | I41: رسم شهادة | J41: ترجمة
B42: 2886 | C42: 2019-08-21 | G42: 900 | H42: 900 | I42: استكمال رسوم | J42: محاسبة
B43: 2887 | C43: 2019-08-21 | G43: 1500 | H43: 1500 | I43: استكمال رسوم | J43: ترجمة
A44: عفت شورى | B44: 2888 | C44: 2019-08-21 | D44: 2000 | H44: 2000 | I44: كشف (1) | J44: اعلام
B45: 2889 | C45: 2019-08-21 | G45: 1500 | H45: 1500 | I45: استكمال رسوم | J45: ترجمة
B46: 2890 | C46: 2019-08-21 | G46: 2000 | H46: 2000 | I46: استكمال رسوم | J46: ترجمة
D47: =SUM(D2:D46) -> 42200 | E47: =SUM(E2:E46) -> 0 | F47: =SUM(F2:F46) -> 0 | G47: =SUM(G2:G46) -> 41700 | H47: =SUM(H2:H46) -> 83900

Sheet p11
A1: الاسم | B1: رقم ايصال | C1: تاريخ | D1: مختلفة | E1: تسليف | F1: رسم سنوي | G1: خدمات | H1: مجموع | I1: النوع | J1: القسم
B2: 2891 | C2: 2019-08-21 | G2: 1000 | H2: 1000 | I2: استكمال رسوم | J2: ترجمة
B3: 2892 | C3: 2019-08-21 | G3: 1500 | H3: 1500 | I3: استكمال رسوم | J3: ترجمة
B4: 2893 | C4: 2019-08-21 | D4: 5000 | H4: 5000 | I4: كشف (6) | J4: ترجمة
B5: 2894 | C5: 2019-08-21 | D5: 2000 | H5: 2000 | I5: كشف (1) | J5: محاسبة
B6: 2895 | C6: 2019-08-21 | G6: 2500 | H6: 2500 | I6: استكمال رسوم | J6: ترجمة
B7: 2896 | C7: 2019-08-22 | G7: 1000 | H7: 1000 | I7: اعتراض | J7: محاسبة
B8: 2897 | C8: 2019-08-22 | G8: 2700 | H8: 2700 | I8: استكمال رسوم | J8: ادارة مشروعات
B9: 2898 | C9: 2019-08-22 | D9: 5000 | H9: 5000 | I9: رسم شهادة | J9: معلم صف
B10: 2899 | C10: 2019-08-22 | D10: 2000 | H10: 2000 | I10: كشف (1) | J10: ترجمة
B11: 2900 | C11: 2019-08-22 | G11: 1000 | H11: 1000 | I11: استكمال رسوم | J11: ترجمة
B12: 2901 | C12: 2019-08-22 | D12: 2000 | H12: 2000 | I12: كشف (1) | J12: ترجمة
A13: نعمت طرابزونلي | B13: 2902 | C13: 2019-08-22 | G13: 1000 | H13: 1000 | I13: اعتراض | J13: اعلام
A14: ميرا كريدلي | B14: 2903 | C14: 2019-08-22 | D14: 2000 | H14: 2000 | I14: كشف (1) | J14: اعلام
B15: 2904 | C15: 2019-08-22 | D15: 200 | H15: 200 | I15: بدل ضائع بطاقة | J15: محاسبة
B16: 2905 | C16: 2019-08-22 | G16: 1000 | H16: 1000 | I16: اعتراض | J16: محاسبة
B17: 2906 | C17: 2019-08-22 | G17: 1000 | H17: 1000 | I17: استكمال رسوم | J17: ترجمة
B18: 2907 | C18: 2019-08-22 | D18: 2000 | H18: 2000 | I18: كشف (1) | J18: محاسبة
A19: باسل همكي | B19: 2908 | C19: 2019-08-22 | G19: 1000 | H19: 1000 | I19: اعتراض | J19: اعلام
B20: 2909 | C20: 2019-08-22 | G20: 1000 | H20: 1000 | I20: اعتراض | J20: ادارة مشروعات
B21: 2910 | C21: 2019-08-22 | G21: 1500 | H21: 1500 | I21: استكمال رسوم | J21: ترجمة
B22: 2911 | C22: 2019-08-25 | G22: 3000 | H22: 3000 | I22: استكمال رسوم | J22: ادارة مشروعات
B23: 2912 | C23: 2019-08-25 | G23: 1000 | H23: 1000 | I23: استكمال رسوم | J23: ترجمة
B24: 2913 | C24: 2019-08-25 | G24: 1000 | H24: 1000 | I24: اعتراض | J24: محاسبة
B25: 2914 | C25: 2019-08-25 | G25: 1000 | H25: 1000 | I25: استكمال رسوم | J25: ادارة مشروعات
B26: 2915 | C26: 2019-08-25 | G26: 1000 | H26: 1000 | I26: استكمال رسوم | J26: ترجمة
B27: 2916 | C27: 2019-08-25 | G27: 1500 | H27: 1500 | I27: استكمال رسوم | J27: ترجمة
B28: 2917 | C28: 2019-08-25 | G28: 900 | H28: 900 | I28: استكمال رسوم | J28: محاسبة
A29: علاء سماك | B29: 2918 | C29: 2019-08-25 | G29: 1000 | H29: 1000 | I29: اعتراض | J29: اعلام
A30: علاء سماك | B30: 2919 | C30: 2019-08-25 | G30: 1000 | H30: 1000 | I30: اعتراض | J30: اعلام
B31: 2920 | C31: 2019-08-25 | G31: 1000 | H31: 1000 | I31: استكمال رسوم | J31: ترجمة
B32: 2921 | C32: 2019-08-25 | G32: 1000 | H32: 1000 | I32: اعتراض | J32: ادارة مشروعات
B33: 2922 | C33: 2019-08-25 | D33: 2000 | H33: 2000 | I33: كشف (1) | J33: ترجمة
B34: 2923 | C34: 2019-08-25 | G34: 1000 | H34: 1000 | I34: اعتراض | J34: محاسبة
B35: 2924 | C35: 2019-08-25 | G35: 1000 | H35: 1000 | I35: اعتراض | J35: محاسبة
B36: 2925 | C36: 2019-08-25 | G36: 1000 | H36: 1000 | I36: اعتراض | J36: ادارة مشروعات
B37: 2926 | C37: 2019-08-25 | G37: 2500 | H37: 2500 | I37: استكمال رسوم | J37: ترجمة
B38: 2927 | C38: 2019-08-25 | G38: 900 | H38: 900 | I38: استكمال رسوم | J38: محاسبة
B39: 2928 | C39: 2019-08-25 | G39: 1000 | H39: 1000 | I39: اعتراض | J39: محاسبة
B40: 2929 | C40: 2019-08-25 | D40: 2000 | H40: 2000 | I40: كشف (1) | J40: ادارة مشروعات
B41: 2930 | C41: 2019-08-25 | G41: 1000 | H41: 1000 | I41: استكمال رسوم | J41: ترجمة
B42: 2931 | C42: 2019-08-25 | D42: 2000 | H42: 2000 | I42: كشف (1) | J42: محاسبة
B43: 2932 | C43: 2019-08-25 | G43: 2000 | H43: 2000 | I43: استكمال رسوم | J43: ادارة مشروعات
B44: 2933 | C44: 2019-08-25 | G44: 5000 | H44: 5000 | I44: استكمال رسوم | J44: محاسبة
B45: 2934 | C45: 2019-08-25 | G45: 900 | H45: 900 | I45: استكمال رسوم | J45: محاسبة
B46: 2935 | C46: 2019-08-25 | G46: 1000 | H46: 1000 | I46: اعتراض | J46: ترجمة
D47: =SUM(D2:D46) -> 26200 | E47: =SUM(E2:E46) -> 0 | F47: =SUM(F2:F46) -> 0 | G47: =SUM(G2:G46) -> 46900 | H47: =SUM(H2:H46) -> 73100

Sheet p12
A1: الاسم | B1: رقم ايصال | C1: تاريخ | D1: مختلفة | E1: تسليف | F1: رسم سنوي | G1: خدمات | H1: مجموع | I1: النوع | J1: القسم
B2: 2936 | C2: 2019-08-25 | G2: 1000 | H2: 1000 | I2: استكمال رسوم | J2: ترجمة
B3: 2937 | C3: 2019-08-25 | G3: 1000 | H3: 1000 | I3: اعتراض | J3: ادارة مشروعات
B4: 2938 | C4: 2019-08-25 | G4: 1000 | H4: 1000 | I4: اعتراض | J4: ادارة مشروعات
B5: 2939 | C5: 2019-08-25 | G5: 1500 | H5: 1500 | I5: استكمال رسوم | J5: ترجمة
B6: 2940 | C6: 2019-08-25 | G6: 1000 | H6: 1000 | I6: اعتراض | J6: محاسبة
B7: 2941 | C7: 2019-08-25 | G7: 1000 | H7: 1000 | I7: استكمال رسوم | J7: ترجمة
B8: 2942 | C8: 2019-08-25 | G8: 2000 | H8: 2000 | I8: استكمال رسوم | J8: ادارة مشروعات
B9: 2943 | C9: 2019-08-25 | G9: 1000 | H9: 1000 | I9: استكمال رسوم | J9: ترجمة
B10: 2944 | C10: 2019-08-25 | G10: 1000 | H10: 1000 | I10: اعتراض | J10: ترجمة
B11: 2945 | C11: 2019-08-25 | G11: 1500 | H11: 1500 | I11: استكمال رسوم | J11: ترجمة
B12: 2946 | C12: 2019-08-25 | G12: 4000 | H12: 4000 | I12: استكمال رسوم | J12: ترجمة
B13: 2947 | C13: 2019-08-25 | G13: 2500 | H13: 2500 | I13: استكمال رسوم | J13: ترجمة
B14: 2948 | C14: 2019-08-25 | G14: 2000 | H14: 2000 | I14: استكمال رسوم | J14: ترجمة
B15: 2949 | C15: 2019-08-25 | G15: 4500 | H15: 4500 | I15: استكمال رسوم | J15: ترجمة
B16: 2950 | C16: 2019-08-25 | G16: 900 | H16: 900 | I16: استكمال رسوم | J16: محاسبة
B17: 2951 | C17: 2019-08-25 | G17: 1000 | H17: 1000 | I17: استكمال رسوم | J17: ادارة مشروعات
B18: 2952 | C18: 2019-08-25 | G18: 1000 | H18: 1000 | I18: اعتراض | J18: ادارة مشروعات
B19: 2953 | C19: 2019-08-25 | D19: 5000 | H19: 5000 | I19: كشف (6) | J19: ترجمة
B20: 2954 | C20: 2019-08-25 | D20: 200 | H20: 200 | I20: بدل ضائع بطاقة | J20: ترجمة
B21: 2955 | C21: 2019-08-25 | G21: 4500 | H21: 4500 | I21: استكمال رسوم | J21: ادارة مشروعات
B22: 2956 | C22: 2019-08-25 | G22: 2500 | H22: 2500 | I22: استكمال رسوم | J22: ترجمة
A23: خديجه معمار | B23: 2957 | C23: 2019-08-26 | G23: 1000 | H23: 1000 | I23: اعتراض | J23: اعلام
A24: هزار محمد الخليل | B24: 2958 | C24: 2019-08-26 | G24: 1000 | H24: 1000 | I24: اعتراض | J24: اعلام
A25: هزار محمد الخليل | B25: 2959 | C25: 2019-08-26 | G25: 1000 | H25: 1000 | I25: اعتراض | J25: اعلام
B26: 2960 | C26: 2019-08-26 | G26: 1000 | H26: 1000 | I26: اعتراض | J26: ادارة مشروعات
B27: 2961 | C27: 2019-08-26 | G27: 900 | H27: 900 | I27: استكمال رسوم | J27: محاسبة
B28: 2962 | C28: 2019-08-26 | G28: 1500 | H28: 1500 | I28: استكمال رسوم | J28: ادارة مشروعات
B29: 2963 | C29: 2019-08-26 | G29: 1000 | H29: 1000 | I29: اعتراض | J29: ادارة مشروعات
B30: 2964 | C30: 2019-08-26 | G30: 1000 | H30: 1000 | I30: اعتراض | J30: ادارة مشروعات
A31: عبد الباسط ابو نبوت | B31: 2965 | C31: 2019-08-26 | G31: 1000 | H31: 1000 | I31: اعتراض | J31: اعلام
B32: 2966 | C32: 2019-08-26 | G32: 500 | H32: 500 | I32: استكمال رسوم | J32: ترجمة
B33: 2967 | C33: 2019-08-26 | G33: 2500 | H33: 2500 | I33: استكمال رسوم | J33: ادارة مشروعات
B34: 2968 | C34: 2019-08-26 | G34: 1000 | H34: 1000 | I34: اعتراض | J34: محاسبة
B35: 2969 | C35: 2019-08-26 | G35: 1000 | H35: 1000 | I35: اعتراض | J35: محاسبة
B36: 2970 | C36: 2019-08-26 | G36: 2400 | H36: 2400 | I36: استكمال رسوم | J36: ترجمة
B37: 2971 | C37: 2019-08-26 | G37: 4500 | H37: 4500 | I37: استكمال رسوم | J37: ادارة مشروعات
B38: 2972 | C38: 2019-08-26 | G38: 5000 | H38: 5000 | I38: استكمال رسوم | J38: ادارة مشروعات
B39: 2973 | C39: 2019-08-26 | D39: 2000 | H39: 2000 | I39: كشف (1) | J39: ادارة مشروعات
B40: 2974 | C40: 2019-08-26 | G40: 900 | H40: 900 | I40: استكمال رسوم | J40: محاسبة
B41: 2975 | C41: 2019-08-26 | G41: 1000 | H41: 1000 | I41: اعتراض | J41: محاسبة
B42: 2976 | C42: 2019-08-26 | D42: 2000 | H42: 2000 | I42: كشف (1) | J42: ترجمة
B43: 2977 | C43: 2019-08-26 | G43: 1000 | H43: 1000 | I43: استكمال رسوم | J43: ادارة مشروعات
B44: 2978 | C44: 2019-08-26 | G44: 1000 | H44: 1000 | I44: استكمال رسوم | J44: ادارة مشروعات
B45: 2979 | C45: 2019-08-26 | D45: 5000 | H45: 5000 | I45: بدل ضائع مصدقة (1) | J45: دراسات قانونية
B46: 2980 | C46: 2019-08-26 | D46: 5000 | H46: 5000 | I46: رسم شهادة | J46: ترجمة
D47: =SUM(D2:D46) -> 19200 | E47: =SUM(E2:E46) -> 0 | F47: =SUM(F2:F46) -> 0 | G47: =SUM(G2:G46) -> 65100 | H47: =SUM(H2:H46) -> 84300

Sheet p13
A1: الاسم | B1: رقم ايصال | C1: تاريخ | D1: مختلفة | E1: تسليف | F1: رسم سنوي | G1: خدمات | H1: مجموع | I1: النوع | J1: القسم
B2: 2981 | C2: 2019-08-26 | D2: 2000 | H2: 2000 | I2: كشف (1) | J2: ترجمة
B3: 2982 | C3: 2019-08-26 | G3: 1000 | H3: 1000 | I3: اعتراض | J3: محاسبة
B4: 2983 | C4: 2019-08-26 | G4: 3000 | H4: 3000 | I4: استكمال رسوم | J4: ادارة مشروعات
B5: 2984 | C5: 2019-08-26 | G5: 900 | H5: 900 | I5: استكمال رسوم | J5: محاسبة
B6: 2985 | C6: 2019-08-26 | G6: 1500 | H6: 1500 | I6: استكمال رسوم | J6: ترجمة
B7: 2986 | C7: 2019-08-26 | G7: 1000 | H7: 1000 | I7: اعتراض | J7: ادارة مشروعات
B8: 2987 | C8: 2019-08-26 | G8: 1000 | H8: 1000 | I8: اعتراض | J8: ادارة مشروعات
B9: 2988 | C9: 2019-08-26 | D9: 2000 | H9: 2000 | I9: كشف (1) | J9: محاسبة
B10: 2989 | C10: 2019-08-26 | G10: 1000 | H10: 1000 | I10: اعتراض | J10: ادارة مشروعات
B11: 2990 | C11: 2019-08-26 | G11: 1000 | H11: 1000 | I11: اعتراض | J11: ادارة مشروعات
B12: 2991 | C12: 2019-08-27 | G12: 3500 | H12: 3500 | I12: استكمال رسوم | J12: ترجمة
B13: 2992 | C13: 2019-08-27 | G13: 1000 | H13: 1000 | I13: استكمال رسوم | J13: ترجمة
B14: 2993 | C14: 2019-08-27 | G14: 1000 | H14: 1000 | I14: اعتراض | J14: محاسبة
B15: 2994 | C15: 2019-08-27 | D15: 2000 | H15: 2000 | I15: كشف (1) | J15: محاسبة
B16: 2995 | C16: 2019-08-27 | G16: 1500 | H16: 1500 | I16: استكمال رسوم | J16: ترجمة
B17: 2996 | C17: 2019-08-27 | D17: 5000 | H17: 5000 | I17: رسم شهادة | J17: ترجمة
B18: 2997 | C18: 2019-08-27 | G18: 1000 | H18: 1000 | I18: اعتراض | J18: ترجمة
B19: 2998 | C19: 2019-08-27 | G19: 1000 | H19: 1000 | I19: اعتراض | J19: ترجمة
B20: 2999 | C20: 2019-08-27 | G20: 1000 | H20: 1000 | I20: اعتراض | J20: ترجمة
B21: 3000 | C21: 2019-08-27 | G21: 1000 | H21: 1000 | I21: اعتراض | J21: محاسبة
B22: 3001 | C22: 2019-08-27 | G22: 900 | H22: 900 | I22: استكمال رسوم | J22: محاسبة
B23: 3002 | C23: 2019-08-27 | G23: 3000 | H23: 3000 | I23: استكمال رسوم | J23: ترجمة
B24: 3003 | C24: 2019-08-27 | G24: 1000 | H24: 1000 | I24: اعتراض | J24: ادارة مشروعات
B25: 3004 | C25: 2019-08-27 | G25: 1000 | H25: 1000 | I25: اعتراض | J25: ترجمة
B26: 3005 | C26: 2019-08-27 | G26: 1000 | H26: 1000 | I26: استكمال رسوم | J26: ادارة مشروعات
B27: 3006 | C27: 2019-08-27 | G27: 1000 | H27: 1000 | I27: اعتراض | J27: محاسبة
B28: 3007 | C28: 2019-08-27 | G28: 1000 | H28: 1000 | I28: اعتراض | J28: محاسبة
B29: 3008 | C29: 2019-08-27 | G29: 1000 | H29: 1000 | I29: اعتراض | J29: محاسبة
B30: 3009 | C30: 2019-08-27 | G30: 1000 | H30: 1000 | I30: استكمال رسوم | J30: ترجمة
B31: 3010 | C31: 2019-08-27 | G31: 3500 | H31: 3500 | I31: استكمال رسوم | J31: ادارة مشروعات
B32: 3011 | C32: 2019-08-27 | D32: 5000 | H32: 5000 | I32: رسم شهادة | J32: ترجمة
B33: 3012 | C33: 2019-08-27 | G33: 1000 | H33: 1000 | I33: اعتراض | J33: ادارة مشروعات
B34: 3013 | C34: 2019-08-27 | G34: 1000 | H34: 1000 | I34: اعتراض | J34: ادارة مشروعات
B35: 3014 | C35: 2019-08-27 | G35: 2500 | H35: 2500 | I35: استكمال رسوم | J35: ترجمة
B36: 3015 | C36: 2019-08-27 | G36: 1000 | H36: 1000 | I36: اعتراض | J36: محاسبة
B37: 3016 | C37: 2019-08-27 | G37: 1000 | H37: 1000 | I37: استكمال رسوم | J37: ادارة مشروعات
B38: 3017 | C38: 2019-08-27 | G38: 1000 | H38: 1000 | I38: اعتراض | J38: ترجمة
B39: 3018 | C39: 2019-08-27 | G39: 1000 | H39: 1000 | I39: اعتراض | J39: ترجمة
B40: 3019 | C40: 2019-08-27 | G40: 1000 | H40: 1000 | I40: اعتراض | J40: ترجمة
B41: 3020 | C41: 2019-08-27 | G41: 1000 | H41: 1000 | I41: اعتراض | J41: ادارة مشروعات
B42: 3021 | C42: 2019-08-27 | G42: 1000 | H42: 1000 | I42: اعتراض | J42: محاسبة
B43: 3022 | C43: 2019-08-27 | G43: 1000 | H43: 1000 | I43: استكمال رسوم | J43: ترجمة
B44: 3023 | C44: 2019-08-27 | G44: 1000 | H44: 1000 | I44: اعتراض | J44: ترجمة
B45: 3024 | C45: 2019-08-27 | G45: 1500 | H45: 1500 | I45: استكمال رسوم | J45: ادارة مشروعات
B46: 3025 | C46: 2019-08-27 | G46: 1000 | H46: 1000 | I46: اعتراض | J46: ترجمة
D47: =SUM(D2:D46) -> 16000 | E47: =SUM(E2:E46) -> 0 | F47: =SUM(F2:F46) -> 0 | G47: =SUM(G2:G46) -> 51800 | H47: =SUM(H2:H46) -> 67800

Sheet p14
A1: م | B1: رقم ايصال | C1: تاريخ | D1: مختلفة | E1: تسليف | F1: رسم سنوي | G1: خدمات | H1: مجموع | I1: النوع | J1: القسم
B2: 3026 | C2: 2019-08-27 | G2: 2000 | H2: 2000 | I2: استكمال رسوم | J2: ترجمة
B3: 3027 | C3: 2019-08-27 | G3: 2500 | H3: 2500 | I3: استكمال رسوم | J3: ادارة مشروعات
B4: 3028 | C4: 2019-08-27 | G4: 1000 | H4: 1000 | I4: اعتراض | J4: محاسبة
B5: 3029 | C5: 2019-08-27 | G5: 1000 | H5: 1000 | I5: اعتراض | J5: ادارة مشروعات
B6: 3030 | C6: 2019-08-27 | G6: 3000 | H6: 3000 | I6: استكمال رسوم | J6: ترجمة
B7: 3031 | C7: 2019-08-27 | G7: 500 | H7: 500 | I7: استكمال رسوم | J7: ترجمة
B8: 3032 | C8: 2019-08-27 | G8: 1000 | H8: 1000 | I8: اعتراض | J8: محاسبة
B9: 3033 | C9: 2019-08-27 | G9: 1000 | H9: 1000 | I9: اعتراض | J9: ترجمة
B10: 3034 | C10: 2019-08-27 | G10: 1000 | H10: 1000 | I10: اعتراض | J10: محاسبة
B11: 3035 | C11: 2019-08-27 | G11: 3000 | H11: 3000 | I11: استكمال رسوم | J11: ترجمة
B12: 3036 | C12: 2019-08-27 | G12: 900 | H12: 900 | I12: استكمال رسوم | J12: محاسبة
B13: 3037 | C13: 2019-08-27 | D13: 2000 | H13: 2000 | I13: كشف (1) | J13: محاسبة
B14: 3038 | C14: 2019-08-27 | G14: 1000 | H14: 1000 | I14: استكمال رسوم | J14: ادارة مشروعات
B15: 3039 | C15: 2019-08-27 | G15: 1000 | H15: 1000 | I15: اعتراض | J15: محاسبة
B16: 3040 | C16: 2019-08-27 | G16: 1000 | H16: 1000 | I16: اعتراض | J16: ترجمة
B17: 3041 | C17: 2019-08-27 | G17: 5000 | H17: 5000 | I17: استكمال رسوم | J17: ادارة مشروعات
A18: وهيبه العيسى | B18: 3042 | C18: 2019-08-27 | G18: 1000 | H18: 1000 | I18: اعتراض | J18: اعلام
A19: وهيبه العيسى | B19: 3043 | C19: 2019-08-27 | G19: 1000 | H19: 1000 | I19: اعتراض | J19: اعلام
B20: 3044 | C20: 2019-08-27 | G20: 1500 | H20: 1500 | I20: استكمال رسوم | J20: ترجمة
B21: 3045 | C21: 2019-08-27 | G21: 1000 | H21: 1000 | I21: اعتراض | J21: ادارة مشروعات
B22: 3046 | C22: 2019-08-27 | G22: 1000 | H22: 1000 | I22: اعتراض | J22: ترجمة
B23: 3047 | C23: 2019-08-27 | G23: 1000 | H23: 1000 | I23: اعتراض | J23: ترجمة
B24: 3048 | C24: 2019-08-27 | G24: 1000 | H24: 1000 | I24: اعتراض | J24: محاسبة
B25: 3049 | C25: 2019-08-27 | G25: 1000 | H25: 1000 | I25: اعتراض | J25: محاسبة
B26: 3050 | C26: 2019-08-27 | G26: 1000 | H26: 1000 | I26: استكمال رسوم | J26: ترجمة
A27: ريام رؤوف | B27: 3051 | C27: 2019-08-27 | D27: 2000 | H27: 2000 | I27: كشف (1) | J27: اعلام
B28: 3052 | C28: 2019-08-27 | G28: 1500 | H28: 1500 | I28: استكمال رسوم | J28: ترجمة
B29: 3053 | C29: 2019-08-28 | G29: 900 | H29: 900 | I29: استكمال رسوم | J29: محاسبة
B30: 3054 | C30: 2019-08-28 | G30: 1000 | H30: 1000 | I30: اعتراض | J30: ترجمة
B31: 3055 | C31: 2019-08-28 | G31: 1000 | H31: 1000 | I31: اعتراض | J31: محاسبة
B32: 3056 | C32: 2019-08-28 | G32: 1000 | H32: 1000 | I32: استكمال رسوم | J32: ترجمة
B33: 3057 | C33: 2019-08-28 | G33: 1000 | H33: 1000 | I33: استكمال رسوم | J33: ترجمة
B34: 3058 | C34: 2019-08-28 | D34: 5000 | H34: 5000 | I34: رسم شهادة | J34: ترجمة
B35: 3059 | C35: 2019-08-28 | G35: 900 | H35: 900 | I35: استكمال رسوم | J35: محاسبة
B36: 3060 | C36: 2019-08-28 | G36: 5000 | H36: 5000 | I36: استكمال رسوم | J36: محاسبة
B37: 3061 | C37: 2019-08-28 | G37: 1000 | H37: 1000 | I37: اعتراض | J37: ترجمة
B38: 3062 | C38: 2019-08-28 | G38: 1000 | H38: 1000 | I38: استكمال رسوم | J38: ترجمة
B39: 3063 | C39: 2019-08-28 | G39: 900 | H39: 900 | I39: استكمال رسوم | J39: محاسبة
B40: 3064 | C40: 2019-08-28 | G40: 1000 | H40: 1000 | I40: اعتراض | J40: ترجمة
B41: 3065 | C41: 2019-08-28 | G41: 1000 | H41: 1000 | I41: اعتراض | J41: ترجمة
B42: 3066 | C42: 2019-08-28 | G42: 1000 | H42: 1000 | I42: اعتراض | J42: محاسبة
B43: 3067 | C43: 2019-08-28 | G43: 1000 | H43: 1000 | I43: اعتراض | J43: محاسبة
B44: 3068 | C44: 2019-08-28 | G44: 1000 | H44: 1000 | I44: اعتراض | J44: محاسبة
B45: 3069 | C45: 2019-08-28 | G45: 1000 | H45: 1000 | I45: اعتراض | J45: محاسبة
B46: 3070 | C46: 2019-08-28 | G46: 1500 | H46: 1500 | I46: استكمال رسوم | J46: ترجمة
D47: =SUM(D2:D46) -> 9000 | E47: =SUM(E2:E46) -> 0 | F47: =SUM(F2:F46) -> 0 | G47: =SUM(G2:G46) -> 57100 | H47: =SUM(H2:H46) -> 66100

Sheet p15
A1: الاسم | B1: رقم ايصال | C1: تاريخ | D1: مختلفة | E1: تسليف | F1: رسم سنوي | G1: خدمات | H1: مجموع | I1: النوع | J1: القسم
B2: 3071 | C2: 2019-08-28 | G2: 1000 | H2: 1000 | I2: اعتراض | J2: محاسبة
B3: 3072 | C3: 2019-08-28 | G3: 1000 | H3: 1000 | I3: اعتراض | J3: محاسبة
B4: 3073 | C4: 2019-08-28 | G4: 3000 | H4: 3000 | I4: استكمال رسوم | J4: ادارة مشروعات
B5: 3074 | C5: 2019-08-28 | G5: 3500 | H5: 3500 | I5: استكمال رسوم | J5: ادارة مشروعات
B6: 3075 | C6: 2019-08-28 | G6: 1000 | H6: 1000 | I6: اعتراض | J6: ترجمة
B7: 3076 | C7: 2019-08-28 | G7: 1000 | H7: 1000 | I7: اعتراض | J7: ترجمة
B8: 3077 | C8: 2019-08-28 | G8: 1000 | H8: 1000 | I8: اعتراض | J8: ترجمة
B9: 3078 | C9: 2019-08-28 | G9: 1000 | H9: 1000 | I9: اعتراض | J9: ترجمة
B10: 3079 | C10: 2019-08-28 | G10: 1000 | H10: 1000 | I10: اعتراض | J10: ترجمة
B11: 3080 | C11: 2019-08-28 | G11: 1000 | H11: 1000 | I11: استكمال رسوم | J11: ادارة مشروعات
B12: 3081 | C12: 2019-08-28 | G12: 1000 | H12: 1000 | I12: اعتراض | J12: ادارة مشروعات
B13: 3082 | C13: 2019-08-28 | G13: 900 | H13: 900 | I13: استكمال رسوم | J13: محاسبة
B14: 3083 | C14: 2019-08-28 | G14: 1000 | H14: 1000 | I14: استكمال رسوم | J14: ترجمة
B15: 3084 | C15: 2019-08-28 | G15: 1000 | H15: 1000 | I15: اعتراض | J15: ترجمة
B16: 3085 | C16: 2019-08-28 | G16: 1000 | H16: 1000 | I16: اعتراض | J16: ترجمة
B17: 3086 | C17: 2019-08-28 | G17: 900 | H17: 900 | I17: استكمال رسوم | J17: محاسبة
B18: 3087 | C18: 2019-08-28 | G18: 900 | H18: 900 | I18: استكمال رسوم | J18: محاسبة
B19: 3088 | C19: 2019-08-28 | D19: 5000 | H19: 5000 | I19: كشف (6) | J19: محاسبة
B20: 3089 | C20: 2019-08-28 | D20: 2000 | H20: 2000 | I20: كشف (1) | J20: ترجمة
B21: 3090 | C21: 2019-08-28 | D21: 2000 | H21: 2000 | I21: كشف (1) | J21: محاسبة
B22: 3091 | C22: 2019-08-28 | G22: 1000 | H22: 1000 | I22: اعتراض | J22: ادارة مشروعات
B23: 3092 | C23: 2019-08-28 | G23: 1000 | H23: 1000 | I23: اعتراض | J23: ترجمة
B24: 3093 | C24: 2019-08-28 | D24: 2000 | H24: 2000 | I24: كشف (1) | J24: محاسبة
B25: 3094 | C25: 2019-08-28 | G25: 1500 | H25: 1500 | I25: استكمال رسوم | J25: ترجمة
B26: 3095 | C26: 2019-08-28 | G26: 1000 | H26: 1000 | I26: اعتراض | J26: ادارة مشروعات
B27: 3096 | C27: 2019-08-28 | G27: 1000 | H27: 1000 | I27: استكمال رسوم | J27: ادارة مشروعات
B28: 3097 | C28: 2019-08-28 | G28: 1000 | H28: 1000 | I28: اعتراض | J28: محاسبة
B29: 3098 | C29: 2019-08-29 | G29: 1500 | H29: 1500 | I29: استكمال رسوم | J29: ترجمة
B30: 3099 | C30: 2019-08-29 | G30: 1000 | H30: 1000 | I30: استكمال رسوم | J30: ادارة مشروعات
B31: 3100 | C31: 2019-08-29 | G31: 900 | H31: 900 | I31: استكمال رسوم | J31: محاسبة
B32: 3101 | C32: 2019-08-29 | G32: 1000 | H32: 1000 | I32: استكمال رسوم | J32: ترجمة
B33: 3102 | C33: 2019-08-29 | G33: 1000 | H33: 1000 | I33: استكمال رسوم | J33: ادارة مشروعات
B34: 3103 | C34: 2019-08-29 | G34: 3200 | H34: 3200 | I34: براءة ذمة | J34: ترجمة
B35: 3104 | C35: 2019-08-29 | G35: 3000 | H35: 3000 | I35: استكمال رسوم | J35: ادارة مشروعات
B36: 3105 | C36: 2019-08-29 | G36: 900 | H36: 900 | I36: استكمال رسوم | J36: محاسبة
B37: 3106 | C37: 2019-08-29 | G37: 2000 | H37: 2000 | I37: استكمال رسوم | J37: ادارة مشروعات
B38: 3107 | C38: 2019-08-29 | G38: 500 | H38: 500 | I38: استكمال رسوم | J38: ادارة مشروعات
B39: 3108 | C39: 2019-08-29 | G39: 3500 | H39: 3500 | I39: استكمال رسوم | J39: ادارة مشروعات
B40: 3109 | C40: 2019-08-29 | G40: 1000 | H40: 1000 | I40: اعتراض | J40: ادارة مشروعات
B41: 3110 | C41: 2019-08-29 | G41: 3000 | H41: 3000 | I41: استكمال رسوم | J41: ادارة مشروعات
B42: 3111 | C42: 2019-08-29 | D42: 2000 | H42: 2000 | I42: كشف (1) | J42: ادارة مشروعات
B43: 3112 | C43: 2019-08-29 | D43: 2000 | H43: 2000 | I43: كشف (1) | J43: محاسبة
B44: 3113 | C44: 2019-08-29 | G44: 1000 | H44: 1000 | I44: استكمال رسوم | J44: ادارة مشروعات
B45: 3114 | C45: 2019-08-29 | D45: 2000 | H45: 2000 | I45: كشف (1) | J45: محاسبة
B46: 3115 | C46: 2019-08-29 | G46: 1000 | H46: 1000 | I46: اعتراض | J46: محاسبة
D47: =SUM(D2:D46) -> 17000 | E47: =SUM(E2:E46) -> 0 | F47: =SUM(F2:F46) -> 0 | G47: =SUM(G2:G46) -> 52200 | H47: =SUM(H2:H46) -> 69200

Sheet p16
A1: الاسم | B1: رقم ايصال | C1: تاريخ | D1: مختلفة | E1: تسليف | F1: رسم سنوي | G1: خدمات | H1: مجموع | I1: النوع | J1: القسم
B2: 3116 | C2: 2019-08-29 | D2: 2000 | H2: 2000 | I2: كشف (1) | J2: محاسبة
B3: 3117 | C3: 2019-08-29 | D3: 5000 | H3: 5000 | I3: رسم شهادة | J3: محاسبة
B4: 3118 | C4: 2019-08-29 | G4: 1000 | H4: 1000 | I4: اعتراض | J4: ترجمة
B5: 3119 | C5: 2019-08-29 | G5: 1750 | H5: 1750 | I5: استكمال رسوم | J5: ادارة مشروعات
B6: 3120 | C6: 2019-08-29 | D6: 5000 | H6: 5000 | I6: كشف (6) | J6: محاسبة
B7: 3121 | C7: 2019-08-29 | G7: 1000 | H7: 1000 | I7: اعتراض | J7: ترجمة
B8: 3122 | C8: 2019-08-29 | G8: 1500 | H8: 1500 | I8: استكمال رسوم | J8: ادارة مشروعات
B9: 3123 | C9: 2019-08-29 | G9: 1000 | H9: 1000 | I9: اعتراض | J9: ادارة مشروعات
B10: 3124 | C10: 2019-08-29 | G10: 2500 | H10: 2500 | I10: استكمال رسوم | J10: ادارة مشروعات
B11: 3125 | C11: 2019-08-29 | G11: 1000 | H11: 1000 | I11: استكمال رسوم | J11: ادارة مشروعات
B12: 3126 | C12: 2019-08-29 | D12: 5000 | H12: 5000 | I12: بدل ضائع مصدقة (1) | J12: معلم صف
B13: 3127 | C13: 2019-08-29 | G13: 1000 | H13: 1000 | I13: اعتراض | J13: ادارة مشروعات
B14: 3128 | C14: 2019-08-29 | G14: 1000 | H14: 1000 | I14: اعتراض | J14: محاسبة
B15: 3129 | C15: 2019-08-29 | G15: 1000 | H15: 1000 | I15: اعتراض | J15: محاسبة
B16: 3130 | C16: 2019-08-29 | G16: 1000 | H16: 1000 | I16: اعتراض | J16: ترجمة
B17: 3131 | C17: 2019-08-29 | G17: 3000 | H17: 3000 | I17: استكمال رسوم | J17: ادارة مشروعات
B18: 3132 | C18: 2019-08-29 | D18: 2000 | H18: 2000 | I18: كشف (1) | J18: محاسبة
B19: 3133 | C19: 2019-08-29 | G19: 1500 | H19: 1500 | I19: استكمال رسوم | J19: ترجمة
B20: 3134 | C20: 2019-08-29 | G20: 1000 | H20: 1000 | I20: اعتراض | J20: محاسبة
B21: 3135 | C21: 2019-08-29 | G21: 1000 | H21: 1000 | I21: اعتراض | J21: ترجمة
B22: 3136 | C22: 2019-08-29 | G22: 1000 | H22: 1000 | I22: اعتراض | J22: ادارة مشروعات
B23: 3137 | C23: 2019-08-29 | G23: 1000 | H23: 1000 | I23: اعتراض | J23: ادارة مشروعات
B24: 3138 | C24: 2019-08-29 | G24: 1000 | H24: 1000 | I24: اعتراض | J24: ادارة مشروعات
B25: 3139 | C25: 2019-08-29 | D25: 200 | H25: 200 | I25: بدل ضائع بطاقة | J25: ترجمة
B26: 3140 | C26: 2019-08-29 | G26: 1000 | H26: 1000 | I26: اعتراض | J26: ادارة مشروعات
B27: 3141 | C27: 2019-08-29 | G27: 4000 | H27: 4000 | I27: استكمال رسوم | J27: ادارة مشروعات
B28: 3142 | C28: 2019-08-29 | G28: 900 | H28: 900 | I28: استكمال رسوم | J28: ترجمة
B29: 3143 | C29: 2019-08-29 | G29: 1000 | H29: 1000 | I29: استكمال رسوم | J29: ترجمة
B30: 3144 | C30: 2019-08-29 | G30: 1000 | H30: 1000 | I30: اعتراض | J30: ترجمة
B31: 3145 | C31: 2019-08-29 | D31: 2000 | H31: 2000 | I31: كشف (1) | J31: ادارة مشروعات
B32: 3146 | C32: 2019-08-29 | G32: 1500 | H32: 1500 | I32: استكمال رسوم | J32: ادارة مشروعات
B33: 3147 | C33: 2019-08-29 | D33: 2000 | H33: 2000 | I33: كشف (1) | J33: محاسبة
B34: 3148 | C34: 2019-08-29 | G34: 2500 | H34: 2500 | I34: استكمال رسوم | J34: ادارة مشروعات
B35: 3149 | C35: 2019-08-29 | G35: 1000 | H35: 1000 | I35: اعتراض | J35: محاسبة
B36: 3150 | C36: 2019-08-29 | G36: 1000 | H36: 1000 | I36: اعتراض | J36: ادارة مشروعات
B37: 3151 | C37: 2019-08-29 | G37: 1000 | H37: 1000 | I37: اعتراض | J37: محاسبة
B38: 3152 | C38: 2019-08-29 | G38: 1000 | H38: 1000 | I38: اعتراض | J38: محاسبة
B39: 3153 | C39: 2019-08-29 | G39: 1000 | H39: 1000 | I39: اعتراض | J39: ترجمة
B40: 3154 | C40: 2019-08-29 | D40: 2000 | H40: 2000 | I40: كشف (1) | J40: محاسبة
B41: 3155 | C41: 2019-08-29 | G41: 1000 | H41: 1000 | I41: اعتراض | J41: ترجمة
B42: 3156 | C42: 2019-08-29 | G42: 1000 | H42: 1000 | I42: اعتراض | J42: ترجمة
B43: 3157 | C43: 2019-08-29 | G43: 2500 | H43: 2500 | I43: استكمال رسوم | J43: ترجمة
B44: 3158 | C44: 2019-08-29 | G44: 1000 | H44: 1000 | I44: اعتراض | J44: ترجمة
B45: 3159 | C45: 2019-09-02 | G45: 1000 | H45: 1000 | I45: اعتراض | J45: ادارة مشروعات
B46: 3160 | C46: 2019-09-02 | G46: 1000 | H46: 1000 | I46: اعتراض | J46: ادارة مشروعات
D47: =SUM(D2:D46) -> 25200 | E47: =SUM(E2:E46) -> 0 | F47: =SUM(F2:F46) -> 0 | G47: =SUM(G2:G46) -> 47650 | H47: =SUM(H2:H46) -> 72850

Sheet p17
A1: م | B1: رقم ايصال | C1: تاريخ | D1: مختلفة | E1: تسليف | F1: رسم سنوي | G1: خدمات | H1: مجموع | I1: النوع | J1: القسم
B2: 3161 | C2: 2019-09-02 | G2: 3000 | H2: 3000 | I2: استكمال رسوم | J2: ادارة مشروعات
B3: 3162 | C3: 2019-09-02 | G3: 1000 | H3: 1000 | I3: اعتراض | J3: محاسبة
B4: 3163 | C4: 2019-09-02 | G4: 1000 | H4: 1000 | I4: اعتراض | J4: محاسبة
B5: 3164 | C5: 2019-09-02 | G5: 900 | H5: 900 | I5: استكمال رسوم | J5: محاسبة
B6: 3165 | C6: 2019-09-02 | G6: 1000 | H6: 1000 | I6: اعتراض | J6: ترجمة
B7: 3166 | C7: 2019-09-02 | G7: 1000 | H7: 1000 | I7: اعتراض | J7: ترجمة
B8: 3167 | C8: 2019-09-02 | G8: 1000 | H8: 1000 | I8: اعتراض | J8: ترجمة
B9: 3168 | C9: 2019-09-02 | G9: 1500 | H9: 1500 | I9: استكمال رسوم | J9: ادارة مشروعات
B10: 3169 | C10: 2019-09-02 | G10: 4500 | H10: 4500 | I10: استكمال رسوم | J10: ادارة مشروعات
B11: 3170 | C11: 2019-09-02 | G11: 900 | H11: 900 | I11: استكمال رسوم | J11: محاسبة
B12: 3171 | C12: 2019-09-02 | G12: 1000 | H12: 1000 | I12: اعتراض | J12: محاسبة
B13: 3172 | C13: 2019-09-02 | G13: 1000 | H13: 1000 | I13: اعتراض | J13: ترجمة
B14: 3173 | C14: 2019-09-02 | G14: 900 | H14: 900 | I14: استكمال رسوم | J14: محاسبة
B15: 3174 | C15: 2019-09-02 | G15: 1000 | H15: 1000 | I15: اعتراض | J15: ترجمة
B16: 3175 | C16: 2019-09-02 | G16: 1000 | H16: 1000 | I16: اعتراض | J16: محاسبة
B17: 3176 | C17: 2019-09-02 | G17: 900 | H17: 900 | I17: استكمال رسوم | J17: محاسبة
B18: 3177 | C18: 2019-09-02 | G18: 1000 | H18: 1000 | I18: اعتراض | J18: ترجمة
B19: 3178 | C19: 2019-09-02 | G19: 1000 | H19: 1000 | I19: اعتراض | J19: محاسبة
B20: 3179 | C20: 2019-09-02 | G20: 1000 | H20: 1000 | I20: اعتراض | J20: محاسبة
B21: 3180 | C21: 2019-09-02 | G21: 1000 | H21: 1000 | I21: اعتراض | J21: ترجمة
B22: 3181 | C22: 2019-09-02 | G22: 1000 | H22: 1000 | I22: اعتراض | J22: محاسبة
B23: 3182 | C23: 2019-09-02 | G23: 3000 | H23: 3000 | I23: استكمال رسوم | J23: ترجمة
B24: 3183 | C24: 2019-09-02 | D24: 2000 | H24: 2000 | I24: كشف (1) | J24: محاسبة
A25: عبدو القزق | B25: 3184 | C25: 2019-09-02 | G25: 1000 | H25: 1000 | I25: اعتراض | J25: اعلام
A26: عبدو القزق | B26: 3185 | C26: 2019-09-02 | G26: 1000 | H26: 1000 | I26: اعتراض | J26: اعلام
B27: 3186 | C27: 2019-09-02 | G27: 6500 | H27: 6500 | I27: استكمال رسوم | J27: ترجمة
B28: 3187 | C28: 2019-09-02 | G28: 1000 | H28: 1000 | I28: اعتراض | J28: محاسبة
B29: 3188 | C29: 2019-09-02 | G29: 1000 | H29: 1000 | I29: اعتراض | J29: محاسبة
B30: 3189 | C30: 2019-09-02 | G30: 1000 | H30: 1000 | I30: اعتراض | J30: محاسبة
B31: 3190 | C31: 2019-09-02 | G31: 1000 | H31: 1000 | I31: اعتراض | J31: محاسبة
B32: 3191 | C32: 2019-09-02 | G32: 1000 | H32: 1000 | I32: اعتراض | J32: محاسبة
B33: 3192 | C33: 2019-09-02 | G33: 1000 | H33: 1000 | I33: اعتراض | J33: ادارة مشروعات
B34: 3193 | C34: 2019-09-02 | D34: 2000 | H34: 2000 | I34: كشف (1) | J34: محاسبة
B35: 3194 | C35: 2019-09-02 | G35: 1000 | H35: 1000 | I35: اعتراض | J35: محاسبة
B36: 3195 | C36: 2019-09-02 | G36: 1000 | H36: 1000 | I36: اعتراض | J36: محاسبة
B37: 3196 | C37: 2019-09-02 | G37: 1000 | H37: 1000 | I37: اعتراض | J37: ادارة مشروعات
B38: 3197 | C38: 2019-09-02 | G38: 1000 | H38: 1000 | I38: اعتراض | J38: ادارة مشروعات
B39: 3198 | C39: 2019-09-02 | G39: 1000 | H39: 1000 | I39: اعتراض | J39: ترجمة
B40: 3199 | C40: 2019-09-02 | G40: 900 | H40: 900 | I40: استكمال رسوم | J40: محاسبة
B41: 3200 | C41: 2019-09-02 | G41: 1200 | H41: 1200 | I41: براءة ذمة | J41: ترجمة
B42: 3201 | C42: 2019-09-02 | D42: 3000 | H42: 3000 | I42: رسم اختبار ماجستير | J42: ادارة مشروعات
B43: 3202 | C43: 2019-09-02 | G43: 1000 | H43: 1000 | I43: اعتراض | J43: محاسبة
B44: 3203 | C44: 2019-09-02 | G44: 1000 | H44: 1000 | I44: اعتراض | J44: محاسبة
B45: 3204 | C45: 2019-09-02 | G45: 2000 | H45: 2000 | I45: استكمال رسوم | J45: ادارة مشروعات
B46: 3205 | C46: 2019-09-02 | G46: 1000 | H46: 1000 | I46: استكمال رسوم | J46: ادارة مشروعات
D47: =SUM(D2:D46) -> 7000 | E47: =SUM(E2:E46) -> 0 | F47: =SUM(F2:F46) -> 0 | G47: =SUM(G2:G46) -> 56200 | H47: =SUM(H2:H46) -> 63200

Sheet p18
A1: الاسم | B1: رقم ايصال | C1: تاريخ | D1: مختلفة | E1: تسليف | F1: رسم سنوي | G1: خدمات | H1: مجموع | I1: النوع | J1: القسم
B2: 3206 | C2: 2019-09-02 | D2: 3000 | H2: 3000 | I2: رسم اختبار ماجستير | J2: ادارة مشروعات
B3: 3207 | C3: 2019-09-02 | G3: 1000 | H3: 1000 | I3: اعتراض | J3: ترجمة
A4: مارينا منصور | B4: 3208 | C4: 2019-09-02 | G4: 1000 | H4: 1000 | I4: اعتراض | J4: اعلام
B5: 3209 | C5: 2019-09-02 | G5: 1000 | H5: 1000 | I5: اعتراض | J5: محاسبة | L5: =SUM(H2:H46) -> 58100
B6: 3210 | C6: 2019-09-02 | G6: 1000 | H6: 1000 | I6: استكمال رسوم | J6: ادارة مشروعات
B7: 3211 | C7: 2019-09-02 | G7: 900 | H7: 900 | I7: استكمال رسوم | J7: محاسبة
B8: 3212 | C8: 2019-09-02 | G8: 1000 | H8: 1000 | I8: اعتراض | J8: ترجمة
B9: 3213 | C9: 2019-09-02 | G9: 1000 | H9: 1000 | I9: اعتراض | J9: ترجمة
A10: مجد الصفدي | B10: 3214 | C10: 2019-09-02 | G10: 1000 | H10: 1000 | I10: اعتراض | J10: اعلام
B11: 3215 | C11: 2019-09-02 | G11: 1000 | H11: 1000 | I11: اعتراض | J11: ادارة مشروعات
B12: 3216 | C12: 2019-09-02 | G12: 1000 | H12: 1000 | I12: اعتراض | J12: ادارة مشروعات
A13: ملهم الجمال | B13: 3217 | C13: 2019-09-02 | G13: 1000 | H13: 1000 | I13: اعتراض | J13: اعلام
B14: 3218 | C14: 2019-09-02 | G14: 1000 | H14: 1000 | I14: استكمال رسوم | J14: ترجمة
B15: 3219 | C15: 2019-09-02 | G15: 1000 | H15: 1000 | I15: اعتراض | J15: محاسبة
B16: 3220 | C16: 2019-09-02 | G16: 1000 | H16: 1000 | I16: اعتراض | J16: ادارة مشروعات
B17: 3221 | C17: 2019-09-02 | G17: 1000 | H17: 1000 | I17: اعتراض | J17: ادارة مشروعات
B18: 3222 | C18: 2019-09-02 | G18: 900 | H18: 900 | I18: استكمال رسوم | J18: محاسبة
B19: 3223 | C19: 2019-09-02 | G19: 4500 | H19: 4500 | I19: استكمال رسوم | J19: محاسبة
B20: 3224 | C20: 2019-09-02 | G20: 1000 | H20: 1000 | I20: استكمال رسوم | J20: ادارة مشروعات
B21: 3225 | C21: 2019-09-02 | G21: 1000 | H21: 1000 | I21: استكمال رسوم | J21: ادارة مشروعات
B22: 3226 | C22: 2019-09-02 | G22: 2000 | H22: 2000 | I22: استكمال رسوم | J22: ترجمة
B23: 3227 | C23: 2019-09-02 | G23: 1000 | H23: 1000 | I23: اعتراض | J23: محاسبة
B24: 3228 | C24: 2019-09-02 | G24: 1000 | H24: 1000 | I24: اعتراض | J24: ترجمة
B25: 3229 | C25: 2019-09-02 | G25: 1000 | H25: 1000 | I25: اعتراض | J25: ترجمة
B26: 3230 | C26: 2019-09-02 | G26: 2000 | H26: 2000 | I26: استكمال رسوم | J26: ادارة مشروعات
B27: 3231 | C27: 2019-09-02 | G27: 1000 | H27: 1000 | I27: اعتراض | J27: ترجمة
B28: 3232 | C28: 2019-09-02 | G28: 1000 | H28: 1000 | I28: اعتراض | J28: محاسبة
A29: بشار مرهج | B29: 3233 | C29: 2019-09-02 | G29: 1000 | H29: 1000 | I29: اعتراض | J29: اعلام
A30: بشار مرهج | B30: 3234 | C30: 2019-09-02 | D30: 2000 | H30: 2000 | I30: كشف (1) | J30: اعلام
B31: 3235 | C31: 2019-09-02 | D31: 5000 | H31: 5000 | I31: رسم شهادة | J31: محاسبة
B32: 3236 | C32: 2019-09-02 | G32: 1000 | H32: 1000 | I32: اعتراض | J32: محاسبة
B33: 3237 | C33: 2019-09-02 | G33: 1000 | H33: 1000 | I33: اعتراض | J33: محاسبة
B34: 3238 | C34: 2019-09-03 | G34: 900 | H34: 900 | I34: استكمال رسوم | J34: محاسبة
B35: 3239 | C35: 2019-09-03 | G35: 1000 | H35: 1000 | I35: اعتراض | J35: ادارة مشروعات
B36: 3240 | C36: 2019-09-03 | D36: 2000 | H36: 2000 | I36: كشف (1) | J36: ادارة مشروعات
B37: 3241 | C37: 2019-09-03 | G37: 900 | H37: 900 | I37: استكمال رسوم | J37: محاسبة
B38: 3242 | C38: 2019-09-03 | G38: 1000 | H38: 1000 | I38: اعتراض | J38: ترجمة
B39: 3243 | C39: 2019-09-03 | G39: 1000 | H39: 1000 | I39: اعتراض | J39: ترجمة
B40: 3244 | C40: 2019-09-03 | G40: 1000 | H40: 1000 | I40: استكمال رسوم | J40: ترجمة
B41: 3245 | C41: 2019-09-03 | G41: 1000 | H41: 1000 | I41: اعتراض | J41: ترجمة
B42: 3246 | C42: 2019-09-03 | G42: 1000 | H42: 1000 | I42: اعتراض | J42: ترجمة
B43: 3247 | C43: 2019-09-03 | G43: 1000 | H43: 1000 | I43: اعتراض | J43: محاسبة
B44: 3248 | C44: 2019-09-03 | G44: 1000 | H44: 1000 | I44: اعتراض | J44: ادارة مشروعات
B45: 3249 | C45: 2019-09-03 | G45: 1000 | H45: 1000 | I45: اعتراض | J45: محاسبة
B46: 3250 | C46: 2019-09-03 | G46: 1000 | H46: 1000 | I46: اعتراض | J46: محاسبة
D47: =SUM(D2:D46) -> 12000 | E47: =SUM(E2:E46) -> 0 | F47: =SUM(F2:F46) -> 0 | G47: =SUM(G2:G46) -> 46100 | H47: =SUM(H2:H46) -> 58100

Sheet p19
A1: الاسم | B1: رقم ايصال | C1: تاريخ | D1: مختلفة | E1: تسليف | F1: رسم سنوي | G1: خدمات | H1: مجموع | I1: النوع | J1: القسم
B2: 3251 | C2: 2019-09-03 | G2: 1000 | H2: 1000 | I2: اعتراض | J2: محاسبة
B3: 3252 | C3: 2019-09-03 | G3: 1000 | H3: 1000 | I3: اعتراض | J3: محاسبة
B4: 3253 | C4: 2019-09-03 | G4: 900 | H4: 900 | I4: استكمال رسوم | J4: محاسبة
A5: عز الدين قدور | B5: 3254 | C5: 2019-09-03 | G5: 1000 | H5: 1000 | I5: اعتراض | J5: اعلام
A6: عز الدين قدور | B6: 3255 | C6: 2019-09-03 | G6: 1000 | H6: 1000 | I6: اعتراض | J6: اعلام
B7: 3256 | C7: 2019-09-03 | G7: 1000 | H7: 1000 | I7: استكمال رسوم | J7: ترجمة
B8: 3257 | C8: 2019-09-03 | D8: 200 | H8: 200 | I8: بدل ضائع بطاقة | J8: ادارة مشروعات
B9: 3258 | C9: 2019-09-03 | G9: 900 | H9: 900 | I9: استكمال رسوم | J9: محاسبة
B10: 3259 | C10: 2019-09-03 | D10: 2000 | H10: 2000 | I10: كشف (1) | J10: محاسبة
B11: 3260 | C11: 2019-09-03 | G11: 1000 | H11: 1000 | I11: اعتراض | J11: ترجمة
B12: 3261 | C12: 2019-09-03 | G12: 1000 | H12: 1000 | I12: اعتراض | J12: ترجمة
B13: 3262 | C13: 2019-09-03 | G13: 2400 | H13: 2400 | I13: استكمال رسوم | J13: ترجمة
B14: 3263 | C14: 2019-09-03 | G14: 4500 | H14: 4500 | I14: استكمال رسوم | J14: ادارة مشروعات
B15: 3264 | C15: 2019-09-03 | G15: 1000 | H15: 1000 | I15: اعتراض | J15: محاسبة
B16: 3265 | C16: 2019-09-03 | G16: 2500 | H16: 2500 | I16: استكمال رسوم | J16: ادارة مشروعات
B17: 3266 | C17: 2019-09-03 | G17: 5900 | H17: 5900 | I17: استكمال رسوم | J17: ترجمة
B18: 3267 | C18: 2019-09-03 | D18: 2000 | H18: 2000 | I18: كشف (1) | J18: محاسبة
B19: 3268 | C19: 2019-09-03 | G19: 2000 | H19: 2000 | I19: استكمال رسوم | J19: ادارة مشروعات
B20: 3269 | C20: 2019-09-03 | G20: 900 | H20: 900 | I20: استكمال رسوم | J20: محاسبة
B21: 3270 | C21: 2019-09-03 | G21: 3000 | H21: 3000 | I21: استكمال رسوم | J21: ادارة مشروعات
B22: 3271 | C22: 2019-09-03 | G22: 900 | H22: 900 | I22: استكمال رسوم | J22: ترجمة
B23: 3272 | C23: 2019-09-03 | G23: 1000 | H23: 1000 | I23: اعتراض | J23: ادارة مشروعات
B24: 3273 | C24: 2019-09-03 | G24: 1000 | H24: 1000 | I24: اعتراض | J24: ترجمة
B25: 3274 | C25: 2019-09-03 | G25: 1000 | H25: 1000 | I25: اعتراض | J25: محاسبة
B26: 3275 | C26: 2019-09-03 | G26: 1000 | H26: 1000 | I26: اعتراض | J26: محاسبة
B27: 3276 | C27: 2019-09-03 | D27: 2000 | H27: 2000 | I27: كشف (1) | J27: محاسبة
B28: 3277 | C28: 2019-09-03 | D28: 2000 | H28: 2000 | I28: كشف (1) | J28: محاسبة
A29: مهند الجابر | B29: 3278 | C29: 2019-09-03 | D29: 2000 | H29: 2000 | I29: كشف (1) | J29: اعلام
B30: 3279 | C30: 2019-09-03 | G30: 900 | H30: 900 | I30: استكمال رسوم | J30: محاسبة
A31: نبال القطيش | B31: 3280 | C31: 2019-09-03 | G31: 1900 | H31: 1900 | I31: استكمال رسوم | J31: اعلام
B32: 3281 | C32: 2019-09-03 | D32: 2000 | H32: 2000 | I32: كشف (1) | J32: محاسبة
B33: 3282 | C33: 2019-09-03 | G33: 1000 | H33: 1000 | I33: اعتراض | J33: محاسبة
B34: 3283 | C34: 2019-09-03 | G34: 1000 | H34: 1000 | I34: اعتراض | J34: محاسبة
A35: محمد حسن | B35: 3284 | C35: 2019-09-03 | G35: 1000 | H35: 1000 | I35: اعتراض | J35: اعلام
A36: محمد حسن | B36: 3285 | C36: 2019-09-04 | G36: 1000 | H36: 1000 | I36: اعتراض | J36: اعلام
B37: 3286 | C37: 2019-09-04 | G37: 1000 | H37: 1000 | I37: اعتراض | J37: ترجمة
B38: 3287 | C38: 2019-09-04 | G38: 1000 | H38: 1000 | I38: اعتراض | J38: محاسبة
B39: 3288 | C39: 2019-09-04 | G39: 1000 | H39: 1000 | I39: اعتراض | J39: محاسبة
B40: 3289 | C40: 2019-09-04 | G40: 1000 | H40: 1000 | I40: استكمال رسوم | J40: ادارة مشروعات
B41: 3290 | C41: 2019-09-04 | G41: 1000 | H41: 1000 | I41: استكمال رسوم | J41: ادارة مشروعات
B42: 3291 | C42: 2019-09-04 | D42: 2000 | H42: 2000 | I42: كشف (1) | J42: ادارة مشروعات
B43: 3292 | C43: 2019-09-04 | D43: 2000 | H43: 2000 | I43: كشف (1) | J43: ادارة مشروعات
B44: 3293 | C44: 2019-09-04 | G44: 1500 | H44: 1500 | I44: استكمال رسوم | J44: ترجمة
B45: 3294 | C45: 2019-09-04 | G45: 1000 | H45: 1000 | I45: استكمال رسوم | J45: ادارة مشروعات
B46: 3295 | C46: 2019-09-04 | G46: 1000 | H46: 1000 | I46: اعتراض | J46: ادارة مشروعات
D47: =SUM(D2:D46) -> 16200 | E47: =SUM(E2:E46) -> 0 | F47: =SUM(F2:F46) -> 0 | G47: =SUM(G2:G46) -> 51200 | H47: =SUM(H2:H46) -> 67400

Sheet p20
A1: الاسم | B1: رقم ايصال | C1: تاريخ | D1: مختلفة | E1: تسليف | F1: رسم سنوي | G1: خدمات | H1: مجموع | I1: النوع | J1: القسم
B2: 3296 | C2: 2019-09-04 | G2: 6500 | H2: 6500 | I2: استكمال رسوم | J2: ادارة مشروعات
B3: 3297 | C3: 2019-09-04 | G3: 3000 | H3: 3000 | I3: براءة ذمة | J3: ترجمة
B4: 3298 | C4: 2019-09-04 | G4: 4500 | H4: 4500 | I4: استكمال رسوم | J4: محاسبة
B5: 3299 | C5: 2019-09-04 | G5: 2500 | H5: 2500 | I5: استكمال رسوم | J5: ترجمة
B6: 3300 | C6: 2019-09-04 | G6: 1000 | H6: 1000 | I6: اعتراض | J6: محاسبة
B7: 3301 | C7: 2019-09-04 | G7: 1000 | H7: 1000 | I7: اعتراض | J7: ادارة مشروعات
B8: 3302 | C8: 2019-09-04 | D8: 5000 | H8: 5000 | I8: رسم شهادة | J8: ترجمة
B9: 3303 | C9: 2019-09-04 | D9: 2000 | H9: 2000 | I9: كشف (1) | J9: ادارة مشروعات
B10: 3304 | C10: 2019-09-04 | D10: 2000 | H10: 2000 | I10: كشف (1) | J10: ادارة مشروعات
B11: 3305 | C11: 2019-09-04 | G11: 1500 | H11: 1500 | I11: استكمال رسوم | J11: ترجمة
B12: 3306 | C12: 2019-09-04 | D12: 2000 | H12: 2000 | I12: كشف (1) | J12: محاسبة
B13: 3307 | C13: 2019-09-04 | G13: 1000 | H13: 1000 | I13: اعتراض | J13: محاسبة
B14: 3308 | C14: 2019-09-04 | G14: 1000 | H14: 1000 | I14: اعتراض | J14: محاسبة
B15: 3309 | C15: 2019-09-04 | G15: 3000 | H15: 3000 | I15: استكمال رسوم | J15: ادارة مشروعات
B16: 3310 | C16: 2019-09-04 | G16: 1000 | H16: 1000 | I16: اعتراض | J16: ادارة مشروعات
B17: 3311 | C17: 2019-09-04 | G17: 1000 | H17: 1000 | I17: اعتراض | J17: ادارة مشروعات
B18: 3312 | C18: 2019-09-04 | G18: 1000 | H18: 1000 | I18: اعتراض | J18: ادارة مشروعات
B19: 3313 | C19: 2019-09-04 | D19: 2000 | H19: 2000 | I19: كشف (1) | J19: ادارة مشروعات
B20: 3314 | C20: 2019-09-04 | G20: 1000 | H20: 1000 | I20: اعتراض | J20: ادارة مشروعات
B21: 3315 | C21: 2019-09-04 | D21: 5000 | H21: 5000 | I21: كشف (6) | J21: محاسبة
B22: 3316 | C22: 2019-09-04 | D22: 2000 | H22: 2000 | I22: كشف (1) | J22: ادارة مشروعات
B23: 3317 | C23: 2019-09-04 | G23: 1000 | H23: 1000 | I23: اعتراض | J23: محاسبة
B24: 3318 | C24: 2019-09-04 | G24: 1000 | H24: 1000 | I24: اعتراض | J24: محاسبة
B25: 3319 | C25: 2019-09-04 | D25: 3000 | H25: 3000 | I25: رسم اختبار ماجستير | J25: محاسبة
B26: 3320 | C26: 2019-09-04 | G26: 1000 | H26: 1000 | I26: اعتراض | J26: ادارة مشروعات
B27: 3321 | C27: 2019-09-04 | G27: 1000 | H27: 1000 | I27: اعتراض | J27: ادارة مشروعات
B28: 3322 | C28: 2019-09-04 | G28: 1000 | H28: 1000 | I28: اعتراض | J28: ادارة مشروعات
B29: 3323 | C29: 2019-09-04 | G29: 1000 | H29: 1000 | I29: اعتراض | J29: ادارة مشروعات
B30: 3324 | C30: 2019-09-04 | D30: 3000 | H30: 3000 | I30: رسم اختبار ماجستير | J30: محاسبة
B31: 3325 | C31: 2019-09-04 | G31: 1500 | H31: 1500 | I31: استكمال رسوم | J31: ترجمة
B32: 3326 | C32: 2019-09-04 | G32: 2000 | H32: 2000 | I32: استكمال رسوم | J32: ادارة مشروعات
B33: 3327 | C33: 2019-09-04 | G33: 1000 | H33: 1000 | I33: اعتراض | J33: ترجمة
B34: 3328 | C34: 2019-09-04 | G34: 1000 | H34: 1000 | I34: اعتراض | J34: ترجمة
B35: 3329 | C35: 2019-09-04 | G35: 1000 | H35: 1000 | I35: اعتراض | J35: ترجمة
B36: 3330 | C36: 2019-09-04 | G36: 1000 | H36: 1000 | I36: اعتراض | J36: ترجمة
B37: 3331 | C37: 2019-09-04 | G37: 1000 | H37: 1000 | I37: اعتراض | J37: ترجمة
B38: 3332 | C38: 2019-09-04 | G38: 1000 | H38: 1000 | I38: اعتراض | J38: ترجمة
B39: 3333 | C39: 2019-09-04 | G39: 1000 | H39: 1000 | I39: اعتراض | J39: ترجمة
B40: 3334 | C40: 2019-09-04 | G40: 1000 | H40: 1000 | I40: اعتراض | J40: ترجمة
B41: 3335 | C41: 2019-09-04 | G41: 1000 | H41: 1000 | I41: استكمال رسوم | J41: ترجمة
B42: 3336 | C42: 2019-09-04 | D42: 2000 | H42: 2000 | I42: كشف (1) | J42: ترجمة
B43: 3337 | C43: 2019-09-04 | G43: 1000 | H43: 1000 | I43: اعتراض | J43: محاسبة
B44: 3338 | C44: 2019-09-04 | G44: 1000 | H44: 1000 | I44: اعتراض | J44: ادارة مشروعات
B45: 3339 | C45: 2019-09-04 | G45: 1000 | H45: 1000 | I45: اعتراض | J45: ادارة مشروعات
A46: محمود عمر | B46: 3340 | C46: 2019-09-04 | G46: 1000 | H46: 1000 | I46: اعتراض | J46: اعلام
D47: =SUM(D2:D46) -> 28000 | E47: =SUM(E2:E46) -> 0 | F47: =SUM(F2:F46) -> 0 | G47: =SUM(G2:G46) -> 51500 | H47: =SUM(H2:H46) -> 79500

Sheet p21
A1: الاسم | B1: رقم ايصال | C1: تاريخ | D1: مختلفة | E1: تسليف | F1: رسم سنوي | G1: خدمات | H1: مجموع | I1: النوع | J1: القسم
B2: 3341 | C2: 2019-09-05 | D2: 2000 | H2: 2000 | I2: كشف (1) | J2: ادارة مشروعات
B3: 3342 | C3: 2019-09-05 | G3: 900 | H3: 900 | I3: استكمال رسوم | J3: محاسبة
B4: 3343 | C4: 2019-09-05 | D4: 3000 | H4: 3000 | I4: رسم اختبار ماجستير | J4: ادارة مشروعات
B5: 3344 | C5: 2019-09-05 | D5: 3000 | H5: 3000 | I5: رسم اختبار ماجستير | J5: ادارة مشروعات
B6: 3345 | C6: 2019-09-05 | D6: 2000 | H6: 2000 | I6: كشف (1) | J6: محاسبة
B7: 3346 | C7: 2019-09-05 | D7: 3000 | H7: 3000 | I7: رسم اختبار ماجستير | J7: ادارة مشروعات
B8: 3347 | C8: 2019-09-05 | D8: 2000 | H8: 2000 | I8: كشف (1) | J8: محاسبة
B9: 3348 | C9: 2019-09-05 | G9: 1500 | H9: 1500 | I9: استكمال رسوم | J9: ادارة مشروعات
B10: 3349 | C10: 2019-09-05 | G10: 1000 | H10: 1000 | I10: اعتراض | J10: ترجمة
B11: 3350 | C11: 2019-09-05 | G11: 1000 | H11: 1000 | I11: اعتراض | J11: ترجمة
B12: 3351 | C12: 2019-09-05 | G12: 1000 | H12: 1000 | I12: اعتراض | J12: ترجمة
B13: 3352 | C13: 2019-09-05 | D13: 3000 | H13: 3000 | I13: رسم اختبار ماجستير | J13: محاسبة
B14: 3353 | C14: 2019-09-05 | D14: 3000 | H14: 3000 | I14: رسم اختبار ماجستير | J14: محاسبة
B15: 3354 | C15: 2019-09-05 | G15: 1000 | H15: 1000 | I15: اعتراض | J15: محاسبة
B16: 3355 | C16: 2019-09-05 | G16: 1000 | H16: 1000 | I16: اعتراض | J16: محاسبة
A17: محمد عزام | B17: 3356 | C17: 2019-09-05 | G17: 1000 | H17: 1000 | I17: اعتراض | J17: اعلام
B18: 3357 | C18: 2019-09-05 | D18: 5000 | H18: 5000 | I18: كشف (6) | J18: ادارة مشروعات
B19: 3358 | C19: 2019-09-05 | G19: 1500 | H19: 1500 | I19: استكمال رسوم | J19: ادارة مشروعات
B20: 3359 | C20: 2019-09-05 | D20: 200 | H20: 200 | I20: بدل ضائع بطاقة | J20: محاسبة
B21: 3360 | C21: 2019-09-05 | D21: `. | G21: 1000 | H21: 1000 | I21: اعتراض | J21: ادارة مشروعات
B22: 3361 | C22: 2019-09-05 | D22: . | G22: 1000 | H22: 1000 | I22: اعتراض | J22: محاسبة
B23: 3362 | C23: 2019-09-05 | D23: . | G23: 1000 | H23: 1000 | I23: اعتراض | J23: محاسبة
B24: 3363 | C24: 2019-09-05 | D24: 0 | G24: 1000 | H24: 1000 | I24: استكمال رسوم | J24: ترجمة
B25: 3364 | C25: 2019-09-05 | D25: 3000 | H25: 3000 | I25: رسم اختبار ماجستير | J25: محاسبة
B26: 3365 | C26: 2019-09-05 | G26: 1000 | H26: 1000 | I26: استكمال رسوم | J26: ادارة مشروعات
B27: 3366 | C27: 2019-09-05 | D27: 200 | H27: 200 | I27: بدل ضائع بطاقة | J27: محاسبة
B28: 3367 | C28: 2019-09-05 | G28: 1000 | H28: 1000 | I28: اعتراض | J28: محاسبة
B29: 3368 | C29: 2019-09-05 | G29: 1000 | H29: 1000 | I29: اعتراض | J29: محاسبة
B30: 3369 | C30: 2019-09-05 | D30: 2000 | H30: 2000 | I30: كشف (1) | J30: محاسبة
B31: 3370 | C31: 2019-09-05 | D31: 200 | H31: 200 | I31: بدل ضائع بطاقة | J31: محاسبة
B32: 3371 | C32: 2019-09-05 | G32: 1000 | H32: 1000 | I32: استكمال رسوم | J32: ادارة مشروعات
B33: 3372 | C33: 2019-09-05 | G33: 1600 | H33: 1600 | I33: استكمال رسوم | J33: ترجمة
B34: 3373 | C34: 2019-09-05 | G34: 1000 | H34: 1000 | I34: اعتراض | J34: ترجمة
B35: 3374 | C35: 2019-09-05 | G35: 1000 | H35: 1000 | I35: اعتراض | J35: محاسبة
B36: 3375 | C36: 2019-09-05 | G36: 1000 | H36: 1000 | I36: اعتراض | J36: محاسبة
B37: 3376 | C37: 2019-09-05 | D37: 2000 | H37: 2000 | I37: استكمال رسوم | J37: ترجمة
B38: 3377 | C38: 2019-09-05 | G38: 1000 | H38: 1000 | I38: استكمال رسوم | J38: ترجمة
B39: 3378 | C39: 2019-09-05 | G39: 1500 | H39: 1500 | I39: براءة ذمة | J39: ترجمة
B40: 3379 | C40: 2019-09-05 | G40: 1000 | H40: 1000 | I40: اعتراض | J40: محاسبة
B41: 3380 | C41: 2019-09-05 | G41: 1000 | H41: 1000 | I41: اعتراض | J41: محاسبة
B42: 3381 | C42: 2019-09-05 | D42: 2000 | H42: 2000 | I42: كشف (1) | J42: ادارة مشروعات
B43: 3382 | C43: 2019-09-05 | G43: 1000 | H43: 1000 | I43: استكمال رسوم | J43: ادارة مشروعات
B44: 3383 | C44: 2019-09-05 | G44: 1000 | H44: 1000 | I44: اعتراض | J44: ادارة مشروعات
B45: 3384 | C45: 2019-09-05 | D45: 200 | H45: 200 | I45: بدل ضائع بطاقة | J45: ترجمة
B46: 3385 | C46: 2019-09-08 | D46: 3000 | H46: 3000 | I46: رسم اختبار ماجستير | J46: ادارة مشروعات
D47: =SUM(D2:D46) -> 38800 | E47: =SUM(E2:E46) -> 0 | F47: =SUM(F2:F46) -> 0 | G47: =SUM(G2:G46) -> 29000 | H47: =SUM(H2:H46) -> 67800

Sheet p22
A1: الاسم | B1: رقم ايصال | C1: تاريخ | D1: مختلفة | E1: تسليف | F1: رسم سنوي | G1: خدمات | H1: مجموع | I1: النوع | J1: القسم
B2: 3386 | C2: 2019-09-08 | G2: 900 | H2: 900 | I2: استكمال رسوم | J2: محاسبة
B3: 3387 | C3: 2019-09-08 | G3: 900 | H3: 900 | I3: استكمال رسوم | J3: محاسبة
B4: 3388 | C4: 2019-09-08 | D4: 2000 | H4: 2000 | I4: كشف (1) | J4: ادارة مشروعات
B5: 3389 | C5: 2019-09-08 | G5: 1000 | H5: 1000 | I5: استكمال رسوم | J5: ادارة مشروعات
B6: 3390 | C6: 2019-09-08 | G6: 900 | H6: 900 | I6: استكمال رسوم | J6: محاسبة
B7: 3391 | C7: 2019-09-08 | G7: 1500 | H7: 1500 | I7: استكمال رسوم | J7: ادارة مشروعات
B8: 3392 | C8: 2019-09-08 | G8: 200 | H8: 200 | I8: براءة ذمة | J8: ترجمة
B9: 3393 | C9: 2019-09-08 | G9: 1500 | H9: 1500 | I9: استكمال رسوم | J9: ادارة مشروعات
B10: 3394 | C10: 2019-09-08 | G10: 1000 | H10: 1000 | I10: اعتراض | J10: محاسبة
B11: 3395 | C11: 2019-09-08 | G11: 1000 | H11: 1000 | I11: اعتراض | J11: محاسبة
B12: 3396 | C12: 2019-09-08 | G12: 900 | H12: 900 | I12: استكمال رسوم | J12: محاسبة
B13: 3397 | C13: 2019-09-08 | G13: 1900 | H13: 1900 | I13: استكمال رسوم | J13: ادارة مشروعات
B14: 3398 | C14: 2019-09-08 | G14: 1500 | H14: 1500 | I14: براءة ذمة | J14: رياض اطفال
B15: 3399 | C15: 2019-09-08 | D15: 2000 | H15: 2000 | I15: كشف (1) | J15: ادارة مشروعات
B16: 3400 | C16: 2019-09-08 | D16: 3000 | H16: 3000 | I16: رسم اختبار ماجستير | J16: ادارة مشروعات
B17: 3401 | C17: 2019-09-08 | D17: 2000 | H17: 2000 | I17: كشف (1) | J17: ترجمة
B18: 3402 | C18: 2019-09-08 | G18: 2500 | H18: 2500 | I18: استكمال رسوم | J18: ادارة مشروعات
B19: 3403 | C19: 2019-09-08 | G19: 1000 | H19: 1000 | I19: استكمال رسوم | J19: ادارة مشروعات
B20: 3404 | C20: 2019-09-08 | G20: 1000 | H20: 1000 | I20: استكمال رسوم | J20: ادارة مشروعات
B21: 3405 | C21: 2019-09-08 | D21: 2000 | H21: 2000 | I21: كشف (1) | J21: محاسبة
A22: محمد الحمادي | B22: 3406 | C22: 2019-09-08 | D22: 2000 | H22: 2000 | I22: كشف (1) | J22: اعلام
B23: 3407 | C23: 2019-09-08 | D23: 2000 | H23: 2000 | I23: كشف (1) | J23: ترجمة
B24: 3408 | C24: 2019-09-08 | G24: 2000 | H24: 2000 | I24: استكمال رسوم | J24: ترجمة
B25: 3409 | C25: 2019-09-08 | G25: 2500 | H25: 2500 | I25: استكمال رسوم | J25: ادارة مشروعات
B26: 3410 | C26: 2019-09-08 | D26: 2000 | H26: 2000 | I26: كشف (1) | J26: محاسبة
B27: 3411 | C27: 2019-09-08 | G27: 2000 | H27: 2000 | I27: استكمال رسوم | J27: ادارة مشروعات
B28: 3412 | C28: 2019-09-08 | G28: 4500 | H28: 4500 | I28: استكمال رسوم | J28: ادارة مشروعات
B29: 3413 | C29: 2019-09-08 | G29: 1000 | H29: 1000 | I29: استكمال رسوم | J29: محاسبة
B30: 3414 | C30: 2019-09-09 | D30: 2000 | H30: 2000 | I30: كشف (1) | J30: ترجمة
B31: 3415 | C31: 2019-09-09 | G31: 1000 | H31: 1000 | I31: استكمال رسوم | J31: ادارة مشروعات
B32: 3416 | C32: 2019-09-09 | G32: 1000 | H32: 1000 | I32: اعتراض | J32: محاسبة
B33: 3417 | C33: 2019-09-10 | D33: 2000 | H33: 2000 | I33: استكمال رسوم | J33: ادارة مشروعات
B34: 3418 | C34: 2019-09-09 | G34: 1000 | H34: 1000 | I34: استكمال رسوم | J34: ترجمة
B35: 3419 | C35: 2019-09-09 | G35: 2500 | H35: 2500 | I35: استكمال رسوم | J35: ترجمة
B36: 3420 | C36: 2019-09-09 | G36: 3000 | H36: 3000 | I36: استكمال رسوم | J36: ترجمة
B37: 3421 | C37: 2019-09-09 | D37: 2000 | H37: 2000 | I37: كشف (1) | J37: محاسبة
B38: 3422 | C38: 2019-09-09 | G38: 1500 | H38: 1500 | I38: استكمال رسوم | J38: ترجمة
B39: 3423 | C39: 2019-09-09 | D39: 5000 | H39: 5000 | I39: رسم شهادة | J39: محاسبة
A40: وئام اسماعيل | B40: 3424 | C40: 2019-09-09 | D40: 200 | H40: 200 | I40: بدل ضائع بطاقة | J40: اعلام
B41: 3425 | C41: 2019-09-09 | D41: 2000 | H41: 2000 | I41: كشف (1) | J41: ترجمة
B42: 3426 | C42: 2019-09-10 | D42: 2000 | H42: 2000 | I42: كشف (1) | J42: محاسبة
B43: 3427 | C43: 2019-09-10 | G43: 600 | H43: 600 | I43: براءة ذمة | J43: ترجمة
B44: 3428 | C44: 2019-09-10 | G44: 900 | H44: 900 | I44: استكمال رسوم | J44: محاسبة
B45: 3429 | C45: 2019-09-10 | D45: 5000 | H45: 5000 | I45: بدل ضائع مصدقة (1) | J45: معلم صف
B46: 3430 | C46: 2019-09-10 | D46: 5000 | H46: 5000 | I46: كشف (6) | J46: محاسبة
D47: =SUM(D2:D46) -> 42200 | E47: =SUM(E2:E46) -> 0 | F47: =SUM(F2:F46) -> 0 | G47: =SUM(G2:G46) -> 41200 | H47: =SUM(H2:H46) -> 83400

Sheet p23
A1: الاسم | B1: رقم ايصال | C1: تاريخ | D1: مختلفة | E1: تسليف | F1: رسم سنوي | G1: خدمات | H1: مجموع | I1: النوع | J1: القسم
B2: 3431 | C2: 2019-09-10 | G2: 1000 | H2: 1000 | I2: اعتراض | J2: محاسبة
B3: 3432 | C3: 2019-09-10 | G3: 4500 | H3: 4500 | I3: استكمال رسوم | J3: ادارة مشروعات
B4: 3433 | C4: 2019-09-10 | D4: 2000 | H4: 2000 | I4: كشف (1) | J4: ترجمة
B5: 3434 | C5: 2019-09-10 | G5: 500 | H5: 500 | I5: استكمال رسوم | J5: ترجمة
B6: 3435 | C6: 2019-09-10 | D6: 2000 | H6: 2000 | I6: كشف (1) | J6: ترجمة
B7: 3436 | C7: 2019-09-10 | D7: 2000 | H7: 2000 | I7: كشف (1) | J7: محاسبة
B8: 3437 | C8: 2019-09-10 | D8: 2000 | H8: 2000 | I8: كشف (1) | J8: محاسبة
B9: 3438 | C9: 2019-09-10 | D9: 2000 | H9: 2000 | I9: كشف (1) | J9: محاسبة
B10: 3439 | C10: 2019-09-10 | D10: 3000 | H10: 3000 | I10: رسم اختبار ماجستير | J10: محاسبة
B11: 3440 | C11: 2019-09-10 | G11: 1000 | H11: 1000 | I11: اعتراض | J11: محاسبة
B12: 3441 | C12: 2019-09-10 | G12: 1000 | H12: 1000 | I12: اعتراض | J12: محاسبة
B13: 3442 | C13: 2019-09-10 | D13: 200 | H13: 200 | I13: بدل ضائع بطاقة | J13: ترجمة
B14: 3443 | C14: 2019-09-10 | D14: 2000 | H14: 2000 | I14: كشف (1) | J14: ادارة مشروعات
B15: 3444 | C15: 2019-09-10 | G15: 2000 | H15: 2000 | I15: استكمال رسوم | J15: ادارة مشروعات
B16: 3445 | C16: 2019-09-10 | D16: 2000 | H16: 2000 | I16: كشف (1) | J16: محاسبة
B17: 3446 | C17: 2019-09-10 | D17: 3000 | H17: 3000 | I17: رسم اختبار ماجستير | J17: ترجمة
B18: 3447 | C18: 2019-09-11 | G18: 4000 | H18: 4000 | I18: استكمال رسوم | J18: ادارة مشروعات
B19: 3448 | C19: 2019-09-11 | G19: 3000 | H19: 3000 | I19: استكمال رسوم | J19: ادارة مشروعات
B20: 3449 | C20: 2019-09-11 | G20: 4500 | H20: 4500 | I20: استكمال رسوم | J20: ادارة مشروعات
B21: 3450 | C21: 2019-09-11 | D21: 3000 | H21: 3000 | I21: كشف (1) | J21: محاسبة | K21: تتمة كشف علامات 6 نسخ
B22: 3451 | C22: 2019-09-11 | G22: 900 | H22: 900 | I22: استكمال رسوم | J22: محاسبة
B23: 3452 | C23: 2019-09-11 | G23: 900 | H23: 900 | I23: استكمال رسوم | J23: محاسبة
B24: 3453 | C24: 2019-09-11 | G24: 900 | H24: 900 | I24: استكمال رسوم | J24: محاسبة
B25: 3454 | C25: 2019-09-11 | D25: 2000 | H25: 2000 | I25: كشف (1) | J25: ترجمة
B26: 3455 | C26: 2019-09-11 | G26: 1500 | H26: 1500 | I26: استكمال رسوم | J26: ادارة مشروعات
B27: 3456 | C27: 2019-09-11 | D27: 3000 | H27: 3000 | I27: رسم اختبار ماجستير | J27: ادارة مشروعات
B28: 3457 | C28: 2019-09-11 | D28: 3000 | H28: 3000 | I28: رسم اختبار ماجستير | J28: ترجمة
B29: 3458 | C29: 2019-09-11 | D29: 3000 | H29: 3000 | I29: رسم اختبار ماجستير | J29: محاسبة
B30: 3459 | C30: 2019-09-11 | D30: 5000 | H30: 5000 | I30: كشف (6) | J30: ترجمة
B31: 3460 | C31: 2019-09-11 | D31: 2000 | H31: 2000 | I31: كشف (1) | J31: محاسبة
B32: 3461 | C32: 2019-09-11 | G32: 1500 | H32: 1500 | I32: استكمال رسوم | J32: ترجمة
B33: 3462 | C33: 2019-09-12 | D33: 3000 | H33: 3000 | I33: رسم اختبار ماجستير | J33: محاسبة
B34: 3463 | C34: 2019-09-12 | D34: 3000 | H34: 3000 | I34: رسم اختبار ماجستير | J34: محاسبة
B35: 3464 | C35: 2019-09-12 | D35: 3000 | H35: 3000 | I35: رسم اختبار ماجستير | J35: ادارة مشروعات
B36: 3465 | C36: 2019-09-12 | D36: 3000 | H36: 3000 | I36: رسم اختبار ماجستير | J36: ادارة مشروعات
B37: 3466 | C37: 2019-09-12 | D37: 2000 | H37: 2000 | I37: كشف (1) | J37: محاسبة
B38: 3467 | C38: 2019-09-12 | D38: 2000 | H38: 2000 | I38: كشف (1) | J38: ترجمة
B39: 3468 | C39: 2019-09-12 | G39: 1500 | H39: 1500 | I39: استكمال رسوم | J39: ادارة مشروعات
B40: 3469 | C40: 2019-09-12 | D40: 5000 | H40: 5000 | I40: كشف (6) | J40: محاسبة
B41: 3470 | C41: 2019-09-12 | D41: 5000 | H41: 5000 | I41: رسم شهادة | J41: محاسبة
B42: 3471 | C42: 2019-09-12 | G42: 1300 | H42: 1300 | I42: استكمال رسوم | J42: ادارة مشروعات
A43: سعيد المانع الخليفة | B43: 3472 | C43: 2019-09-12 | D43: 5000 | H43: 5000 | I43: كشف (6) | J43: اعلام
A44: ديانا الحمصي | B44: 3473 | C44: 2019-09-12 | D44: 2000 | H44: 2000 | I44: كشف (1) | J44: اعلام
B45: 3474 | C45: 2019-09-12 | D45: 3000 | H45: 3000 | I45: رسم اختبار ماجستير | J45: ادارة مشروعات
B46: 3475 | C46: 2019-09-12 | D46: 200 | H46: 200 | I46: بدل ضائع بطاقة | J46: محاسبة
D47: =SUM(D2:D46) -> 77400 | E47: =SUM(E2:E46) -> 0 | F47: =SUM(F2:F46) -> 0 | G47: =SUM(G2:G46) -> 30000 | H47: =SUM(H2:H46) -> 107400

Sheet p24
A1: الاسم | B1: رقم ايصال | C1: تاريخ | D1: مختلفة | E1: تسليف | F1: رسم سنوي | G1: خدمات | H1: مجموع | I1: النوع | J1: القسم
B2: 3476 | C2: 2019-09-15 | D2: 2000 | H2: 2000 | I2: كشف (1) | J2: محاسبة
B3: 3477 | C3: 2019-09-15 | D3: 5000 | H3: 5000 | I3: كشف (6) | J3: محاسبة
B4: 3478 | C4: 2019-09-15 | D4: 2000 | H4: 2000 | I4: كشف (1) | J4: محاسبة
B5: 3479 | C5: 2019-09-15 | G5: 2100 | H5: 2100 | I5: استكمال رسوم | J5: ترجمة
B6: 3480 | C6: 2019-09-15 | G6: 4000 | H6: 4000 | I6: استكمال رسوم | J6: ادارة مشروعات
A7: عدي الشامي | B7: 3481 | C7: 2019-09-15 | D7: 5000 | H7: 5000 | I7: كشف (6) | J7: اعلام | K7: متخرج
B8: 3482 | C8: 2019-09-15 | D8: 5000 | H8: 5000 | I8: رسم شهادة | J8: محاسبة
B9: 3483 | C9: 2019-09-15 | D9: 5000 | H9: 5000 | I9: كشف (6) | J9: محاسبة
B10: 3484 | C10: 2019-09-15 | D10: 2000 | H10: 2000 | I10: كشف (1) | J10: محاسبة
B11: 3485 | C11: 2019-09-15 | G11: 1000 | H11: 1000 | I11: استكمال رسوم | J11: ادارة مشروعات
B12: 3486 | C12: 2019-09-15 | D12: 5000 | H12: 5000 | I12: كشف (6) | J12: محاسبة
B13: 3487 | C13: 2019-09-15 | D13: 2000 | H13: 2000 | I13: كشف (1) | J13: محاسبة
B14: 3488 | C14: 2019-09-16 | D14: 3000 | H14: 3000 | I14: رسم اختبار ماجستير | J14: محاسبة
B15: 3489 | C15: 2019-09-16 | G15: 900 | H15: 900 | I15: استكمال رسوم | J15: محاسبة
B16: 3490 | C16: 2019-09-16 | G16: 4000 | H16: 4000 | I16: استكمال رسوم | J16: ترجمة
B17: 3491 | C17: 2019-09-16 | D17: 3000 | H17: 3000 | I17: رسم اختبار ماجستير | J17: ادارة مشروعات
B18: 3492 | C18: 2019-09-16 | D18: 3000 | H18: 3000 | I18: رسم اختبار ماجستير | J18: ادارة مشروعات
B19: 3493 | C19: 2019-09-16 | D19: 2000 | H19: 2000 | I19: كشف (1) | J19: ترجمة
B20: 3494 | C20: 2019-09-16 | D20: 3000 | H20: 3000 | I20: رسم اختبار ماجستير | J20: ترجمة
B21: 3495 | C21: 2019-09-16 | D21: 200 | H21: 200 | I21: بدل ضائع بطاقة | J21: ترجمة
B22: 3496 | C22: 2019-09-16 | D22: 3000 | H22: 3000 | I22: رسم اختبار ماجستير | J22: محاسبة
B23: 3497 | C23: 2019-09-16 | D23: 200 | H23: 200 | I23: بدل ضائع بطاقة | J23: ترجمة
B24: 3498 | C24: 2019-09-16 | D24: 2000 | H24: 2000 | I24: كشف (1) | J24: محاسبة
B25: 3499 | C25: 2019-09-16 | D25: 5000 | H25: 5000 | I25: بدل ضائع مصدقة (1) | J25: محاسبة
B26: 3500 | C26: 2019-09-16 | D26: 2000 | H26: 2000 | I26: كشف (1) | J26: محاسبة
B27: 3501 | C27: 2019-09-16 | G27: 1500 | H27: 1500 | I27: استكمال رسوم | J27: ترجمة
A28: خديجه علي الحمد المفرج | B28: 3502 | C28: 2019-09-16 | D28: 2000 | H28: 2000 | I28: كشف (1) | J28: اعلام
B29: 3503 | C29: 2019-09-16 | G29: 3000 | H29: 3000 | I29: استكمال رسوم | J29: ادارة مشروعات
B30: 3504 | C30: 2019-09-16 | D30: 2000 | H30: 2000 | I30: كشف (1) | J30: ترجمة
A31: محمد نصر | B31: 3505 | C31: 2019-09-16 | D31: 2000 | H31: 2000 | I31: كشف (1) | J31: اعلام
B32: 3506 | C32: 2019-09-16 | D32: 2000 | H32: 2000 | I32: كشف (1) | J32: محاسبة
B33: 3507 | C33: 2019-09-16 | D33: 2000 | H33: 2000 | I33: كشف (1) | J33: محاسبة
B34: 3508 | C34: 2019-09-17 | D34: 2000 | H34: 2000 | I34: كشف (1) | J34: محاسبة
B35: 3509 | C35: 2019-09-17 | G35: 1000 | H35: 1000 | I35: اعتراض | J35: محاسبة
B36: 3510 | C36: 2019-09-17 | D36: 2000 | H36: 2000 | I36: كشف (1) | J36: ترجمة
B37: 3511 | C37: 2019-09-17 | G37: 2500 | H37: 2500 | I37: استكمال رسوم | J37: ترجمة
B38: 3512 | C38: 2019-09-17 | D38: 2000 | H38: 2000 | I38: كشف (1) | J38: ترجمة
A39: كنده علي | B39: 3513 | C39: 2019-09-17 | D39: 5000 | H39: 5000 | I39: كشف (6) | J39: اعلام | K39: متخرج
B40: 3514 | C40: 2019-09-17 | D40: 5000 | H40: 5000 | I40: رسم شهادة | J40: ترجمة
B41: 3515 | C41: 2019-09-17 | D41: 200 | H41: 200 | I41: بدل ضائع بطاقة | J41: ترجمة
B42: 3516 | C42: 2019-09-17 | D42: 2000 | H42: 2000 | I42: كشف (1) | J42: ترجمة
B43: 3517 | C43: 2019-09-18 | D43: 2000 | H43: 2000 | I43: كشف (1) | J43: ادارة مشروعات
B44: 3518 | C44: 2019-09-18 | D44: 5000 | H44: 5000 | I44: رسم شهادة | J44: محاسبة
B45: 3519 | C45: 2019-09-18 | D45: 2000 | H45: 2000 | I45: كشف (1) | J45: ترجمة
B46: 3520 | C46: 2019-09-18 | D46: 2000 | H46: 2000 | I46: كشف (1) | J46: ترجمة
D47: =SUM(D2:D46) -> 98600 | E47: =SUM(E2:E46) -> 0 | F47: =SUM(F2:F46) -> 0 | G47: =SUM(G2:G46) -> 20000 | H47: =SUM(H2:H46) -> 118600

Sheet p25
A1: الاسم | B1: رقم ايصال | C1: تاريخ | D1: مختلفة | E1: تسليف | F1: رسم سنوي | G1: خدمات | H1: مجموع | I1: النوع | J1: القسم
B2: 3521 | C2: 2019-09-18 | D2: 2000 | H2: 2000 | I2: كشف (1) | J2: ادارة مشروعات
B3: 3522 | C3: 2019-09-18 | D3: 2000 | H3: 2000 | I3: كشف (1) | J3: محاسبة
B4: 3523 | C4: 2019-09-18 | G4: 1000 | H4: 1000 | I4: استكمال رسوم | J4: ترجمة
B5: 3524 | C5: 2019-09-18 | D5: 2000 | H5: 2000 | I5: كشف (1) | J5: محاسبة
B6: 3525 | C6: 2019-09-18 | G6: 1000 | H6: 1000 | I6: استكمال رسوم | J6: ادارة مشروعات
A7: انديره | B7: 3526 | C7: 2019-09-19 | D7: 5000 | H7: 5000 | I7: كشف (6) | J7: ترجمة
B8: 3527 | C8: 2019-09-19 | G8: 1500 | H8: 1500 | I8: استكمال رسوم | J8: ترجمة
B9: 3528 | C9: 2019-09-19 | D9: 200 | H9: 200 | I9: بدل ضائع بطاقة | J9: ادارة مشروعات
B10: 3529 | C10: 2019-09-19 | G10: 1000 | H10: 1000 | I10: استكمال رسوم | J10: ترجمة
B11: 3530 | C11: 2019-09-19 | G11: 600 | H11: 600 | I11: استكمال رسوم | J11: ترجمة
B12: 3531 | C12: 2019-09-19 | D12: 5000 | H12: 5000 | I12: بدل ضائع مصدقة (1) | J12: معلم صف
B13: 3532 | C13: 2019-09-19 | G13: 1500 | H13: 1500 | I13: استكمال رسوم | J13: ادارة مشروعات
A14: حسن اسعيد | B14: 3533 | C14: 2019-09-19 | D14: 2000 | H14: 2000 | I14: كشف (1) | J14: ادارة مشروعات
A15: الاء عمار | B15: 3534 | C15: 2019-09-22 | G15: 900 | H15: 900 | I15: استكمال رسوم | J15: محاسبة
B16: 3535 | C16: 2019-09-22 | G16: 3000 | H16: 3000 | I16: استكمال رسوم | J16: ادارة مشروعات
B17: 3536 | C17: 2019-09-22 | D17: 2000 | H17: 2000 | I17: كشف (1) | J17: محاسبة
B18: 3537 | C18: 2019-09-22 | D18: 5000 | H18: 5000 | I18: كشف (6) | J18: ادارة مشروعات
B19: 3538 | C19: 2019-09-22 | D19: 2000 | H19: 2000 | I19: كشف (1) | J19: ترجمة
B20: 3539 | C20: 2019-09-22 | D20: 2000 | H20: 2000 | I20: كشف (1) | J20: محاسبة
B21: 3540 | C21: 2019-09-23 | D21: 2000 | H21: 2000 | I21: كشف (1) | J21: ترجمة
B22: 3541 | C22: 2019-09-23 | D22: 200 | H22: 200 | I22: بدل ضائع بطاقة | J22: ادارة مشروعات
B23: 3542 | C23: 2019-09-23 | D23: 5000 | H23: 5000 | I23: كشف (6) | J23: ترجمة
A24: وائل بندقجي | B24: 3543 | C24: 2019-09-23 | D24: 2000 | H24: 2000 | I24: كشف (1) | J24: ترجمة
B25: 3544 | C25: 2019-09-23 | D25: 2000 | H25: 2000 | I25: كشف (1) | J25: ادارة مشروعات
B26: 3545 | C26: 2019-09-24 | D26: 2000 | H26: 2000 | I26: كشف (1) | J26: ادارة مشروعات
B27: 3546 | C27: 2019-09-24 | D27: 2000 | H27: 2000 | I27: كشف (1) | J27: ادارة مشروعات
A28: خلود عبيد | B28: 3547 | C28: 2019-09-24 | D28: 2000 | H28: 2000 | I28: كشف (1) | J28: اعلام | K28: متخرج
A29: ضياء طه | B29: 3548 | C29: 2019-09-24 | D29: 2000 | H29: 2000 | I29: كشف (1) | J29: اعلام | K29: متخرج
B30: 3549 | C30: 2019-09-24 | G30: 500 | H30: 500 | I30: استكمال رسوم | J30: ادارة مشروعات
B31: 3550 | C31: 2019-09-24 | D31: 2000 | H31: 2000 | I31: كشف (1) | J31: ترجمة
B32: 3551 | C32: 2019-09-24 | G32: 1000 | H32: 1000 | I32: براءة ذمة | J32: رياض اطفال
A33: بنان عيد | B33: 3552 | C33: 2019-09-24 | D33: 2000 | H33: 2000 | I33: كشف (1) | J33: اعلام | K33: متخرج
B34: 3553 | C34: 2019-09-24 | D34: 2000 | H34: 2000 | I34: كشف (1) | J34: ترجمة
B35: 3554 | C35: 2019-09-24 | D35: 2000 | H35: 2000 | I35: كشف (1) | J35: محاسبة
B36: 3555 | C36: 2019-09-24 | D36: 2000 | H36: 2000 | I36: كشف (1) | J36: ترجمة
B37: 3556 | C37: 2019-09-24 | D37: 200 | H37: 200 | I37: بدل ضائع بطاقة | J37: ترجمة
B38: 3557 | C38: 2019-09-24 | G38: 1000 | H38: 1000 | I38: براءة ذمة | J38: رياض اطفال
B39: 3558 | C39: 2019-09-25 | D39: 2000 | H39: 2000 | I39: كشف (1) | J39: محاسبة
B40: 3559 | C40: 2019-09-25 | D40: 200 | H40: 200 | I40: بدل ضائع بطاقة | J40: ادارة مشروعات
B41: 3560 | C41: 2019-09-25 | D41: 5000 | H41: 5000 | I41: كشف (6) | J41: محاسبة
A42: رشا فائق | B42: 3561 | C42: 2019-09-25 | D42: 5000 | H42: 5000 | I42: كشف (6) | J42: اعلام | K42: متخرج
A43: ولاء قاووق | B43: 3562 | C43: 2019-09-25 | D43: 2000 | H43: 2000 | I43: كشف (1) | J43: اعلام
B44: 3563 | C44: 2019-09-25 | D44: 2000 | H44: 2000 | I44: كشف (1) | J44: ادارة مشروعات
A45: منى اليوسف | B45: 3564 | C45: 2019-09-25 | G45: 1000 | H45: 1000 | I45: استكمال رسوم | J45: اعلام | K45: متخرج
A46: منى اليوسف | B46: 3565 | C46: 2019-09-25 | G46: 1000 | H46: 1000 | I46: استكمال رسوم | J46: اعلام | K46: متخرج
D47: =SUM(D2:D46) -> 74800 | E47: =SUM(E2:E46) -> 0 | F47: =SUM(F2:F46) -> 0 | G47: =SUM(G2:G46) -> 15000 | H47: =SUM(H2:H46) -> 89800

Sheet p26
A1: الاسم | B1: رقم ايصال | C1: تاريخ | D1: مختلفة | E1: تسليف | F1: رسم سنوي | G1: خدمات | H1: مجموع | I1: النوع | J1: القسم
B2: 3566 | C2: 2019-09-25 | D2: 3000 | H2: 3000 | I2: كشف (1) | J2: محاسبة | K2: تتمة كشف علامات
B3: 3567 | C3: 2019-09-26 | D3: 5000 | H3: 5000 | I3: بدل ضائع شهادة | J3: رياض اطفال
B4: 3568 | C4: 2019-09-26 | D4: 5000 | H4: 5000 | I4: كشف (6) | J4: محاسبة
B5: 3569 | C5: 2019-09-26 | D5: 2000 | H5: 2000 | I5: كشف (1) | J5: ادارة مشروعات
B6: 3570 | C6: 2019-09-26 | D6: 5000 | H6: 5000 | I6: كشف (6) | J6: محاسبة
B7: 3571 | C7: 2019-09-26 | G7: 1000 | H7: 1000 | I7: براءة ذمة | J7: رياض اطفال
B8: 3572 | C8: 2019-09-26 | G8: 2500 | H8: 2500 | I8: استكمال رسوم | J8: ترجمة
A9: ايمن القضماني | B9: 3573 | C9: 2019-09-26 | D9: 2000 | H9: 2000 | I9: كشف (1) | J9: اعلام
B10: 3574 | C10: 2019-09-26 | G10: 1500 | H10: 1500 | I10: براءة ذمة | J10: رياض اطفال
B11: 3575 | C11: 2019-09-26 | D11: 2000 | H11: 2000 | I11: كشف (1) | J11: محاسبة
B12: 3576 | C12: 2019-09-26 | D12: 5000 | H12: 5000 | I12: كشف (6) | J12: محاسبة
B13: 3577 | C13: 2019-09-26 | D13: 2000 | H13: 2000 | I13: كشف (1) | J13: ترجمة
B14: 3578 | C14: 2019-09-29 | G14: 1500 | H14: 1500 | I14: استكمال رسوم | J14: ترجمة
B15: 3579 | C15: 2019-09-29 | G15: 1000 | H15: 1000 | I15: اعتراض | J15: ادارة مشروعات
B16: 3580 | C16: 2019-09-29 | G16: 1000 | H16: 1000 | I16: اعتراض | J16: ادارة مشروعات
A17: روعة ثابت | B17: 3581 | C17: 2019-09-29 | D17: 5000 | H17: 5000 | I17: كشف (6) | J17: اعلام
B18: 3582 | C18: 2019-09-29 | G18: 2500 | H18: 2500 | I18: استكمال رسوم | J18: ادارة مشروعات
B19: 3583 | C19: 2019-09-29 | D19: 2000 | H19: 2000 | I19: كشف (1) | J19: ترجمة
A20: هلا سلمان | B20: 3584 | C20: 2019-09-30 | D20: 5000 | H20: 5000 | I20: كشف (6) | J20: اعلام | K20: متخرج
A21: نوال عبد الواحد الاحمد المشهد | B21: 3585 | C21: 2019-09-30 | D21: 5000 | H21: 5000 | I21: كشف (6) | J21: اعلام | K21: متخرج
B22: 3586 | C22: 2019-09-30 | G22: 1000 | H22: 1000 | I22: اعتراض | J22: ادارة مشروعات
B23: 3587 | C23: 2019-09-30 | D23: 5000 | H23: 5000 | I23: كشف (6) | J23: محاسبة
B24: 3588 | C24: 2019-09-30 | G24: 1000 | H24: 1000 | I24: استكمال رسوم | J24: ترجمة
A25: رونزا السرحان | B25: 3589 | C25: 2019-09-30 | D25: 5000 | H25: 5000 | I25: رسم شهادة | J25: اعلام
B26: 3590 | C26: 2019-09-30 | D26: 2000 | H26: 2000 | I26: كشف (1) | J26: ترجمة
B27: 3591 | C27: 2019-09-30 | D27: 2000 | H27: 2000 | I27: كشف (1) | J27: ترجمة
B28: 3592 | C28: 2019-09-30 | G28: 4000 | H28: 4000 | I28: استكمال رسوم | J28: ادارة مشروعات
A29: احمد النادر | B29: 3593 | C29: 2019-09-30 | D29: 2000 | H29: 2000 | I29: كشف (1) | J29: اعلام
B30: 3594 | C30: 2019-10-01 | G30: 1000 | H30: 1000 | I30: اعتراض | J30: ادارة مشروعات
B31: 3595 | C31: 2019-10-01 | G31: 1000 | H31: 1000 | I31: اعتراض | J31: ادارة مشروعات
B32: 3596 | C32: 2019-10-01 | G32: 1000 | H32: 1000 | I32: اعتراض | J32: محاسبة
A33: فرح شرتح | B33: 3597 | C33: 2019-10-01 | D33: 5000 | H33: 5000 | I33: رسم شهادة | J33: اعلام
B34: 3598 | C34: 2019-10-01 | G34: 1000 | H34: 1000 | I34: اعتراض | J34: ترجمة
B35: 3599 | C35: 2019-10-01 | G35: 1000 | H35: 1000 | I35: اعتراض | J35: ترجمة
B36: 3600 | C36: 2019-10-01 | G36: 1000 | H36: 1000 | I36: اعتراض | J36: ترجمة
B37: 3601 | C37: 2019-10-01 | G37: 1900 | H37: 1900 | I37: براءة ذمة | J37: ترجمة
B38: 3602 | C38: 2019-10-01 | D38: 2000 | H38: 2000 | I38: كشف (1) | J38: محاسبة
B39: 3603 | C39: 2019-10-01 | D39: 2000 | H39: 2000 | I39: كشف (1) | J39: ادارة مشروعات
B40: 3604 | C40: 2019-10-01 | G40: 2000 | H40: 2000 | I40: براءة ذمة | J40: محاسبة
B41: 3605 | C41: 2019-10-01 | D41: 5000 | H41: 5000 | I41: رسم شهادة | J41: محاسبة
B42: 3606 | C42: 2019-10-01 | G42: 1000 | H42: 1000 | I42: اعتراض | J42: ترجمة
B43: 3607 | C43: 2019-10-01 | G43: 1000 | H43: 1000 | I43: اعتراض | J43: محاسبة
B44: 3608 | C44: 2019-10-01 | G44: 1000 | H44: 1000 | I44: اعتراض | J44: محاسبة
B45: 3609 | C45: 2019-10-01 | G45: 1000 | H45: 1000 | I45: اعتراض | J45: محاسبة
B46: 3610 | C46: 2019-10-01 | D46: 2000 | H46: 2000 | I46: كشف (1) | J46: ترجمة
D47: =SUM(D2:D46) -> 80000 | E47: =SUM(E2:E46) -> 0 | F47: =SUM(F2:F46) -> 0 | G47: =SUM(G2:G46) -> 30900 | H47: =SUM(H2:H46) -> 110900

Sheet p27
A1: الاسم | B1: رقم ايصال | C1: تاريخ | D1: مختلفة | E1: تسليف | F1: رسم سنوي | G1: خدمات | H1: مجموع | I1: النوع | J1: القسم | K1: mine!A1
B2: 3611 | C2: 2019-10-01 | G2: 1000 | H2: 1000 | I2: اعتراض | J2: محاسبة
A3: امير الرهونجي | B3: 3612 | C3: 2019-10-01 | D3: 200 | H3: 200 | I3: بدل ضائع بطاقة | J3: اعلام
B4: 3613 | C4: 2019-10-02 | G4: 1000 | H4: 1000 | I4: اعتراض | J4: محاسبة
B5: 3614 | C5: 2019-10-02 | D5: 2000 | H5: 2000 | I5: كشف (1) | J5: ترجمة
B6: 3615 | C6: 2019-10-02 | G6: 1000 | H6: 1000 | I6: اعتراض | J6: ترجمة
B7: 3616 | C7: 2019-10-02 | D7: 2000 | H7: 2000 | I7: كشف (1) | J7: ادارة مشروعات
B8: 3617 | C8: 2019-10-02 | G8: 1000 | H8: 1000 | I8: اعتراض | J8: ترجمة
B9: 3618 | C9: 2019-10-02 | D9: 2000 | H9: 2000 | I9: كشف (1) | J9: محاسبة
B10: 3619 | C10: 2019-10-02 | D10: 2000 | H10: 2000 | I10: كشف (1) | J10: محاسبة
B11: 3620 | C11: 2019-10-02 | G11: 1000 | H11: 1000 | I11: اعتراض | J11: ترجمة
B12: 3621 | C12: 2019-10-02 | G12: 1000 | H12: 1000 | I12: اعتراض | J12: محاسبة
B13: 3622 | C13: 2019-10-02 | G13: 1000 | H13: 1000 | I13: اعتراض | J13: محاسبة
B14: 3623 | C14: 2019-10-02 | D14: 5000 | H14: 5000 | I14: كشف (6) | J14: ترجمة
B15: 3624 | C15: 2019-10-02 | D15: 2000 | H15: 2000 | I15: كشف (1) | J15: محاسبة
B16: 3625 | C16: 2019-10-02 | D16: 2000 | H16: 2000 | I16: كشف (1) | J16: محاسبة
B17: 3626 | C17: 2019-10-02 | D17: 5000 | H17: 5000 | I17: بدل ضائع مصدقة (1) | J17: دبلوم تأهيل تربوي
A18: قتيبة الربيع | B18: 3627 | C18: 2019-10-02 | D18: 2000 | H18: 2000 | I18: كشف (1) | J18: اعلام
B19: 3628 | C19: 2019-10-02 | D19: 2000 | H19: 2000 | I19: كشف (1) | J19: ادارة مشروعات
B20: 3629 | C20: 2019-10-02 | G20: 1000 | H20: 1000 | I20: اعتراض | J20: محاسبة
B21: 3630 | C21: 2019-10-02 | G21: 1500 | H21: 1500 | I21: براءة ذمة | J21: رياض اطفال
B22: 3631 | C22: 2019-10-02 | G22: 2500 | H22: 2500 | I22: استكمال رسوم | J22: ترجمة
B23: 3632 | C23: 2019-10-02 | G23: 1000 | H23: 1000 | I23: استكمال رسوم | J23: ترجمة
B24: 3633 | C24: 2019-10-03 | G24: 1000 | H24: 1000 | I24: اعتراض | J24: محاسبة
B25: 3634 | C25: 2019-10-03 | G25: 1000 | H25: 1000 | I25: اعتراض | J25: محاسبة
B26: 3635 | C26: 2019-10-03 | D26: 2000 | H26: 2000 | I26: كشف (1) | J26: ترجمة
B27: 3636 | C27: 2019-10-03 | G27: 1000 | H27: 1000 | I27: اعتراض | J27: محاسبة
B28: 3637 | C28: 2019-10-03 | G28: 1000 | H28: 1000 | I28: اعتراض | J28: ترجمة
B29: 3638 | C29: 2019-10-03 | D29: 200 | H29: 200 | I29: بدل ضائع بطاقة | J29: ادارة مشروعات
B30: 3639 | C30: 2019-10-03 | D30: 5000 | H30: 5000 | I30: رسم شهادة | J30: محاسبة
B31: 3640 | C31: 2019-10-03 | G31: 1000 | H31: 1000 | I31: اعتراض | J31: محاسبة
B32: 3641 | C32: 2019-10-03 | D32: 2000 | H32: 2000 | I32: كشف (1) | J32: ترجمة
B33: 3642 | C33: 2019-10-03 | D33: 2000 | H33: 2000 | I33: كشف (1) | J33: ادارة مشروعات
B34: 3643 | C34: 2019-10-03 | D34: 5000 | H34: 5000 | I34: بدل ضائع مصدقة (1) | J34: ترجمة
B35: 3644 | C35: 2019-10-03 | D35: 5000 | H35: 5000 | I35: رسم شهادة | J35: محاسبة
B36: 3645 | C36: 2019-10-03 | G36: 1000 | H36: 1000 | I36: اعتراض | J36: محاسبة
A37: رشا العجي | B37: 3646 | C37: 2019-10-07 | D37: 5000 | H37: 5000 | I37: كشف (6) | J37: اعلام
B38: 3647 | C38: 2019-10-07 | D38: 5000 | H38: 5000 | I38: كشف (6) | J38: ترجمة
A39: عبادة الأسدي | B39: 3648 | C39: 2019-10-07 | G39: 5000 | H39: 5000 | I39: براءة ذمة | J39: اعلام
B40: 3649 | C40: 2019-10-07 | G40: 1000 | H40: 1000 | I40: اعتراض | J40: ترجمة
B41: 3650 | C41: 2019-10-07 | G41: 1000 | H41: 1000 | I41: اعتراض | J41: محاسبة
A42: ايمان زيتون | B42: 3651 | C42: 2019-10-07 | D42: 5000 | H42: 5000 | I42: كشف (6) | J42: اعلام
B43: 3652 | C43: 2019-10-07 | G43: 900 | H43: 900 | I43: استكمال رسوم | J43: محاسبة
B44: 3653 | C44: 2019-10-07 | D44: 2000 | H44: 2000 | I44: كشف (1) | J44: محاسبة
A45: نذيره الضرير | B45: 3654 | C45: 2019-10-07 | D45: 2000 | H45: 2000 | I45: كشف (1) | J45: اعلام
B46: 3655 | C46: 2019-10-07 | G46: 1000 | H46: 1000 | I46: اعتراض | J46: محاسبة
D47: =SUM(D2:D46) -> 66400 | E47: =SUM(E2:E46) -> 0 | F47: =SUM(F2:F46) -> 0 | G47: =SUM(G2:G46) -> 27900 | H47: =SUM(H2:H46) -> 94300

Sheet p28
A1: الاسم | B1: رقم ايصال | C1: تاريخ | D1: مختلفة | E1: تسليف | F1: رسم سنوي | G1: خدمات | H1: مجموع | I1: النوع | J1: القسم | K1: mine!A1
B2: 3656 | C2: 2019-10-08 | D2: 5000 | H2: 5000 | I2: بدل ضائع مصدقة (1) | J2: ترجمة
B3: 3657 | C3: 2019-10-08 | D3: 2000 | H3: 2000 | I3: كشف (1) | J3: ادارة مشروعات
A4: حسان شرف | B4: 3658 | C4: 2019-10-08 | D4: 2000 | H4: 2000 | I4: كشف (1) | J4: اعلام | K4: متخرج
B5: 3659 | C5: 2019-10-08 | G5: 1000 | H5: 1000 | I5: اعتراض | J5: محاسبة
B6: 3660 | C6: 2019-10-08 | D6: 2000 | H6: 2000 | I6: كشف (1) | J6: محاسبة
B7: 3661 | C7: 2019-10-08 | D7: 2000 | H7: 2000 | I7: كشف (1) | J7: ترجمة
A8: احمد اسماعيل | B8: 3362 | C8: 2019-10-08 | D8: 5000 | H8: 5000 | I8: رسم شهادة | J8: اعلام
B9: 3663 | C9: 2019-10-09 | G9: 1000 | H9: 1000 | I9: اعتراض | J9: ترجمة
B10: 3664 | C10: 2019-10-09 | G10: 1000 | H10: 1000 | I10: اعتراض | J10: ترجمة
B11: 3665 | C11: 2019-10-09 | D11: 2000 | H11: 2000 | I11: كشف (1) | J11: ادارة مشروعات
A12: ريم زيدان | B12: 3666 | C12: 2019-10-09 | D12: 5000 | H12: 5000 | I12: رسم شهادة | J12: اعلام | K12: متخرج
B13: 3667 | C13: 2019-10-09 | D13: 5000 | H13: 5000 | I13: كشف (6) | J13: ترجمة
B14: 3668 | C14: 2019-10-09 | G14: 1000 | H14: 1000 | I14: استكمال رسوم | J14: ادارة مشروعات
B15: 3669 | C15: 2019-10-09 | D15: 2000 | H15: 2000 | I15: كشف (1) | J15: محاسبة
B16: 3670 | C16: 2019-10-09 | D16: 2000 | H16: 2000 | I16: كشف (1) | J16: ادارة مشروعات
B17: 3671 | C17: 2019-10-09 | G17: 1000 | H17: 1000 | I17: استكمال رسوم | J17: ادارة مشروعات
B18: 3672 | C18: 2019-10-09 | D18: 2000 | H18: 2000 | I18: كشف (1) | J18: محاسبة
B19: 3673 | C19: 2019-10-09 | D19: 5000 | H19: 5000 | I19: رسم شهادة | J19: محاسبة
B20: 3674 | C20: 2019-10-10 | D20: 2000 | H20: 2000 | I20: كشف (1) | J20: محاسبة
B21: 3675 | C21: 2019-10-10 | D21: 2000 | H21: 2000 | I21: كشف (1) | J21: محاسبة
B22: 3676 | C22: 2019-10-10 | D22: 5000 | H22: 5000 | I22: كشف (6) | J22: ادارة مشروعات
B23: 3677 | C23: 2019-10-10 | D23: 5000 | H23: 5000 | I23: كشف (6) | J23: ترجمة
B24: 3678 | C24: 2019-10-10 | D24: 5000 | H24: 5000 | I24: كشف (6) | J24: محاسبة
B25: 3679 | C25: 2019-10-10 | D25: 5000 | H25: 5000 | I25: كشف (6) | J25: ترجمة
B26: 3680 | C26: 2019-10-10 | D26: 2000 | H26: 2000 | I26: كشف (1) | J26: ترجمة
A27: جولي اصطفان | B27: 3681 | C27: 2019-10-10 | D27: 2000 | H27: 2000 | I27: كشف (1) | J27: اعلام
B28: 3682 | C28: 2019-10-10 | D28: 2000 | H28: 2000 | I28: كشف (1) | J28: ادارة مشروعات
A29: طارق الزعبي | B29: 3683 | C29: 2019-10-13 | G29: 2000 | H29: 2000 | I29: براءة ذمة | J29: اعلام | K29: متخرج
B30: 3684 | C30: 2019-10-13 | D30: 5000 | H30: 5000 | I30: كشف (6) | J30: ترجمة
B31: 3685 | C31: 2019-10-13 | D31: 2000 | H31: 2000 | I31: كشف (1) | J31: محاسبة
B32: 3686 | C32: 2019-10-13 | G32: 400 | H32: 400 | I32: براءة ذمة | J32: ترجمة
B33: 3687 | C33: 2019-10-13 | D33: 2000 | H33: 2000 | I33: كشف (1) | J33: ترجمة
B34: 3688 | C34: 2019-10-13 | D34: 2000 | H34: 2000 | I34: كشف (1) | J34: ادارة مشروعات
B35: 3689 | C35: 2019-10-13 | D35: 2000 | H35: 2000 | I35: كشف (1) | J35: محاسبة
B36: 3690 | C36: 2019-10-13 | D36: 5000 | H36: 5000 | I36: بدل تالف مصدقة | J36: معلم صف
B37: 3691 | C37: 2019-10-13 | D37: 5000 | H37: 5000 | I37: بدل تالف شهادة | J37: معلم صف
B38: 3692 | C38: 2019-10-13 | D38: 2000 | H38: 2000 | I38: كشف (1) | J38: محاسبة
B39: 3693 | C39: 2019-10-14 | D39: 5000 | H39: 5000 | I39: رسم شهادة | J39: ترجمة
B40: 3694 | C40: 2019-10-14 | G40: 3000 | H40: 3000 | I40: استكمال رسوم | J40: ادارة مشروعات
B41: 3695 | C41: 2019-10-14 | G41: 1000 | H41: 1000 | I41: براءة ذمة | J41: رياض اطفال
B42: 3696 | C42: 2019-10-14 | D42: 2000 | H42: 2000 | I42: كشف (1) | J42: ادارة مشروعات
B43: 3697 | C43: 2019-10-14 | D43: 5000 | H43: 5000 | I43: كشف (6) | J43: محاسبة
B44: 3698 | C44: 2019-10-14 | D44: 2000 | H44: 2000 | I44: كشف (1) | J44: ترجمة
B45: 3699 | C45: 2019-10-14 | D45: 2000 | H45: 2000 | I45: كشف (1) | J45: ترجمة
B46: 3700 | C46: 2019-10-15 | D46: 2000 | H46: 2000 | I46: كشف (1) | J46: ترجمة
D47: =SUM(D2:D46) -> 114000 | E47: =SUM(E2:E46) -> 0 | F47: =SUM(F2:F46) -> 0 | G47: =SUM(G2:G46) -> 11400 | H47: =SUM(H2:H46) -> 125400

Sheet p29
A1: الاسم | B1: رقم ايصال | C1: تاريخ | D1: مختلفة | E1: تسليف | F1: رسم سنوي | G1: خدمات | H1: مجموع | I1: النوع | J1: القسم | K1: mine!A1
B2: 3701 | C2: 2019-10-15 | G2: 1500 | H2: 1500 | I2: استكمال رسوم | J2: ترجمة
B3: 3702 | C3: 2019-10-15 | D3: 3000 | H3: 3000 | I3: رسم اختبار ماجستير | J3: رياض اطفال
B4: 3703 | C4: 2019-10-15 | D4: 2000 | H4: 2000 | I4: كشف (1) | J4: ترجمة
B5: 3704 | C5: 2019-10-15 | D5: 5000 | H5: 5000 | I5: كشف (6) | J5: ادارة مشروعات
B6: 3705 | C6: 2019-10-16 | D6: 5000 | H6: 5000 | I6: كشف (6) | J6: محاسبة
A7: سمر الخمري | B7: 3706 | C7: 2019-10-16 | D7: 200 | H7: 200 | I7: بدل ضائع بطاقة | J7: اعلام
B8: 3707 | C8: 2019-10-17 | D8: 5000 | H8: 5000 | I8: كشف (6) | J8: ترجمة
B9: 3708 | C9: 2019-10-17 | D9: 5000 | H9: 5000 | I9: رسم شهادة | J9: ترجمة
B10: 3709 | C10: 2019-10-17 | G10: 2500 | H10: 2500 | I10: استكمال رسوم | J10: ترجمة
A11: ضحى محفوض | B11: 3710 | C11: 2019-10-17 | D11: 2000 | H11: 2000 | I11: كشف (1) | J11: اعلام
B12: 3711 | C12: 2019-10-20 | D12: 5000 | H12: 5000 | I12: كشف (6) | J12: ادارة مشروعات
B13: 3712 | C13: 2019-10-20 | D13: 2000 | H13: 2000 | I13: كشف (1) | J13: ترجمة
B14: 3713 | C14: 2019-10-20 | D14: 2000 | H14: 2000 | I14: كشف (1) | J14: ادارة مشروعات
B15: 3714 | C15: 2019-10-20 | D15: 2000 | H15: 2000 | I15: كشف (1) | J15: ادارة مشروعات
B16: 3715 | C16: 2019-10-20 | D16: 2000 | H16: 2000 | I16: كشف (1) | J16: ترجمة
B17: 3716 | C17: 2019-10-20 | D17: 2000 | H17: 2000 | I17: كشف (1) | J17: محاسبة
B18: 3717 | C18: 2019-10-20 | D18: 2000 | H18: 2000 | I18: كشف (1) | J18: ترجمة
B19: 3718 | C19: 2019-10-21 | D19: 5000 | H19: 5000 | I19: كشف (6) | J19: محاسبة
B20: 3719 | C20: 2019-10-21 | D20: 200 | H20: 200 | I20: بدل ضائع بطاقة | J20: ترجمة
B21: 3720 | C21: 2019-10-21 | D21: 2000 | H21: 2000 | I21: كشف (1) | J21: ترجمة
B22: 3721 | C22: 2019-10-21 | D22: 5000 | H22: 5000 | I22: كشف (6) | J22: ترجمة
B23: 3722 | C23: 2019-10-21 | D23: 2000 | H23: 2000 | I23: كشف (1) | J23: ادارة مشروعات
B24: 3723 | C24: 2019-10-21 | D24: 5000 | H24: 5000 | I24: رسم شهادة | J24: ترجمة
B25: 3724 | C25: 2019-10-21 | G25: 1000 | H25: 1000 | I25: استكمال رسوم | J25: ادارة مشروعات
B26: 3725 | C26: 2019-10-22 | D26: 2000 | H26: 2000 | I26: كشف (1) | J26: ادارة مشروعات
A27: لانا المرادني | B27: 3726 | C27: 2019-10-22 | D27: 5000 | H27: 5000 | I27: رسم شهادة | J27: اعلام | K27: متخرج
B28: 3727 | C28: 2019-10-23 | D28: 2000 | H28: 2000 | I28: كشف (1) | J28: محاسبة
A29: سعيد عبده | B29: 3728 | C29: 2019-10-23 | D29: 2000 | H29: 2000 | I29: كشف (1) | J29: اعلام
A30: قصي زغموت | B30: 3729 | C30: 2019-10-23 | D30: 200 | H30: 200 | I30: بدل ضائع بطاقة | J30: اعلام
B31: 3730 | C31: 2019-10-23 | D31: 5000 | H31: 5000 | I31: بدل ضائع مصدقة (1) | J31: دراسات قانونية
B32: 3731 | C32: 2019-10-23 | D32: 2000 | H32: 2000 | I32: كشف (1) | J32: ترجمة
A33: كرم الله سويد | B33: 3732 | C33: 2019-10-24 | D33: 2000 | H33: 2000 | I33: كشف (1) | J33: اعلام
B34: 3733 | C34: 2019-10-24 | D34: 2000 | H34: 2000 | I34: كشف (1) | J34: محاسبة
B35: 3734 | C35: 2019-10-24 | D35: 2000 | H35: 2000 | I35: كشف (1) | J35: ادارة مشروعات
A36: تغريد الجلاد | B36: 3735 | C36: 2019-10-24 | D36: 5000 | H36: 5000 | I36: كشف (6) | J36: اعلام
B37: 3736 | C37: 2019-10-24 | D37: 5000 | H37: 5000 | I37: كشف (6) | J37: ترجمة
B38: 3737 | C38: 2019-10-24 | D38: 5000 | H38: 5000 | I38: كشف (6) | J38: محاسبة
B39: 3738 | C39: 2019-10-24 | G39: 1500 | H39: 1500 | I39: استكمال رسوم | J39: ادارة مشروعات
B40: 3739 | C40: 2019-10-24 | D40: 2000 | H40: 2000 | I40: كشف (1) | J40: ترجمة
A41: نورشان الطواح | B41: 3740 | C41: 2019-10-27 | D41: 200 | H41: 200 | I41: بدل ضائع بطاقة | J41: اعلام
A42: عمار النعمه | B42: 3741 | C42: 2019-10-27 | D42: 2000 | H42: 2000 | I42: كشف (1) | J42: اعلام
B43: 3742 | C43: 2019-10-28 | D43: 2000 | H43: 2000 | I43: كشف (1) | J43: محاسبة
B44: 3743 | C44: 2019-10-28 | D44: 5000 | H44: 5000 | I44: بدل ضائع مصدقة (1) | J44: دبلوماسية
B45: 3744 | C45: 2019-10-28 | D45: 2000 | H45: 2000 | I45: كشف (1) | J45: ترجمة
B46: 3745 | C46: 2019-10-28 | D46: 5000 | H46: 5000 | I46: كشف (6) | J46: ترجمة
D47: =SUM(D2:D46) -> 120800 | E47: =SUM(E2:E46) -> 0 | F47: =SUM(F2:F46) -> 0 | G47: =SUM(G2:G46) -> 6500 | H47: =SUM(H2:H46) -> 127300

Sheet p30
A1: الاسم | B1: رقم ايصال | C1: تاريخ | D1: مختلفة | E1: تسليف | F1: رسم سنوي | G1: خدمات | H1: مجموع | I1: النوع | J1: القسم | K1: mine!A1
B2: 3746 | C2: 2019-10-28 | D2: 5000 | H2: 5000 | I2: بدل ضائع مصدقة (1) | J2: دراسات قانونية
A3: اريج سمور | B3: 3747 | C3: 2019-10-28 | D3: 200 | H3: 200 | I3: بدل ضائع بطاقة | J3: اعلام
A4: ياسمين يوزرباشي | B4: 3748 | C4: 2019-10-28 | D4: 2000 | H4: 2000 | I4: كشف (1) | J4: اعلام
B5: 3749 | C5: 2019-10-28 | D5: 2000 | H5: 2000 | I5: كشف (1) | J5: ترجمة
B6: 3750 | C6: 2019-10-29 | D6: 2000 | H6: 2000 | I6: كشف (1) | J6: محاسبة
B7: 3751 | C7: 2019-10-29 | D7: 2000 | H7: 2000 | I7: كشف (1) | J7: محاسبة
B8: 3752 | C8: 2019-10-30 | D8: 200 | H8: 200 | I8: بدل ضائع بطاقة | J8: محاسبة
B9: 3753 | C9: 2019-10-29 | D9: 200 | H9: 200 | I9: بدل ضائع بطاقة | J9: محاسبة
B10: 3754 | C10: 2019-10-29 | D10: 5000 | H10: 5000 | I10: رسم شهادة | J10: محاسبة
B11: 3755 | C11: 2019-10-29 | D11: 5000 | H11: 5000 | I11: كشف (6) | J11: ترجمة
B12: 3756 | C12: 2019-10-30 | G12: 1000 | H12: 1000 | I12: براءة ذمة | J12: رياض اطفال
B13: 3757 | C13: 2019-10-30 | D13: 2000 | H13: 2000 | I13: كشف (1) | J13: ترجمة
B14: 3758 | C14: 2019-10-31 | D14: 5000 | H14: 5000 | I14: رسم شهادة | J14: محاسبة
B15: 3759 | C15: 2019-10-31 | G15: 1500 | H15: 1500 | I15: براءة ذمة | J15: ترجمة
B16: 3760 | C16: 2019-10-31 | D16: 2000 | H16: 2000 | I16: كشف (1) | J16: ترجمة
B17: 3761 | C17: 2019-10-31 | G17: 600 | H17: 600 | I17: براءة ذمة | J17: ترجمة
B18: 3762 | C18: 2019-10-31 | D18: 5000 | H18: 5000 | I18: كشف (6) | J18: محاسبة
B19: 3763 | C19: 2019-11-03 | D19: 200 | H19: 200 | I19: بدل ضائع بطاقة | J19: ترجمة
B20: 3764 | C20: 2019-11-03 | D20: 2000 | H20: 2000 | I20: كشف (1) | J20: محاسبة
B21: 3765 | C21: 2019-11-03 | D21: 2000 | H21: 2000 | I21: كشف (1) | J21: ادارة مشروعات
B22: 3766 | C22: 2019-11-04 | D22: 2000 | H22: 2000 | I22: كشف (1) | J22: ترجمة
B23: 3767 | C23: 2019-11-04 | D23: 2000 | H23: 2000 | I23: كشف (1) | J23: ترجمة
B24: 3768 | C24: 2019-11-04 | D24: 2000 | H24: 2000 | I24: كشف (1) | J24: ترجمة
B25: 3769 | C25: 2019-11-04 | D25: 2000 | H25: 2000 | I25: كشف (1) | J25: محاسبة
B26: 3770 | C26: 2019-11-04 | D26: 5000 | H26: 5000 | I26: رسم شهادة | J26: ترجمة
B27: 3771 | C27: 2019-11-04 | D27: 5000 | H27: 5000 | I27: كشف (6) | J27: محاسبة
A28: حسام ابو عقده | B28: 3772 | C28: 2019-11-04 | D28: 2000 | H28: 2000 | I28: كشف (1) | J28: اعلام
B29: 3773 | C29: 2019-11-05 | G29: 1500 | H29: 1500 | I29: استكمال رسوم | J29: ترجمة
B30: 3774 | C30: 2019-11-05 | D30: 2000 | H30: 2000 | I30: كشف (1) | J30: محاسبة
B31: 3775 | C31: 2019-11-05 | D31: 2000 | H31: 2000 | I31: كشف (1) | J31: محاسبة
B32: 3776 | C32: 2019-11-05 | D32: 2000 | H32: 2000 | I32: كشف (1) | J32: محاسبة
B33: 3777 | C33: 2019-11-05 | D33: 2000 | H33: 2000 | I33: كشف (1) | J33: محاسبة
B34: 3778 | C34: 2019-11-05 | D34: 2000 | H34: 2000 | I34: كشف (1) | J34: ادارة مشروعات
B35: 3779 | C35: 2019-11-06 | D35: 2000 | H35: 2000 | I35: كشف (1) | J35: محاسبة
B36: 3780 | C36: 2019-11-06 | D36: 3000 | H36: 3000 | I36: رسم اختبار ماجستير | J36: رياض اطفال
B37: 3781 | C37: 2019-11-06 | D37: 5000 | H37: 5000 | I37: كشف (6) | J37: ترجمة
B38: 3782 | C38: 2019-11-06 | D38: 5000 | H38: 5000 | I38: كشف (6) | J38: ترجمة
B39: 3783 | C39: 2019-11-06 | D39: 3000 | H39: 3000 | I39: رسم اختبار ماجستير | J39: محاسبة
B40: 3784 | C40: 2019-11-06 | D40: 2000 | H40: 2000 | I40: كشف (1) | J40: ادارة مشروعات
B41: 3785 | C41: 2019-11-06 | G41: 1000 | H41: 1000 | I41: استكمال رسوم | J41: محاسبة
B42: 3786 | C42: 2019-11-06 | D42: 2000 | H42: 2000 | I42: كشف (1) | J42: ادارة مشروعات
B43: 3787 | C43: 2019-11-06 | D43: 200 | H43: 200 | I43: بدل ضائع بطاقة | J43: ادارة مشروعات
B44: 3788 | C44: 2019-11-07 | D44: 2000 | H44: 2000 | I44: كشف (1) | J44: ادارة مشروعات
B45: 3789 | C45: 2019-11-07 | D45: 2000 | H45: 2000 | I45: كشف (1) | J45: ترجمة
B46: 3790 | C46: 2019-11-07 | G46: 1000 | H46: 1000 | I46: استكمال رسوم | J46: ترجمة
D47: =SUM(D2:D46) -> 98000 | E47: =SUM(E2:E46) -> 0 | F47: =SUM(F2:F46) -> 0 | G47: =SUM(G2:G46) -> 6600 | H47: =SUM(H2:H46) -> 104600

Sheet p31
A1: الاسم | B1: رقم ايصال | C1: تاريخ | D1: مختلفة | E1: تسليف | F1: رسم سنوي | G1: خدمات | H1: مجموع | I1: النوع | J1: القسم | K1: mine!A1
B2: 3791 | C2: 2019-11-07 | D2: 3000 | H2: 3000 | I2: رسم اختبار ماجستير | J2: ادارة مشروعات
B3: 3792 | C3: 2019-11-07 | D3: 2000 | H3: 2000 | I3: كشف (1) | J3: ترجمة
A4: شحاده العسافين | B4: 3793 | C4: 2019-11-07 | D4: 2000 | H4: 2000 | I4: كشف (1) | J4: اعلام
B5: 3794 | C5: 2019-11-07 | D5: 3000 | H5: 3000 | I5: رسم اختبار ماجستير | J5: ترجمة
B6: 3795 | C6: 2019-11-07 | D6: 3000 | H6: 3000 | I6: رسم اختبار ماجستير | J6: محاسبة
B7: 3796 | C7: 2019-11-07 | D7: 2000 | H7: 2000 | I7: كشف (1) | J7: محاسبة
B8: 3797 | C8: 2019-11-07 | G8: 2000 | H8: 2000 | I8: براءة ذمة | J8: ترجمة
B9: 3798 | C9: 2019-11-07 | D9: 2000 | H9: 2000 | I9: كشف (1) | J9: ادارة مشروعات
B10: 3799 | C10: 2019-11-07 | D10: 2000 | H10: 2000 | I10: كشف (1) | J10: محاسبة
B11: 3800 | C11: 2019-11-11 | D11: 200 | H11: 200 | I11: بدل ضائع بطاقة | J11: ادارة مشروعات
B12: 3801 | C12: 2019-11-11 | D12: 3000 | H12: 3000 | I12: رسم اختبار ماجستير | J12: ادارة مشروعات
B13: 3802 | C13: 2019-11-11 | D13: 2000 | H13: 2000 | I13: كشف (1) | J13: محاسبة
B14: 3803 | C14: 2019-11-11 | D14: 2000 | H14: 2000 | I14: كشف (1) | J14: محاسبة
A15: حسانه سقباني | B15: 3804 | C15: 2019-11-11 | D15: 3000 | H15: 3000 | I15: رسم اختبار ماجستير | J15: اعلام
B16: 3805 | C16: 2019-11-12 | D16: 2000 | H16: 2000 | I16: كشف (1) | J16: ادارة مشروعات
B17: 3806 | C17: 2019-11-12 | G17: 1500 | H17: 1500 | I17: استكمال رسوم | J17: ترجمة
B18: 3807 | C18: 2019-11-12 | D18: 2000 | H18: 2000 | I18: كشف (1) | J18: ادارة مشروعات
B19: 3808 | C19: 2019-11-12 | D19: 2000 | H19: 2000 | I19: كشف (1) | J19: محاسبة
B20: 3809 | C20: 2019-11-12 | D20: 2000 | H20: 2000 | I20: كشف (1) | J20: ترجمة
B21: 3810 | C21: 2019-11-12 | D21: 200 | H21: 200 | I21: بدل ضائع بطاقة | J21: محاسبة
B22: 3811 | C22: 2019-11-12 | D22: 2000 | H22: 2000 | I22: كشف (1) | J22: ادارة مشروعات
A23: عدي الشامي | B23: 3812 | C23: 2019-11-12 | D23: 5000 | H23: 5000 | I23: بدل ضائع مصدقة (1) | J23: اعلام
B24: 3813 | C24: 2019-11-13 | D24: 5000 | H24: 5000 | I24: كشف (6) | J24: ترجمة
B25: 3814 | C25: 2019-11-13 | D25: 2000 | H25: 2000 | I25: كشف (1) | J25: ادارة مشروعات
B26: 3815 | C26: 2019-11-13 | D26: 2000 | H26: 2000 | I26: كشف (1) | J26: ترجمة
B27: 3816 | C27: 2019-11-13 | D27: 5000 | H27: 5000 | I27: كشف (6) | J27: ترجمة
B28: 3817 | C28: 2019-11-13 | D28: 5000 | H28: 5000 | I28: رسم شهادة | J28: محاسبة
B29: 3818 | C29: 2019-11-14 | G29: 5000 | H29: 5000 | I29: استكمال رسوم | J29: ادارة مشروعات
B30: 3819 | C30: 2019-11-14 | D30: 2000 | H30: 2000 | I30: كشف (1) | J30: محاسبة
B31: 3820 | C31: 2019-11-17 | D31: 2000 | H31: 2000 | I31: كشف (1) | J31: محاسبة
B32: 3821 | C32: 2019-11-17 | D32: 200 | H32: 200 | I32: بدل ضائع بطاقة | J32: ادارة مشروعات
B33: 3822 | C33: 2019-11-17 | D33: 2000 | H33: 2000 | I33: كشف (1) | J33: ترجمة
B34: 3823 | C34: 2019-11-17 | D34: 2000 | H34: 2000 | I34: كشف (1) | J34: ترجمة
B35: 3824 | C35: 2019-11-17 | D35: 2000 | H35: 2000 | I35: كشف (1) | J35: ترجمة
B36: 3825 | C36: 2019-11-17 | G36: 1500 | H36: 1500 | I36: استكمال رسوم | J36: ترجمة
B37: 3826 | C37: 2019-11-17 | D37: 2000 | H37: 2000 | I37: كشف (1) | J37: ادارة مشروعات
B38: 3827 | C38: 2019-11-17 | D38: 5000 | H38: 5000 | I38: كشف (6) | J38: ترجمة
B39: 3828 | C39: 2019-11-17 | D39: 2000 | H39: 2000 | I39: كشف (1) | J39: ترجمة
B40: 3829 | C40: 2019-11-17 | D40: 2000 | H40: 2000 | I40: كشف (1) | J40: محاسبة
B41: 3830 | C41: 2019-11-17 | G41: 1500 | H41: 1500 | I41: استكمال رسوم | J41: ترجمة
B42: 3831 | C42: 2019-11-17 | D42: 2000 | H42: 2000 | I42: كشف (1) | J42: ادارة مشروعات
A43: شادي سمو | B43: 3832 | C43: 2019-11-18 | D43: 2000 | H43: 2000 | I43: كشف (1) | J43: اعلام
A44: رامي بركات | B44: 3833 | C44: 2019-11-18 | D44: 2000 | H44: 2000 | I44: كشف (1) | J44: اعلام
B45: 3834 | C45: 2019-11-18 | D45: 2000 | H45: 2000 | I45: كشف (1) | J45: محاسبة
A46: محمد نور الشلحة | B46: 3835 | C46: 2019-11-18 | D46: 200 | H46: 200 | I46: بدل ضائع بطاقة | J46: اعلام
D47: =SUM(D2:D46) -> 92800 | E47: =SUM(E2:E46) -> 0 | F47: =SUM(F2:F46) -> 0 | G47: =SUM(G2:G46) -> 11500 | H47: =SUM(H2:H46) -> 104300

Sheet p32
A1: الاسم | B1: رقم ايصال | C1: تاريخ | D1: مختلفة | E1: تسليف | F1: رسم سنوي | G1: خدمات | H1: مجموع | I1: النوع | J1: القسم | K1: mine!A1
A2: حنان بريغش | B2: 3836 | C2: 2019-11-18 | D2: 200 | H2: 200 | I2: بدل ضائع بطاقة | J2: اعلام
B3: 3837 | C3: 2019-11-18 | D3: 2000 | H3: 2000 | I3: كشف (1) | J3: محاسبة
B4: 3838 | C4: 2019-11-18 | D4: 2000 | H4: 2000 | I4: كشف (1) | J4: محاسبة
B5: 3839 | C5: 2019-11-18 | D5: 2000 | H5: 2000 | I5: كشف (1) | J5: محاسبة
B6: 3840 | C6: 2019-11-18 | D6: 5000 | H6: 5000 | I6: كشف (6) | J6: محاسبة
B7: 3841 | C7: 2019-11-19 | D7: 2000 | H7: 2000 | I7: كشف (1) | J7: ترجمة
B8: 3842 | C8: 2019-11-19 | D8: 2000 | H8: 2000 | I8: كشف (1) | J8: محاسبة
B9: 3843 | C9: 2019-11-19 | D9: 2000 | H9: 2000 | I9: كشف (1) | J9: محاسبة
A10: تمام فطوم | B10: 3844 | C10: 2019-11-19 | D10: 5000 | H10: 5000 | I10: كشف (6) | J10: اعلام
B11: 3845 | C11: 2019-11-19 | D11: 2000 | H11: 2000 | I11: كشف (1) | J11: ترجمة
A12: شفاء البليلي | B12: 3846 | C12: 2019-11-19 | D12: 2000 | H12: 2000 | I12: كشف (1) | J12: اعلام
A13: ادهم عجميه | B13: 3847 | C13: 2019-11-19 | D13: 2000 | H13: 2000 | I13: كشف (1) | J13: اعلام
B14: 3848 | C14: 2019-11-19 | D14: 2000 | H14: 2000 | I14: كشف (1) | J14: ترجمة
B15: 3849 | C15: 2019-11-20 | G15: 2500 | H15: 2500 | I15: استكمال رسوم | J15: ترجمة
B16: 3850 | C16: 2019-11-20 | D16: 2000 | H16: 2000 | I16: كشف (1) | J16: محاسبة
B17: 3851 | C17: 2019-11-20 | D17: 2000 | H17: 2000 | I17: كشف (1) | J17: محاسبة
B18: 3852 | C18: 2019-11-20 | G18: 1400 | H18: 1400 | I18: استكمال رسوم | J18: ادارة مشروعات
B19: 3853 | C19: 2019-11-20 | D19: 2000 | H19: 2000 | I19: كشف (1) | J19: محاسبة
B20: 3854 | C20: 2019-11-20 | D20: 200 | H20: 200 | I20: بدل ضائع بطاقة | J20: محاسبة
A21: هدى حسين | B21: 3855 | C21: 2019-11-20 | D21: 2000 | H21: 2000 | I21: كشف (1) | J21: اعلام
B22: 3856 | C22: 2019-11-20 | D22: 2000 | H22: 2000 | I22: كشف (1) | J22: ترجمة
B23: 3857 | C23: 2019-11-21 | E23: 100 | F23: 800 | H23: 900 | I23: رسم تسجيل | J23: محاسبة
B24: 3858 | C24: 2019-11-21 | D24: 2000 | H24: 2000 | I24: كشف (1) | J24: محاسبة
A25: عمار عقيل | B25: 3859 | C25: 2019-11-21 | D25: 2000 | H25: 2000 | I25: كشف (1) | J25: اعلام
B26: 3860 | C26: 2019-11-21 | D26: 5000 | H26: 5000 | I26: رسم شهادة | J26: ترجمة
B27: 3861 | C27: 2019-11-21 | D27: 2000 | H27: 2000 | I27: كشف (1) | J27: ادارة مشروعات
B28: 3862 | C28: 2019-11-21 | D28: 5000 | H28: 5000 | I28: كشف (6) | J28: ترجمة
B29: 3863 | C29: 2019-11-21 | G29: 1000 | H29: 1000 | I29: استكمال رسوم | J29: ترجمة
B30: 3864 | C30: 2019-11-21 | D30: 2000 | H30: 2000 | I30: كشف (1) | J30: ترجمة
B31: 3865 | C31: 2019-11-21 | D31: 2000 | H31: 2000 | I31: كشف (1) | J31: ترجمة
B32: 3866 | C32: 2019-11-21 | D32: 5000 | H32: 5000 | I32: رسم شهادة | J32: محاسبة
B33: 3867 | C33: 2019-11-21 | G33: 1400 | H33: 1400 | I33: استكمال رسوم | J33: محاسبة
B34: 3868 | C34: 2019-11-21 | D34: 5000 | H34: 5000 | I34: رسم شهادة | J34: ترجمة
B35: 3869 | C35: 2019-11-21 | D35: 5000 | H35: 5000 | I35: كشف (6) | J35: ترجمة
B36: 3870 | C36: 2019-11-24 | G36: 2000 | H36: 2000 | I36: استكمال رسوم | J36: ادارة مشروعات
B37: 3871 | C37: 2019-11-24 | D37: 5000 | H37: 5000 | I37: رسم شهادة | J37: ترجمة
B38: 3872 | C38: 2019-11-24 | D38: 200 | H38: 200 | I38: بدل ضائع بطاقة | J38: محاسبة
B39: 3873 | C39: 2019-11-24 | D39: 2000 | H39: 2000 | I39: كشف (1) | J39: ترجمة
B40: 3874 | C40: 2019-11-24 | D40: 2000 | H40: 2000 | I40: كشف (1) | J40: ادارة مشروعات
B41: 3875 | C41: 2019-11-24 | D41: 5000 | H41: 5000 | I41: كشف (6) | J41: محاسبة
B42: 3876 | C42: 2019-11-24 | D42: 2000 | H42: 2000 | I42: كشف (1) | J42: محاسبة
B43: 3877 | C43: 2019-11-24 | D43: 2000 | H43: 2000 | I43: كشف (1) | J43: محاسبة
B44: 3878 | C44: 2019-11-24 | E44: 100 | F44: 800 | H44: 900 | I44: رسم تسجيل | J44: محاسبة
B45: 3879 | C45: 2019-11-24 | G45: 1500 | H45: 1500 | I45: استكمال رسوم | J45: ادارة مشروعات
A46: حيدر زهره | B46: 3880 | C46: 2019-11-24 | G46: 3600 | H46: 3600 | I46: استكمال رسوم | J46: اعلام
D47: =SUM(D2:D46) -> 93600 | E47: =SUM(E2:E46) -> 200 | F47: =SUM(F2:F46) -> 1600 | G47: =SUM(G2:G46) -> 13400 | H47: =SUM(H2:H46) -> 108800

Sheet p33
A1: الاسم | B1: رقم ايصال | C1: تاريخ | D1: مختلفة | E1: تسليف | F1: رسم سنوي | G1: خدمات | H1: مجموع | I1: النوع | J1: القسم | K1: mine!A1
B2: 3881 | C2: 2019-11-24 | E2: 100 | F2: 800 | H2: 900 | I2: رسم تسجيل | J2: ادارة مشروعات
B3: 3882 | C3: 2019-11-24 | G3: 4400 | H3: 4400 | I3: استكمال رسوم | J3: ادارة مشروعات
B4: 3883 | C4: 2019-11-25 | D4: 2000 | H4: 2000 | I4: كشف (1) | J4: ادارة مشروعات
B5: 3884 | C5: 2019-11-25 | E5: 100 | F5: 800 | H5: 900 | I5: رسم تسجيل | J5: ترجمة
B6: 3885 | C6: 2019-11-25 | G6: 900 | H6: 900 | I6: استكمال رسوم | J6: ادارة مشروعات
B7: 3886 | C7: 2019-11-25 | G7: 2000 | H7: 2000 | I7: استكمال رسوم | J7: ادارة مشروعات
B8: 3887 | C8: 2019-11-25 | D8: 5000 | H8: 5000 | I8: رسم شهادة | J8: محاسبة
B9: 3888 | C9: 2019-11-25 | G9: 2500 | H9: 2500 | I9: براءة ذمة | J9: رياض اطفال
B10: 3889 | C10: 2019-11-25 | E10: 100 | F10: 800 | H10: 900 | I10: رسم تسجيل | J10: محاسبة
B11: 3890 | C11: 2019-11-25 | D11: 2000 | H11: 2000 | I11: كشف (1) | J11: محاسبة
B12: 3891 | C12: 2019-11-25 | E12: 100 | F12: 800 | H12: 900 | I12: رسم تسجيل | J12: ترجمة
B13: 3892 | C13: 2019-11-25 | D13: 2000 | H13: 2000 | I13: كشف (1) | J13: محاسبة
B14: 3893 | C14: 2019-11-25 | D14: 2000 | H14: 2000 | I14: كشف (1) | J14: ادارة مشروعات
B15: 3894 | C15: 2019-11-25 | G15: 1500 | H15: 1500 | I15: استكمال رسوم | J15: ترجمة
B16: 3895 | C16: 2019-11-25 | E16: 100 | F16: 800 | H16: 900 | I16: رسم تسجيل | J16: محاسبة
B17: 3896 | C17: 2019-11-25 | D17: 2000 | H17: 2000 | I17: كشف (1) | J17: ترجمة
B18: 3897 | C18: 2019-11-25 | D18: 2000 | H18: 2000 | I18: كشف (1) | J18: ترجمة
B19: 3898 | C19: 2019-11-26 | D19: 2000 | H19: 2000 | I19: كشف (1) | J19: ادارة مشروعات
A20: انيا عليا | B20: 3899 | C20: 2019-11-26 | E20: 100 | F20: 800 | H20: 900 | I20: رسم تسجيل | J20: اعلام
B21: 3900 | C21: 2019-11-26 | G21: 2500 | H21: 2500 | I21: استكمال رسوم | J21: محاسبة
B22: 3901 | C22: 2019-11-26 | D22: 200 | H22: 200 | I22: بدل ضائع بطاقة | J22: ترجمة
B23: 3902 | C23: 2019-11-26 | D23: 2000 | H23: 2000 | I23: كشف (1) | J23: ادارة مشروعات
B24: 3903 | C24: 2019-11-26 | D24: 200 | H24: 200 | I24: بدل ضائع بطاقة | J24: ادارة مشروعات
B25: 3904 | C25: 2019-11-26 | D25: 2000 | H25: 2000 | I25: كشف (1) | J25: ادارة مشروعات
B26: 3905 | C26: 2019-11-26 | G26: 5000 | H26: 5000 | I26: استكمال رسوم | J26: ترجمة
B27: 3906 | C27: 2019-11-26 | G27: 1500 | H27: 1500 | I27: استكمال رسوم | J27: ترجمة
A28: انتصار رسلان | B28: 3907 | C28: 2019-11-26 | E28: 100 | F28: 800 | H28: 900 | I28: رسم تسجيل | J28: اعلام
A29: انطوانيت جزارة | B29: 3908 | C29: 2019-11-26 | D29: 2000 | H29: 2000 | I29: كشف (1) | J29: اعلام
B30: 3909 | C30: 2019-11-26 | E30: 100 | F30: 800 | H30: 900 | I30: رسم تسجيل | J30: ترجمة
B31: 3910 | C31: 2019-11-26 | D31: 2000 | H31: 2000 | I31: كشف (1) | J31: ترجمة
B32: 3911 | C32: 2019-11-26 | D32: 2000 | H32: 2000 | I32: كشف (1) | J32: ادارة مشروعات
B33: 3912 | C33: 2019-11-27 | E33: 100 | F33: 800 | H33: 900 | I33: رسم تسجيل | J33: ادارة مشروعات
B34: 3913 | C34: 2019-11-27 | E34: 100 | F34: 800 | H34: 900 | I34: رسم تسجيل | J34: محاسبة
B35: 3914 | C35: 2019-11-27 | D35: 2000 | H35: 2000 | I35: كشف (1) | J35: محاسبة
B36: 3915 | C36: 2019-11-27 | E36: 100 | F36: 800 | H36: 900 | I36: رسم تسجيل | J36: ادارة مشروعات
B37: 3916 | C37: 2019-11-27 | D37: 5000 | H37: 5000 | I37: رسم شهادة | J37: ادارة مشروعات
B38: 3917 | C38: 2019-11-27 | E38: 100 | F38: 800 | H38: 900 | I38: رسم تسجيل | J38: محاسبة
B39: 3918 | C39: 2019-11-27 | E39: 100 | F39: 800 | H39: 900 | I39: رسم تسجيل | J39: ترجمة
B40: 3919 | C40: 2019-11-27 | G40: 5600 | H40: 5600 | I40: براءة ذمة | J40: رياض اطفال
B41: 3920 | C41: 2019-11-27 | G41: 1500 | H41: 1500 | I41: استكمال رسوم | J41: ادارة مشروعات
B42: 3921 | C42: 2019-11-27 | G42: 900 | H42: 900 | I42: استكمال رسوم | J42: ادارة مشروعات
A43: نسرين عمر | B43: 3922 | C43: 2019-11-27 | D43: 2000 | H43: 2000 | I43: كشف (1) | J43: اعلام
B44: 3923 | C44: 2019-11-28 | D44: 5000 | H44: 5000 | I44: كشف (6) | J44: محاسبة
B45: 3924 | C45: 2019-11-28 | D45: 2000 | H45: 2000 | I45: كشف (1) | J45: ادارة مشروعات
B46: 3925 | C46: 2019-11-28 | D46: 2000 | H46: 2000 | I46: كشف (1) | J46: ترجمة
D47: =SUM(D2:D46) -> 47400 | E47: =SUM(E2:E46) -> 1300 | F47: =SUM(F2:F46) -> 10400 | G47: =SUM(G2:G46) -> 28300 | H47: =SUM(H2:H46) -> 87400

Sheet p34
A1: الاسم | B1: رقم ايصال | C1: تاريخ | D1: مختلفة | E1: تسليف | F1: رسم سنوي | G1: خدمات | H1: مجموع | I1: النوع | J1: القسم | K1: mine!A1
B2: 3926 | C2: 2019-11-28 | E2: 100 | F2: 800 | H2: 900 | I2: رسم تسجيل | J2: ترجمة
B3: 3927 | C3: 2019-11-28 | D3: 2000 | H3: 2000 | I3: كشف (1) | J3: محاسبة
B4: 3928 | C4: 2019-11-28 | E4: 100 | F4: 800 | H4: 900 | I4: رسم تسجيل | J4: ترجمة
B5: 3929 | C5: 2019-11-28 | E5: 100 | F5: 800 | H5: 900 | I5: رسم تسجيل | J5: ترجمة
B6: 3930 | C6: 2019-11-28 | E6: 100 | F6: 800 | H6: 900 | I6: رسم تسجيل | J6: محاسبة
A7: رامي بركات | B7: 3931 | C7: 2019-11-28 | D7: 5000 | H7: 5000 | I7: مصدقة تخرج بديلة | J7: اعلام
B8: 3932 | C8: 2019-11-28 | E8: 100 | F8: 800 | H8: 900 | I8: رسم تسجيل | J8: محاسبة
B9: 3933 | C9: 2019-11-28 | D9: 2000 | H9: 2000 | I9: كشف (1) | J9: ترجمة
A10: عقبة حمود | B10: 3934 | C10: 2019-11-28 | D10: 2000 | H10: 2000 | I10: كشف (1) | J10: اعلام
B11: 3935 | C11: 2019-11-28 | D11: 200 | H11: 200 | I11: بدل ضائع بطاقة | J11: ادارة مشروعات
B12: 3936 | C12: 2019-11-28 | G12: 1000 | H12: 1000 | I12: استكمال رسوم | J12: ادارة مشروعات
B13: 3937 | C13: 2019-11-28 | D13: 2000 | H13: 2000 | I13: كشف (1) | J13: ادارة مشروعات
B14: 3938 | C14: 2019-12-01 | E14: 100 | F14: 800 | H14: 900 | I14: رسم تسجيل | J14: محاسبة
A15: سيف الدين سيف | B15: 3939 | C15: 2019-12-01 | E15: 100 | F15: 800 | H15: 900 | I15: رسم تسجيل | J15: اعلام
B16: 3940 | C16: 2019-12-01 | D16: 2000 | H16: 2000 | I16: كشف (1) | J16: ادارة مشروعات
B17: 3941 | C17: 2019-12-01 | D17: 2000 | H17: 2000 | I17: كشف (1) | J17: محاسبة
B18: 3942 | C18: 2019-12-01 | E18: 100 | F18: 800 | H18: 900 | I18: رسم تسجيل | J18: محاسبة
B19: 3943 | C19: 2019-12-01 | E19: 100 | F19: 800 | H19: 900 | I19: رسم تسجيل | J19: ادارة مشروعات
B20: 3944 | C20: 2019-12-01 | D20: 2000 | H20: 2000 | I20: كشف (1) | J20: ادارة مشروعات
B21: 3945 | C21: 2019-12-01 | D21: 2000 | H21: 2000 | I21: كشف (1) | J21: محاسبة
B22: 3946 | C22: 2019-12-01 | D22: 5000 | H22: 5000 | I22: كشف (6) | J22: ادارة مشروعات
B23: 3947 | C23: 2019-12-01 | D23: 5000 | H23: 5000 | I23: كشف (6) | J23: محاسبة
B24: 3948 | C24: 2019-12-01 | D24: 2000 | H24: 2000 | I24: كشف (1) | J24: محاسبة
A25: رنده فراج الشوفي | B25: 3949 | C25: 2019-12-02 | E25: 100 | F25: 800 | H25: 900 | I25: رسم تسجيل | J25: اعلام
B26: 3950 | C26: 2019-12-01 | E26: 100 | F26: 800 | H26: 900 | I26: رسم تسجيل | J26: ترجمة
B27: 3951 | C27: 2019-12-02 | E27: 100 | F27: 800 | H27: 900 | I27: رسم تسجيل | J27: ترجمة
B28: 3952 | C28: 2019-12-02 | D28: 2000 | H28: 2000 | I28: كشف (1) | J28: ادارة مشروعات
A29: حسام رستم | B29: 3953 | C29: 2019-12-02 | E29: 100 | F29: 800 | H29: 900 | I29: رسم تسجيل | J29: اعلام
A30: زين العابدين ديوب | B30: 3954 | C30: 2019-12-02 | E30: 100 | F30: 800 | H30: 900 | I30: رسم تسجيل | J30: اعلام
B31: 3955 | C31: 2019-12-02 | G31: 2500 | H31: 2500 | I31: استكمال رسوم | J31: محاسبة
B32: 3956 | C32: 2019-12-02 | D32: 2000 | H32: 2000 | I32: كشف (1) | J32: ادارة مشروعات
B33: 3957 | C33: 2019-12-02 | D33: 2000 | H33: 2000 | I33: كشف (1) | J33: ادارة مشروعات
B34: 3958 | C34: 2019-12-02 | D34: 2000 | H34: 2000 | I34: كشف (1) | J34: ادارة مشروعات
B35: 3959 | C35: 2019-12-02 | E35: 100 | F35: 800 | H35: 900 | I35: رسم تسجيل | J35: محاسبة
B36: 3960 | C36: 2019-12-02 | E36: 100 | F36: 800 | H36: 900 | I36: رسم تسجيل | J36: محاسبة
B37: 3961 | C37: 2019-12-02 | D37: 2000 | H37: 2000 | I37: كشف (1) | J37: ادارة مشروعات
A38: وداد رحمه | B38: 3962 | C38: 2019-12-02 | E38: 100 | F38: 800 | H38: 900 | I38: رسم تسجيل | J38: اعلام
B39: 3963 | C39: 2019-12-02 | E39: 100 | F39: 800 | H39: 900 | I39: رسم تسجيل | J39: ترجمة
B40: 3964 | C40: 2019-12-02 | D40: 2000 | H40: 2000 | I40: كشف (1) | J40: ادارة مشروعات
B41: 3965 | C41: 2019-12-02 | E41: 100 | F41: 800 | H41: 900 | I41: رسم تسجيل | J41: محاسبة
B42: 3966 | C42: 2019-12-02 | D42: 2000 | H42: 2000 | I42: كشف (1) | J42: محاسبة
B43: 3967 | C43: 2019-12-02 | D43: 2000 | H43: 2000 | I43: كشف (1) | J43: محاسبة
B44: 3968 | C44: 2019-12-02 | E44: 100 | F44: 800 | H44: 900 | I44: رسم تسجيل | J44: محاسبة
B45: 3969 | C45: 2019-12-02 | E45: 100 | F45: 800 | H45: 900 | I45: رسم تسجيل | J45: محاسبة
B46: 3970 | C46: 2019-12-02 | D46: 200 | H46: 200 | I46: بدل ضائع بطاقة | J46: محاسبة
D47: =SUM(D2:D46) -> 49400 | E47: =SUM(E2:E46) -> 2100 | F47: =SUM(F2:F46) -> 16800 | G47: =SUM(G2:G46) -> 3500 | H47: =SUM(H2:H46) -> 71800

Sheet p35
A1: الاسم | B1: رقم ايصال | C1: تاريخ | D1: مختلفة | E1: تسليف | F1: رسم سنوي | G1: خدمات | H1: مجموع | I1: النوع | J1: القسم | K1: mine!A1
A2: رهف قنواتي | B2: 3971 | C2: 2019-12-02 | E2: 100 | F2: 800 | H2: 900 | I2: رسم تسجيل | J2: اعلام
A3: رانيه عنتر | B3: 3972 | C3: 2019-12-02 | E3: 100 | F3: 800 | H3: 900 | I3: رسم تسجيل | J3: اعلام
B4: 3973 | C4: 2019-12-02 | D4: 2000 | H4: 2000 | I4: كشف (1) | J4: ادارة مشروعات
B5: 3974 | C5: 2019-12-02 | D5: 2000 | H5: 2000 | I5: كشف (1) | J5: ادارة مشروعات
B6: 3975 | C6: 2019-12-02 | D6: 2000 | H6: 2000 | I6: كشف (1) | J6: ادارة مشروعات
B7: 3976 | C7: 2019-12-02 | E7: 100 | F7: 800 | H7: 900 | I7: رسم تسجيل | J7: ترجمة
B8: 3977 | C8: 2019-12-02 | D8: 2000 | H8: 2000 | I8: كشف (1) | J8: محاسبة
B9: 3978 | C9: 2019-12-03 | E9: 100 | F9: 800 | H9: 900 | I9: رسم تسجيل | J9: محاسبة
B10: 3979 | C10: 2019-12-03 | G10: 1000 | H10: 1000 | I10: استكمال رسوم | J10: ادارة مشروعات
B11: 3980 | C11: 2019-12-03 | D11: 2000 | H11: 2000 | I11: كشف (1) | J11: ترجمة
A12: نسرين النقري | B12: 3981 | C12: 2019-12-03 | E12: 100 | F12: 800 | H12: 900 | I12: رسم تسجيل | J12: اعلام
A13: اسامة ديوب | B13: 3982 | C13: 2019-12-03 | G13: 5000 | H13: 5000 | I13: براءة ذمة | J13: اعلام
B14: 3983 | C14: 2019-12-03 | D14: 2000 | H14: 2000 | I14: كشف (1) | J14: ادارة مشروعات
B15: 3984 | C15: 2019-12-03 | E15: 100 | F15: 800 | H15: 900 | I15: رسم تسجيل | J15: ادارة مشروعات
B16: 3985 | C16: 2019-12-03 | D16: 200 | H16: 200 | I16: بدل ضائع بطاقة | J16: ادارة مشروعات
B17: 3986 | C17: 2019-12-03 | D17: 5000 | H17: 5000 | I17: كشف (6) | J17: ادارة مشروعات
A18: شيرين الخضور | B18: 3987 | C18: 2019-12-03 | D18: 200 | H18: 200 | I18: بدل ضائع بطاقة | J18: اعلام
B19: 3988 | C19: 2019-12-03 | D19: 200 | H19: 200 | I19: بدل ضائع بطاقة | J19: ادارة مشروعات
B20: 3989 | C20: 2019-12-03 | D20: 2000 | H20: 2000 | I20: كشف (1) | J20: محاسبة
B21: 3990 | C21: 2019-12-03 | D21: 2000 | H21: 2000 | I21: كشف (1) | J21: ادارة مشروعات
B22: 3991 | C22: 2019-12-03 | D22: 2000 | H22: 2000 | I22: كشف (1) | J22: ادارة مشروعات
B23: 3992 | C23: 2019-12-03 | D23: 2000 | H23: 2000 | I23: كشف (1) | J23: ترجمة
B24: 3993 | C24: 2019-12-03 | E24: 100 | F24: 800 | H24: 900 | I24: رسم تسجيل | J24: ادارة مشروعات
A25: حسان ادريس | B25: 3994 | C25: 2019-12-03 | D25: 2000 | H25: 2000 | I25: كشف (1) | J25: اعلام
B26: 3995 | C26: 2019-12-03 | E26: 100 | F26: 800 | H26: 900 | I26: رسم تسجيل | J26: محاسبة
B27: 3996 | C27: 2019-12-03 | D27: 2000 | H27: 2000 | I27: كشف (1) | J27: ادارة مشروعات
B28: 3997 | C28: 2019-12-04 | D28: 2000 | H28: 2000 | I28: كشف (1) | J28: ادارة مشروعات
B29: 3998 | C29: 2019-12-04 | D29: 5000 | H29: 5000 | I29: كشف (6) | J29: ترجمة
B30: 3999 | C30: 2019-12-04 | E30: 100 | F30: 800 | H30: 900 | I30: رسم تسجيل | J30: ادارة مشروعات
B31: 4000 | C31: 2019-12-04 | D31: 2000 | H31: 2000 | I31: كشف (1) | J31: ترجمة
B32: 4001 | C32: 2019-12-04 | G32: 2000 | H32: 2000 | I32: استكمال رسوم | J32: محاسبة
A33: ريم الخطيب | B33: 4002 | C33: 2019-12-04 | G33: 1000 | H33: 1000 | I33: استكمال رسوم | J33: اعلام
B34: 4003 | C34: 2019-12-04 | D34: 2000 | H34: 2000 | I34: كشف (1) | J34: ترجمة
B35: 4004 | C35: 2019-12-04 | G35: 5000 | H35: 5000 | I35: استكمال رسوم | J35: ترجمة
B36: 4005 | C36: 2019-12-04 | D36: 2000 | H36: 2000 | I36: كشف (1) | J36: ادارة مشروعات
B37: 4006 | C37: 2019-12-04 | E37: 100 | F37: 800 | H37: 900 | I37: رسم تسجيل | J37: ترجمة
B38: 4007 | C38: 2019-12-04 | E38: 100 | F38: 800 | H38: 900 | I38: رسم تسجيل | J38: محاسبة
A39: رزان محمود الحسين | B39: 4008 | C39: 2019-12-04 | G39: 1000 | H39: 1000 | I39: استكمال رسوم | J39: اعلام
B40: 4009 | C40: 2019-12-04 | D40: 2000 | H40: 2000 | I40: كشف (1) | J40: ترجمة
B41: 4010 | C41: 2019-12-05 | D41: 2000 | H41: 2000 | I41: كشف (1) | J41: ترجمة
B42: 4011 | C42: 2019-12-05 | E42: 100 | F42: 800 | H42: 900 | I42: رسم تسجيل | J42: محاسبة
B43: 4012 | C43: 2019-12-05 | E43: 100 | F43: 800 | H43: 900 | I43: رسم تسجيل | J43: ترجمة
B44: 4013 | C44: 2019-12-05 | D44: 2000 | H44: 2000 | I44: كشف (1) | J44: محاسبة
A45: رقية هاروني | B45: 4014 | C45: 2019-12-05 | E45: 100 | F45: 800 | H45: 900 | I45: رسم تسجيل | J45: اعلام
B46: 4015 | C46: 2019-12-04 | D46: 2000 | H46: 2000 | I46: كشف (1) | J46: محاسبة
D47: =SUM(D2:D46) -> 50600 | E47: =SUM(E2:E46) -> 1400 | F47: =SUM(F2:F46) -> 11200 | G47: =SUM(G2:G46) -> 15000 | H47: =SUM(H2:H46) -> 78200

Sheet p36
A1: الاسم | B1: رقم ايصال | C1: تاريخ | D1: مختلفة | E1: تسليف | F1: رسم سنوي | G1: خدمات | H1: مجموع | I1: النوع | J1: القسم | K1: mine!A1
B2: 4016 | C2: الأربعاء/2019/12/04 | E2: 100 | F2: 800 | H2: 900 | I2: رسم تسجيل | J2: محاسبة
B3: 4017 | C3: الخميس/2019/12/05 | G3: 4000 | H3: 4000 | I3: استكمال رسوم | J3: ترجمة
B4: 4018 | C4: الإثنين/2019/12/09 | E4: 100 | F4: 800 | H4: 900 | I4: رسم تسجيل | J4: ترجمة
B5: 4019 | C5: الخميس/2019/12/05 | E5: 100 | F5: 800 | H5: 900 | I5: رسم تسجيل | J5: ادارة مشروعات
B6: 4020 | C6: الخميس/2019/12/05 | D6: 2000 | H6: 2000 | I6: كشف (1) | J6: ترجمة
B7: 4021 | C7: الخميس/2019/12/05 | E7: 100 | F7: 800 | H7: 900 | I7: رسم تسجيل | J7: ترجمة
B8: 4022 | C8: الأحد/2019/12/08 | E8: 100 | F8: 800 | H8: 900 | I8: رسم تسجيل | J8: ترجمة
B9: 4023 | C9: الأحد/2019/12/08 | E9: 100 | F9: 800 | H9: 900 | I9: رسم تسجيل | J9: ادارة مشروعات
B10: 4024 | C10: الأحد/2019/12/08 | G10: 2500 | H10: 2500 | I10: استكمال رسوم | J10: ادارة مشروعات
B11: 4025 | C11: الأحد/2019/12/08 | E11: 100 | F11: 800 | H11: 900 | I11: رسم تسجيل | J11: محاسبة
B12: 4026 | C12: الأحد/2019/12/08 | E12: 100 | F12: 800 | H12: 900 | I12: رسم تسجيل | J12: محاسبة
B13: 4027 | C13: الأحد/2019/12/08 | E13: 100 | F13: 800 | H13: 900 | I13: رسم تسجيل | J13: محاسبة
B14: 4028 | C14: الأحد/2019/12/08 | D14: 5000 | H14: 5000 | I14: كشف (6) | J14: ادارة مشروعات
A15: كوثر صالح | B15: 4029 | C15: الأحد/2019/12/08 | D15: 2000 | H15: 2000 | I15: كشف (1) | J15: اعلام
B16: 4030 | C16: الأحد/2019/12/08 | E16: 100 | F16: 800 | H16: 900 | I16: رسم تسجيل | J16: ترجمة
B17: 4031 | C17: الأحد/2019/12/08 | D17: 200 | H17: 200 | I17: بدل ضائع بطاقة | J17: محاسبة
B18: 4032 | C18: الأحد/2019/12/08 | D18: 2000 | H18: 2000 | I18: كشف (1) | J18: ادارة مشروعات
B19: 4033 | C19: الأحد/2019/12/08 | E19: 100 | F19: 800 | H19: 900 | I19: رسم تسجيل | J19: ترجمة
B20: 4034 | C20: الأحد/2019/12/08 | E20: 100 | F20: 800 | H20: 900 | I20: رسم تسجيل | J20: ادارة مشروعات
B21: 4035 | C21: الأحد/2019/12/08 | D21: 200 | H21: 200 | I21: بدل ضائع بطاقة | J21: ترجمة
B22: 4036 | C22: الأحد/2019/12/08 | D22: 2000 | H22: 2000 | I22: كشف (1) | J22: محاسبة
B23: 4037 | C23: الأحد/2019/12/08 | E23: 100 | F23: 800 | H23: 900 | I23: رسم تسجيل | J23: محاسبة
B24: 4038 | C24: الأحد/2019/12/08 | G24: 3000 | H24: 3000 | I24: استكمال رسوم | J24: ترجمة
B25: 4039 | C25: الأحد/2019/12/08 | D25: 5000 | H25: 5000 | I25: كشف (6) | J25: ترجمة
B26: 4040 | C26: الأحد/2019/12/08 | G26: 1000 | H26: 1000 | I26: استكمال رسوم | J26: ترجمة
B27: 4041 | C27: الخميس/2019/12/05 | G27: 200 | H27: 200 | I27: استكمال رسوم | J27: ادارة مشروعات
B28: 4042 | C28: الإثنين/2019/12/09 | E28: 100 | F28: 800 | H28: 900 | I28: رسم تسجيل | J28: محاسبة
B29: 4043 | C29: الإثنين/2019/12/09 | D29: 2000 | H29: 2000 | I29: كشف (1) | J29: ادارة مشروعات
B30: 4044 | C30: الإثنين/2019/12/09 | E30: 100 | F30: 800 | H30: 900 | I30: رسم تسجيل | J30: محاسبة
B31: 4045 | C31: الإثنين/2019/12/09 | D31: 2000 | H31: 2000 | I31: كشف (1) | J31: ادارة مشروعات
B32: 4046 | C32: الإثنين/2019/12/09 | E32: 100 | F32: 800 | H32: 900 | I32: رسم تسجيل | J32: محاسبة
B33: 4047 | C33: الإثنين/2019/12/09 | E33: 100 | F33: 800 | H33: 900 | I33: رسم تسجيل | J33: محاسبة
A34: قتيبة خلايلي | B34: 4048 | C34: الإثنين/2019/12/09 | G34: 1000 | H34: 1000 | I34: استكمال رسوم | J34: اعلام
A35: محمد ويس | B35: 4049 | C35: الإثنين/2019/12/09 | D35: 5000 | H35: 5000 | I35: كشف (6) | J35: اعلام
B36: 4050 | C36: الثلاثاء/2019/12/10 | E36: 100 | F36: 800 | H36: 900 | I36: رسم تسجيل | J36: محاسبة
B37: 4051 | C37: الثلاثاء/2019/12/10 | D37: 2000 | H37: 2000 | I37: كشف (1) | J37: محاسبة
B38: 4052 | C38: الثلاثاء/2019/12/10 | D38: 2000 | H38: 2000 | I38: كشف (1) | J38: محاسبة
A39: منى حاج صالح | B39: 4053 | C39: الثلاثاء/2019/12/10 | D39: 200 | H39: 200 | I39: بدل ضائع بطاقة | J39: اعلام
B40: 4054 | C40: الثلاثاء/2019/12/10 | E40: 100 | F40: 800 | H40: 900 | I40: رسم تسجيل | J40: ادارة مشروعات
B41: 4055 | C41: الثلاثاء/2019/12/10 | E41: 100 | F41: 800 | H41: 900 | I41: رسم تسجيل | J41: ادارة مشروعات
B42: 4056 | C42: الثلاثاء/2019/12/10 | G42: 3000 | H42: 3000 | I42: استكمال رسوم | J42: ترجمة
B43: 4057 | C43: الثلاثاء/2019/12/10 | E43: 100 | F43: 800 | H43: 900 | I43: رسم تسجيل | J43: ترجمة
B44: 4058 | C44: الثلاثاء/2019/12/10 | E44: 100 | F44: 800 | H44: 900 | I44: رسم تسجيل | J44: محاسبة
B45: 4059 | C45: الثلاثاء/2002/01/01 | E45: 100 | F45: 800 | H45: 900 | I45: رسم تسجيل | J45: ترجمة
B46: 4060 | C46: الثلاثاء/2002/01/01 | D46: 200 | H46: 200 | I46: بدل ضائع بطاقة | J46: ادارة مشروعات
D47: 31800 | E47: 2300 | F47: 18400 | G47: 14700 | H47: 67200

Sheet p37
A1: الاسم | B1: رقم ايصال | C1: تاريخ | D1: مختلفة | E1: تسليف | F1: رسم سنوي | G1: خدمات | H1: مجموع | I1: النوع | J1: القسم | K1: mine!A1
B2: 4061 | C2: الثلاثاء/2019/12/10 | D2: 2000 | H2: 2000 | I2: كشف (1) | J2: محاسبة
B3: 4062 | C3: الثلاثاء/2019/12/10 | D3: 2000 | H3: 2000 | I3: كشف (1) | J3: ادارة مشروعات
B4: 4063 | C4: الثلاثاء/2019/12/10 | E4: 100 | F4: 800 | H4: 900 | I4: رسم تسجيل | J4: ترجمة
B5: 4064 | C5: الثلاثاء/2019/12/10 | E5: 100 | F5: 800 | H5: 900 | I5: رسم تسجيل | J5: محاسبة
B6: 4066 | C6: الأربعاء/2019/12/11 | D6: 200 | H6: 200 | I6: بدل ضائع بطاقة | J6: ترجمة
A7: ليندا تلي | B7: 4065 | C7: 2019-12-11 | G7: 1000 | H7: 1000 | I7: استكمال رسوم | J7: اعلام
B8: 4067 | C8: 2019-12-11 | D8: 5000 | H8: 5000 | I8: بدل ضائع مصدقة (1) | J8: رياض اطفال
B9: 4068 | C9: 2019-12-11 | D9: 2000 | H9: 2000 | I9: كشف (1) | J9: ترجمة
B10: 4069 | C10: 2019-12-11 | E10: 100 | F10: 800 | H10: 900 | I10: رسم تسجيل | J10: ترجمة
B11: 4070 | C11: 2019-12-11 | D11: 200 | H11: 200 | I11: بدل ضائع بطاقة | J11: محاسبة
B12: 4071 | C12: 2019-12-11 | D12: 2000 | H12: 2000 | I12: كشف (1) | J12: محاسبة
B13: 4072 | C13: 2019-12-11 | D13: 5000 | H13: 5000 | I13: بدل ضائع مصدقة (1) | J13: ترجمة
B14: 4073 | C14: 2019-12-11 | D14: 2000 | H14: 2000 | I14: كشف (1) | J14: محاسبة
B15: 4074 | C15: 2019-12-11 | D15: 200 | H15: 200 | I15: بدل ضائع بطاقة | J15: محاسبة
B16: 4075 | C16: 2019-12-11 | D16: 2000 | H16: 2000 | I16: كشف (1) | J16: ادارة مشروعات
B17: 4076 | C17: 2019-12-11 | E17: 100 | F17: 800 | H17: 900 | I17: استكمال رسوم | J17: ادارة مشروعات
B18: 4077 | C18: 2019-12-11 | D18: 2000 | H18: 2000 | I18: كشف (1) | J18: ادارة مشروعات
A19: بيان عز الدين | B19: 4078 | C19: 2019-12-11 | D19: 5000 | H19: 5000 | I19: كشف (6) | J19: اعلام
A20: رشا النابلسي | B20: 4079 | C20: 2019-12-11 | E20: 100 | F20: 800 | H20: 900 | I20: رسم تسجيل | J20: اعلام
B21: 4080 | C21: 2019-12-11 | D21: 5000 | H21: 5000 | I21: كشف (6) | J21: ترجمة
B22: 4081 | C22: 2019-12-12 | E22: 100 | F22: 800 | H22: 900 | I22: رسم تسجيل | J22: محاسبة
B23: 4082 | C23: 2019-12-12 | E23: 100 | F23: 800 | H23: 900 | I23: رسم تسجيل | J23: محاسبة
B24: 4083 | C24: 2019-12-12 | E24: 100 | F24: 800 | H24: 900 | I24: رسم تسجيل | J24: ادارة مشروعات
A25: ولاء الفهد | B25: 4084 | C25: 2019-12-12 | E25: 100 | F25: 800 | H25: 900 | I25: رسم تسجيل | J25: اعلام
B26: 4085 | C26: 2019-12-12 | E26: 100 | F26: 800 | H26: 900 | I26: رسم تسجيل | J26: ترجمة
B27: 4086 | C27: 2019-01-12 | D27: 3000 | H27: 3000 | I27: كشف (6) | J27: محاسبة | K27: تتمة وصل سابق
B28: 4087 | C28: 2019-12-12 | D28: 2000 | H28: 2000 | I28: كشف (1) | J28: ترجمة
B29: 4088 | C29: 2019-12-12 | D29: 5000 | H29: 5000 | I29: بدل ضائع مصدقة (1) | J29: رياض اطفال
B30: 4089 | C30: 2019-12-12 | G30: 3000 | H30: 3000 | I30: استكمال رسوم | J30: ترجمة
B31: 4090 | C31: 2019-12-12 | D31: 2000 | H31: 2000 | I31: كشف (1) | J31: ادارة مشروعات
B32: 4091 | C32: 2019-12-12 | E32: 100 | F32: 800 | H32: 900 | I32: رسم تسجيل | J32: ترجمة
B33: 4092 | C33: 2019-12-12 | D33: 200 | H33: 200 | I33: بدل ضائع بطاقة | J33: ترجمة
B34: 4093 | C34: 2019-12-12 | E34: 100 | F34: 800 | H34: 900 | I34: رسم تسجيل | J34: ترجمة
B35: 4094 | C35: 2019-12-12 | D35: 2000 | H35: 2000 | I35: كشف (1) | J35: ادارة مشروعات
B36: 4095 | C36: 2019-12-15 | D36: 2000 | H36: 2000 | I36: كشف (1) | J36: ادارة مشروعات
B37: 4096 | C37: 2019-12-15 | E37: 100 | F37: 800 | H37: 900 | I37: رسم تسجيل | J37: ترجمة
B38: 4097 | C38: 2019-12-15 | E38: 100 | F38: 800 | H38: 900 | I38: رسم تسجيل | J38: محاسبة
B39: 4098 | C39: 2019-12-15 | E39: 100 | F39: 800 | H39: 900 | I39: رسم تسجيل | J39: محاسبة
B40: 4099 | C40: 2019-12-15 | D40: 200 | H40: 200 | I40: بدل ضائع بطاقة | J40: محاسبة
B41: 4100 | C41: 2019-12-15 | D41: 2000 | H41: 2000 | I41: كشف (1) | J41: ادارة مشروعات
A42: جوليا مكارم | B42: 4101 | C42: 2019-12-15 | D42: 2000 | H42: 2000 | I42: كشف (1) | J42: اعلام
B43: 4102 | C43: 2019-12-15 | D43: 2000 | H43: 2000 | I43: كشف (1) | J43: ادارة مشروعات
B44: 4103 | C44: 2019-12-15 | D44: 2000 | H44: 2000 | I44: كشف (1) | J44: ادارة مشروعات
B45: 4104 | C45: 2019-12-15 | E45: 100 | F45: 800 | H45: 900 | I45: رسم تسجيل | J45: ادارة مشروعات
B46: 4105 | C46: 2019-12-15 | D46: 2000 | H46: 2000 | I46: كشف (1) | J46: محاسبة
D47: =SUM(D2:D46) -> 61000 | E47: =SUM(E2:E46) -> 1600 | F47: =SUM(F2:F46) -> 12800 | G47: =SUM(G2:G46) -> 4000 | H47: =SUM(H2:H46) -> 79400

Sheet p38
A1: الاسم | B1: رقم ايصال | C1: تاريخ | D1: مختلفة | E1: تسليف | F1: رسم سنوي | G1: خدمات | H1: مجموع | I1: النوع | J1: القسم | K1: mine!A1
B2: 4106 | C2: 2019-12-15 | D2: 2000 | H2: 2000 | I2: كشف (1) | J2: ادارة مشروعات
B3: 4107 | C3: 2019-12-15 | D3: 2000 | H3: 2000 | I3: كشف (1) | J3: محاسبة
B4: 4108 | C4: 2019-12-15 | E4: 100 | F4: 800 | H4: 900 | I4: رسم تسجيل | J4: ادارة مشروعات
B5: 4109 | C5: 2019-12-15 | D5: 5000 | H5: 5000 | I5: كشف (6) | J5: محاسبة
B6: 4110 | C6: 2019-12-15 | D6: 5000 | H6: 5000 | I6: رسم شهادة | J6: ترجمة
B7: 4111 | C7: 2019-12-15 | E7: 100 | F7: 800 | H7: 900 | I7: رسم تسجيل | J7: ترجمة
B8: 4112 | C8: 2019-12-15 | E8: 100 | F8: 800 | H8: 900 | I8: رسم تسجيل | J8: ادارة مشروعات
B9: 4113 | C9: 2019-12-15 | G9: 1000 | H9: 1000 | I9: استكمال رسوم | J9: ادارة مشروعات
B10: 4114 | C10: 2019-12-15 | E10: 100 | F10: 800 | H10: 900 | I10: رسم تسجيل | J10: محاسبة
B11: 4115 | C11: 2019-12-15 | D11: 2000 | H11: 2000 | I11: كشف (1) | J11: ادارة مشروعات
B12: 4116 | C12: 2019-12-15 | D12: 2000 | H12: 2000 | I12: كشف (1) | J12: ادارة مشروعات
B13: 4117 | C13: 2019-12-15 | G13: 5000 | H13: 5000 | I13: استكمال رسوم | J13: محاسبة
B14: 4118 | C14: 2019-12-16 | D14: 5000 | H14: 5000 | I14: كشف (6) | J14: محاسبة
B15: 4119 | C15: 2019-12-16 | G15: 1500 | H15: 1500 | I15: براءة ذمة | J15: ترجمة
B16: 4120 | C16: 2019-12-16 | D16: 200 | H16: 200 | I16: بدل ضائع بطاقة | J16: ادارة مشروعات
A17: رهام محيو | B17: 4121 | C17: 2019-12-16 | E17: 100 | F17: 800 | H17: 900 | I17: رسم تسجيل | J17: اعلام
B18: 4122 | C18: 2019-12-16 | E18: 100 | F18: 800 | H18: 900 | I18: رسم تسجيل | J18: محاسبة
B19: 4123 | C19: 2019-12-16 | E19: 100 | F19: 800 | H19: 900 | I19: رسم تسجيل | J19: ادارة مشروعات
B20: 4124 | C20: 2019-12-16 | G20: 2900 | H20: 2900 | I20: استكمال رسوم | J20: ترجمة
B21: 4125 | C21: 2019-12-16 | D21: 2000 | H21: 2000 | I21: كشف (1) | J21: محاسبة
A22: رحاب المذيب | B22: 4126 | C22: 2019-12-16 | E22: 100 | F22: 800 | H22: 900 | I22: رسم تسجيل | J22: اعلام
B23: 4127 | C23: 2019-12-16 | E23: 100 | F23: 800 | H23: 900 | I23: رسم تسجيل | J23: ترجمة
B24: 4128 | C24: 2019-12-16 | E24: 100 | F24: 800 | H24: 900 | I24: رسم تسجيل | J24: محاسبة
B25: 4129 | C25: 2019-12-16 | D25: 2000 | H25: 2000 | I25: كشف (1) | J25: محاسبة
A26: ليلى رحال | B26: 4130 | C26: 2019-12-16 | E26: 100 | F26: 800 | H26: 900 | I26: رسم تسجيل | J26: اعلام
A27: محمد خير اسماعيل | B27: 4131 | C27: 2019-12-16 | E27: 100 | F27: 800 | H27: 900 | I27: رسم تسجيل | J27: اعلام
B28: 4132 | C28: 2019-12-16 | G28: 1500 | H28: 1500 | I28: استكمال رسوم | J28: محاسبة
A29: ريم ميهوب | B29: 4133 | C29: 2019-12-16 | E29: 100 | F29: 800 | H29: 900 | I29: رسم تسجيل | J29: اعلام
B30: 4134 | C30: 2019-12-16 | G30: 2000 | H30: 2000 | I30: استكمال رسوم | J30: ادارة مشروعات
B31: 4135 | C31: 2019-12-16 | E31: 100 | F31: 800 | H31: 900 | I31: رسم تسجيل | J31: ترجمة
B32: 4136 | C32: 2019-12-17 | D32: 2000 | H32: 2000 | I32: كشف (1) | J32: محاسبة
B33: 4137 | C33: 2019-12-17 | D33: 2000 | H33: 2000 | I33: كشف (1) | J33: ادارة مشروعات
B34: 4138 | C34: 2019-12-17 | E34: 100 | F34: 800 | H34: 900 | I34: رسم تسجيل | J34: ادارة مشروعات
B35: 4139 | C35: 2019-12-17 | E35: 100 | F35: 800 | H35: 900 | I35: رسم تسجيل | J35: ادارة مشروعات
A36: دعاء الملقي | B36: 4140 | C36: 2019-12-17 | G36: 1000 | H36: 1000 | I36: استكمال رسوم | J36: اعلام
B37: 4141 | C37: 2019-12-17 | E37: 100 | F37: 800 | H37: 900 | I37: رسم تسجيل | J37: ادارة مشروعات
B38: 4142 | C38: 2019-12-17 | E38: 100 | F38: 800 | H38: 900 | I38: رسم تسجيل | J38: محاسبة
B39: 4143 | C39: 2019-12-17 | E39: 100 | F39: 800 | H39: 900 | I39: رسم تسجيل | J39: ترجمة
B40: 4144 | C40: 2019-12-17 | D40: 2000 | H40: 2000 | I40: كشف (1) | J40: محاسبة
B41: 4145 | C41: 2019-12-17 | E41: 100 | F41: 800 | H41: 900 | I41: رسم تسجيل | J41: ادارة مشروعات
A42: شروق الحمدان | B42: 4146 | C42: 2019-12-17 | E42: 100 | F42: 800 | H42: 900 | I42: رسم تسجيل | J42: اعلام
B43: 4147 | C43: 2019-12-17 | D43: 2000 | H43: 2000 | I43: كشف (1) | J43: ادارة مشروعات
A44: علي ضويحي | B44: 4148 | C44: 2019-12-17 | D44: 2000 | H44: 2000 | I44: كشف (1) | J44: اعلام
B45: 4149 | C45: 2019-12-17 | E45: 100 | F45: 800 | H45: 900 | I45: رسم تسجيل | J45: محاسبة
B46: 4150 | C46: 2019-12-17 | D46: 2000 | H46: 2000 | I46: كشف (1) | J46: ادارة مشروعات
D47: =SUM(D2:D46) -> 39200 | E47: =SUM(E2:E45) -> 2200 | F47: =SUM(F2:F45) -> 17600 | G47: =SUM(G2:G45) -> 14900 | H47: =SUM(H2:H46) -> 73900

Sheet p39
A1: الاسم | B1: رقم ايصال | C1: تاريخ | D1: مختلفة | E1: تسليف | F1: رسم سنوي | G1: خدمات | H1: مجموع | I1: النوع | J1: القسم | K1: mine!A1
B2: 4151 | C2: 2019-12-17 | D2: 2000 | H2: 2000 | I2: كشف (1) | J2: محاسبة
A3: نورا صالح | B3: 4152 | C3: 2019-12-17 | D3: 200 | H3: 200 | I3: بدل ضائع بطاقة | J3: اعلام
B4: 4153 | C4: 2019-12-17 | D4: 2000 | H4: 2000 | I4: كشف (1) | J4: محاسبة
B5: 4154 | C5: 2019-12-17 | E5: 100 | F5: 800 | H5: 900 | I5: رسم تسجيل | J5: ادارة مشروعات
B6: 4155 | C6: 2019-12-17 | D6: 5000 | H6: 5000 | I6: رسم شهادة | J6: محاسبة
B7: 4156 | C7: 2019-12-18 | E7: 100 | F7: 800 | H7: 900 | I7: رسم تسجيل | J7: محاسبة
B8: 4157 | C8: 2019-12-18 | G8: 1000 | H8: 1000 | I8: استكمال رسوم | J8: ادارة مشروعات
B9: 4158 | C9: 2019-12-18 | G9: 2000 | H9: 2000 | I9: براءة ذمة | J9: ترجمة
A10: رولا الذياب | B10: 4159 | C10: 2019-12-18 | D10: 5000 | H10: 5000 | I10: كشف (6) | J10: اعلام
B11: 4160 | C11: 2019-12-18 | E11: 100 | F11: 800 | H11: 900 | I11: رسم تسجيل | J11: ترجمة
B12: 4161 | C12: 2019-12-18 | E12: 100 | F12: 800 | H12: 900 | I12: رسم تسجيل | J12: ترجمة
B13: 4162 | C13: 2019-12-18 | E13: 100 | F13: 800 | H13: 900 | I13: رسم تسجيل | J13: محاسبة
A14: صخر اللافي | B14: 4163 | C14: 2019-12-18 | G14: 1000 | H14: 1000 | I14: استكمال رسوم | J14: اعلام
B15: 4164 | C15: 2019-12-18 | D15: 200 | H15: 200 | I15: بدل ضائع بطاقة | J15: محاسبة
B16: 4165 | C16: 2019-12-18 | E16: 100 | F16: 800 | H16: 900 | I16: رسم تسجيل | J16: ترجمة
B17: 4166 | C17: 2019-12-18 | D17: 2000 | H17: 2000 | I17: كشف (1) | J17: ترجمة
B18: 4167 | C18: 2019-12-18 | D18: 2000 | H18: 2000 | I18: كشف (1) | J18: ادارة مشروعات
B19: 4168 | C19: 2019-12-18 | D19: 5000 | H19: 5000 | I19: كشف (6) | J19: محاسبة
B20: 4169 | C20: 2019-12-18 | E20: 100 | F20: 800 | H20: 900 | I20: رسم تسجيل | J20: ترجمة
B21: 4170 | C21: 2019-12-18 | E21: 100 | F21: 800 | H21: 900 | I21: رسم تسجيل | J21: ترجمة
B22: 4171 | C22: 2019-12-18 | E22: 100 | F22: 800 | H22: 900 | I22: رسم تسجيل | J22: محاسبة
B23: 4172 | C23: 2019-12-18 | D23: 5000 | H23: 5000 | I23: رسم شهادة | J23: محاسبة
B24: 4173 | C24: 2019-12-18 | E24: 100 | F24: 800 | H24: 900 | I24: رسم تسجيل | J24: محاسبة
B25: 4174 | C25: 2019-12-18 | E25: 100 | F25: 800 | H25: 900 | I25: رسم تسجيل | J25: محاسبة
A26: علام سليمان | B26: 4175 | C26: 2019-12-18 | E26: 100 | F26: 800 | H26: 900 | I26: رسم تسجيل | J26: اعلام
B27: 4176 | C27: 2019-12-18 | D27: 5000 | H27: 5000 | I27: كشف (6) | J27: ترجمة
B28: 4177 | C28: 2019-12-18 | D28: 5000 | H28: 5000 | I28: كشف (6) | J28: ترجمة
B29: 4178 | C29: 2019-12-19 | E29: 100 | F29: 800 | H29: 900 | I29: رسم تسجيل | J29: ادارة مشروعات
A30: محمد البرغش | B30: 4179 | C30: 2019-12-19 | E30: 100 | F30: 800 | H30: 900 | I30: رسم تسجيل | J30: اعلام
B31: 4180 | C31: 2019-12-19 | G31: 5000 | H31: 5000 | I31: استكمال رسوم | J31: ترجمة
A32: نسرين العبود | B32: 4181 | C32: 2019-12-19 | E32: 100 | F32: 800 | H32: 900 | I32: رسم تسجيل | J32: اعلام
A33: ياسين شرفي | B33: 4182 | C33: 2019-12-19 | D33: 2000 | H33: 2000 | I33: كشف (1) | J33: اعلام
A34: انس رفاعيه | B34: 4183 | C34: 2019-12-19 | G34: 1000 | H34: 1000 | I34: استكمال رسوم | J34: اعلام
B35: 4184 | C35: 2019-12-19 | D35: 200 | H35: 200 | I35: بدل ضائع بطاقة | J35: ترجمة
B36: 4185 | C36: 2019-12-19 | D36: 2000 | H36: 2000 | I36: كشف (1) | J36: ادارة مشروعات
B37: 4186 | C37: 2019-12-19 | E37: 100 | F37: 800 | H37: 900 | I37: رسم تسجيل | J37: ادارة مشروعات
B38: 4187 | C38: 2019-12-19 | D38: 2000 | H38: 2000 | I38: كشف (1) | J38: ترجمة
B39: 4188 | C39: 2019-12-19 | E39: 100 | F39: 800 | H39: 900 | I39: رسم تسجيل | J39: محاسبة
B40: 4189 | C40: 2019-12-19 | D40: 2000 | H40: 2000 | I40: كشف (1) | J40: ادارة مشروعات
B41: 4190 | C41: 2019-12-19 | E41: 100 | F41: 800 | H41: 900 | I41: رسم تسجيل | J41: ادارة مشروعات
A42: ولاء عربي | B42: 4191 | C42: 2019-12-19 | G42: 1000 | H42: 1000 | I42: استكمال رسوم | J42: اعلام
B43: 4192 | C43: 2019-12-22 | G43: 1500 | H43: 1500 | I43: استكمال رسوم | J43: ترجمة
B44: 4193 | C44: 2019-12-22 | E44: 100 | F44: 800 | H44: 900 | I44: رسم تسجيل | J44: ترجمة
B45: 4194 | C45: 2019-12-22 | E45: 100 | F45: 800 | H45: 900 | I45: رسم تسجيل | J45: ادارة مشروعات
B46: 4195 | C46: 2019-12-22 | D46: 2000 | H46: 2000 | I46: كشف (1) | J46: ادارة مشروعات
D47: =SUM(D2:D46) -> 48600 | E47: =SUM(E2:E46) -> 2000 | F47: =SUM(F2:F46) -> 16000 | G47: =SUM(G2:G46) -> 12500 | H47: =SUM(H2:H46) -> 79100

Sheet p40
A1: الاسم | B1: رقم ايصال | C1: تاريخ | D1: مختلفة | E1: تسليف | F1: رسم سنوي | G1: خدمات | H1: مجموع | I1: النوع | J1: القسم | K1: mine!A1
B2: 4196 | C2: 2019-12-22 | E2: 100 | F2: 800 | H2: 900 | I2: رسم تسجيل | J2: ترجمة
B3: 4197 | C3: 2019-12-22 | G3: 2000 | H3: 2000 | I3: استكمال رسوم | J3: ادارة مشروعات
B4: 4198 | C4: 2019-12-22 | E4: 100 | F4: 800 | H4: 900 | I4: رسم تسجيل | J4: ادارة مشروعات
A5: بشار يوسف | B5: 4199 | C5: 2019-12-22 | G5: 1500 | H5: 1500 | I5: استكمال رسوم | J5: اعلام
B6: 4200 | C6: 2019-12-22 | G6: 2500 | H6: 2500 | I6: استكمال رسوم | J6: ترجمة
A7: رشا موسى | B7: 4201 | C7: 2019-12-22 | E7: 100 | F7: 800 | H7: 900 | I7: رسم تسجيل | J7: اعلام
B8: 4202 | C8: 2019-12-22 | G8: 3600 | H8: 3600 | I8: استكمال رسوم | J8: ترجمة
B9: 4203 | C9: 2019-12-22 | D9: 2000 | H9: 2000 | I9: كشف (1) | J9: ادارة مشروعات
B10: 4204 | C10: 2019-12-22 | E10: 100 | F10: 800 | H10: 900 | I10: رسم تسجيل | J10: ترجمة
B11: 4205 | C11: 2019-12-22 | G11: 1000 | H11: 1000 | I11: استكمال رسوم | J11: ترجمة
B12: 4206 | C12: 2019-12-22 | D12: 2000 | H12: 2000 | I12: كشف (1) | J12: محاسبة
B13: 4207 | C13: 2019-12-22 | E13: 100 | F13: 800 | H13: 900 | I13: رسم تسجيل | J13: محاسبة
B14: 4208 | C14: 2019-12-22 | E14: 100 | F14: 800 | H14: 900 | I14: رسم تسجيل | J14: ترجمة
B15: 4209 | C15: 2019-12-22 | D15: 2000 | H15: 2000 | I15: كشف (1) | J15: ادارة مشروعات
B16: 4210 | C16: 2019-12-22 | E16: 100 | F16: 800 | H16: 900 | I16: رسم تسجيل | J16: ادارة مشروعات
B17: 4211 | C17: 2019-12-22 | E17: 100 | F17: 800 | H17: 900 | I17: رسم تسجيل | J17: ترجمة
A18: مجد المعزر | B18: 4212 | C18: 2019-12-22 | D18: 2000 | H18: 2000 | I18: كشف (1) | J18: اعلام
B19: 4213 | C19: 2019-12-22 | E19: 100 | F19: 800 | H19: 900 | I19: رسم تسجيل | J19: ادارة مشروعات
A20: سراج سعيد | B20: 4214 | C20: 2019-12-22 | G20: 1000 | H20: 1000 | I20: براءة ذمة | J20: اعلام
A21: مادلين كوردي | B21: 4215 | C21: 2019-12-22 | D21: 2000 | H21: 2000 | I21: كشف (1) | J21: اعلام
B22: 4216 | C22: 2019-12-22 | D22: 5000 | H22: 5000 | I22: كشف (6) | J22: محاسبة
B23: 4217 | C23: 2019-12-22 | D23: 5000 | H23: 5000 | I23: كشف (6) | J23: محاسبة
B24: 4218 | C24: 2019-12-22 | G24: 5000 | H24: 5000 | I24: استكمال رسوم | J24: محاسبة
B25: 4219 | C25: 2019-12-22 | E25: 100 | F25: 800 | H25: 900 | I25: رسم تسجيل | J25: محاسبة
B26: 4220 | C26: 2019-12-23 | D26: 200 | H26: 200 | I26: بدل ضائع بطاقة | J26: محاسبة
B27: 4221 | C27: 2019-12-22 | D27: 2000 | H27: 2000 | I27: كشف (1) | J27: ترجمة
B28: 4222 | C28: 2019-12-23 | G28: 3500 | H28: 3500 | I28: استكمال رسوم | J28: ترجمة
B29: 4223 | C29: 2019-12-23 | G29: 3900 | H29: 3900 | I29: استكمال رسوم | J29: ادارة مشروعات
A30: مجدولين المقت | B30: 4224 | C30: 2019-12-23 | E30: 100 | F30: 800 | H30: 900 | I30: رسم تسجيل | J30: اعلام
A31: هبه سعد | B31: 4225 | C31: 2019-12-23 | D31: 5000 | H31: 5000 | I31: رسم شهادة | J31: اعلام
B32: 4226 | C32: 2019-12-23 | G32: 2500 | H32: 2500 | I32: استكمال رسوم | J32: ادارة مشروعات
B33: 4227 | C33: 2019-12-23 | E33: 100 | F33: 800 | H33: 900 | I33: رسم تسجيل | J33: ترجمة
B34: 4228 | C34: 2019-12-23 | E34: 100 | F34: 800 | H34: 900 | I34: رسم تسجيل | J34: ترجمة
B35: 4229 | C35: 2019-12-23 | G35: 1000 | H35: 1000 | I35: استكمال رسوم | J35: ادارة مشروعات
B36: 4230 | C36: 2019-12-23 | E36: 100 | F36: 800 | H36: 900 | I36: رسم تسجيل | J36: ترجمة
B37: 4231 | C37: 2019-12-23 | D37: 5000 | H37: 5000 | I37: رسم شهادة | J37: ترجمة
B38: 4232 | C38: 2019-12-23 | G38: 4500 | H38: 4500 | I38: استكمال رسوم | J38: ادارة مشروعات
B39: 4233 | C39: 2019-12-23 | D39: 2000 | H39: 2000 | I39: كشف (1) | J39: محاسبة
B40: 4234 | C40: 2019-12-23 | D40: 2000 | H40: 2000 | I40: كشف (1) | J40: محاسبة
A41: محمد بنيان | B41: 4235 | C41: 2019-12-23 | D41: 2000 | H41: 2000 | I41: كشف (1) | J41: اعلام
A42: كمال طيجون | B42: 4236 | C42: 2019-12-23 | E42: 100 | F42: 800 | H42: 900 | I42: رسم تسجيل | J42: اعلام
B43: 4237 | C43: 2019-12-23 | D43: 2000 | H43: 2000 | I43: كشف (1) | J43: محاسبة
B44: 4238 | C44: 2019-12-23 | E44: 100 | F44: 800 | H44: 900 | I44: رسم تسجيل | J44: ترجمة
B45: 4239 | C45: 2019-12-23 | G45: 2000 | H45: 2000 | I45: استكمال رسوم | J45: ادارة مشروعات
B46: 4240 | C46: 2019-12-23 | E46: 100 | F46: 800 | H46: 900 | I46: رسم تسجيل | J46: محاسبة
D47: =SUM(D2:D46) -> 40200 | E47: =SUM(E2:E46) -> 1700 | F47: =SUM(F2:F46) -> 13600 | G47: =SUM(G2:G46) -> 34000 | H47: =SUM(H2:H46) -> 89500

Sheet p41
A1: الاسم | B1: رقم ايصال | C1: تاريخ | D1: مختلفة | E1: تسليف | F1: رسم سنوي | G1: خدمات | H1: مجموع | I1: النوع | J1: القسم | K1: mine!A1
B2: 4241 | C2: 2019-12-23 | E2: 100 | F2: 800 | H2: 900 | I2: رسم تسجيل | J2: ادارة مشروعات
B3: 4242 | C3: 2019-12-23 | E3: 100 | F3: 800 | H3: 900 | I3: رسم تسجيل | J3: ترجمة
A4: رنده الشامي | B4: 4243 | C4: 2019-12-23 | G4: 1000 | H4: 1000 | I4: استكمال رسوم | J4: اعلام
A5: حسين ابورفيع | B5: 4244 | C5: 2019-12-23 | E5: 100 | F5: 800 | H5: 900 | I5: رسم تسجيل | J5: اعلام
A6: معاذ الفتحي | B6: 4245 | C6: 2019-12-23 | G6: 4000 | H6: 4000 | I6: استكمال رسوم | J6: اعلام
A7: نور المكاوي | B7: 4246 | C7: 2019-12-23 | D7: 2000 | H7: 2000 | I7: كشف (1) | J7: اعلام
B8: 4247 | C8: 2019-12-23 | D8: 2000 | H8: 2000 | I8: كشف (1) | J8: محاسبة
B9: 4248 | C9: 2019-12-23 | D9: 2000 | H9: 2000 | I9: كشف (1) | J9: محاسبة
A10: رامي زين الدين | B10: 4249 | C10: 2019-12-23 | D10: 2000 | H10: 2000 | I10: كشف (1) | J10: اعلام
B11: 4250 | C11: 2019-12-23 | D11: 2000 | H11: 2000 | I11: كشف (1) | J11: ترجمة
A12: رضوه الرحال | B12: 4251 | C12: 2019-12-23 | D12: 2000 | H12: 2000 | I12: كشف (1) | J12: اعلام
A13: اماني الغزاوي | B13: 4252 | C13: 2019-12-23 | G13: 1000 | H13: 1000 | I13: استكمال رسوم | J13: اعلام
A14: مشيرى العباس | B14: 4253 | C14: 2019-12-23 | G14: 1000 | H14: 1000 | I14: استكمال رسوم | J14: اعلام
B15: 4254 | C15: 2019-12-23 | D15: 2000 | H15: 2000 | I15: كشف (1) | J15: ادارة مشروعات
B16: 4255 | C16: 2019-12-23 | E16: 100 | F16: 800 | H16: 900 | I16: رسم تسجيل | J16: ادارة مشروعات
A17: محمود عيسى | B17: 4256 | C17: 2019-12-23 | D17: 200 | H17: 200 | I17: بدل ضائع بطاقة | J17: اعلام
A18: بتول الارمنازي | B18: 4257 | C18: 2019-12-23 | G18: 1000 | H18: 1000 | I18: استكمال رسوم | J18: اعلام
B19: 4258 | C19: 2019-12-23 | D19: 5000 | H19: 5000 | I19: كشف (6) | J19: ترجمة
B20: 4259 | C20: 2019-12-23 | E20: 100 | F20: 800 | H20: 900 | I20: رسم تسجيل | J20: ادارة مشروعات
B21: 4260 | C21: 2019-12-24 | G21: 1000 | H21: 1000 | I21: استكمال رسوم | J21: ادارة مشروعات
B22: 4261 | C22: 2019-12-24 | E22: 100 | F22: 800 | H22: 900 | I22: رسم تسجيل | J22: ادارة مشروعات
A23: عبير الخياط | B23: 4262 | C23: 2019-12-24 | D23: 200 | H23: 200 | I23: بدل ضائع بطاقة | J23: اعلام
B24: 4263 | C24: 2019-12-24 | E24: 100 | F24: 800 | H24: 900 | I24: رسم تسجيل | J24: محاسبة
B25: 4264 | C25: 2019-12-24 | E25: 100 | F25: 800 | H25: 900 | I25: رسم تسجيل | J25: ادارة مشروعات
A26: محمد بشير عبد السلام | B26: 4265 | C26: 2019-12-24 | G26: 1000 | H26: 1000 | I26: استكمال رسوم | J26: اعلام
B27: 4266 | C27: 2019-12-24 | E27: 100 | F27: 800 | H27: 900 | I27: رسم تسجيل | J27: ترجمة
B28: 4267 | C28: 2019-12-24 | D28: 2000 | H28: 2000 | I28: كشف (1) | J28: محاسبة
A29: سعد الدين الكردي | B29: 4268 | C29: 2019-12-24 | G29: 1000 | H29: 1000 | I29: استكمال رسوم | J29: اعلام
B30: 4269 | C30: 2019-12-24 | E30: 100 | F30: 800 | H30: 900 | I30: رسم تسجيل | J30: ادارة مشروعات
B31: 4270 | C31: 2019-12-24 | E31: 100 | F31: 800 | H31: 900 | I31: رسم تسجيل | J31: ادارة مشروعات
A32: كارين كنيهر | B32: 4271 | C32: 2019-12-24 | G32: 1000 | H32: 1000 | I32: استكمال رسوم | J32: اعلام
B33: 4272 | C33: 2019-12-24 | E33: 100 | F33: 800 | H33: 900 | I33: رسم تسجيل | J33: محاسبة
B34: 4273 | C34: 2019-12-24 | E34: 100 | F34: 800 | H34: 900 | I34: رسم تسجيل | J34: محاسبة
B35: 4274 | C35: 2019-12-24 | D35: 5000 | H35: 5000 | I35: بدل ضائع مصدقة (1) | J35: رياض اطفال
B36: 4275 | C36: 2019-12-24 | E36: 100 | F36: 800 | H36: 900 | I36: رسم تسجيل | J36: محاسبة
B37: 4276 | C37: 2019-12-24 | E37: 100 | F37: 800 | H37: 900 | I37: رسم تسجيل | J37: ترجمة
B38: 4277 | C38: 2019-12-24 | E38: 100 | F38: 800 | H38: 900 | I38: رسم تسجيل | J38: ترجمة
B39: 4278 | C39: 2019-12-24 | E39: 100 | F39: 800 | H39: 900 | I39: رسم تسجيل | J39: ترجمة
B40: 4279 | C40: 2019-12-24 | G40: 4400 | H40: 4400 | I40: رسم تسجيل | J40: ترجمة
B41: 4280 | C41: 2019-12-24 | E41: 100 | F41: 800 | H41: 900 | I41: رسم تسجيل | J41: ترجمة
B42: 4281 | C42: 2019-12-24 | E42: 100 | F42: 800 | H42: 900 | I42: رسم تسجيل | J42: ترجمة
A43: نور عليشه | B43: 4282 | C43: 2019-12-24 | G43: 1000 | H43: 1000 | I43: رسم تسجيل | J43: اعلام
B44: 4283 | C44: 2019-12-24 | G44: 3000 | H44: 3000 | I44: استكمال رسوم | J44: ترجمة
B45: 4284 | C45: 2019-12-24 | E45: 100 | F45: 800 | H45: 900 | I45: رسم تسجيل | J45: محاسبة
B46: 4285 | C46: 2019-12-24 | E46: 100 | F46: 800 | H46: 900 | I46: رسم تسجيل | J46: ادارة مشروعات
D47: =SUM(D2:D46) -> 26400 | E47: =SUM(E2:E46) -> 2100 | F47: =SUM(F2:F46) -> 16800 | G47: =SUM(G2:G46) -> 20400 | H47: =SUM(H2:H46) -> 65700

Sheet p42
A1: الاسم | B1: رقم ايصال | C1: تاريخ | D1: مختلفة | E1: تسليف | F1: رسم سنوي | G1: خدمات | H1: مجموع | I1: النوع | J1: القسم | K1: mine!A1
B2: 4286 | C2: 2019-12-24 | E2: 100 | F2: 800 | H2: 900 | I2: رسم تسجيل | J2: ادارة مشروعات
B3: 4287 | C3: 2019-12-24 | E3: 100 | F3: 800 | H3: 900 | I3: رسم تسجيل | J3: ترجمة
B4: 4288 | C4: 2019-12-24 | E4: 100 | F4: 800 | H4: 900 | I4: رسم تسجيل | J4: ترجمة
A5: عبير الحاج حسين | B5: 4289 | C5: 2019-12-24 | D5: 5000 | H5: 5000 | I5: كشف (6) | J5: اعلام
A6: بيلسان اللافي | B6: 4290 | C6: 2019-12-24 | G6: 1000 | H6: 1000 | I6: استكمال رسوم | J6: اعلام
B7: 4291 | C7: 2019-12-24 | E7: 100 | F7: 800 | H7: 900 | I7: رسم تسجيل | J7: ادارة مشروعات
A8: دنيا حلاق | B8: 4292 | C8: 2019-12-24 | E8: 100 | F8: 800 | H8: 900 | I8: رسم تسجيل | J8: اعلام
A9: دانا عبد الباقي | B9: 4293 | C9: 2019-12-24 | E9: 100 | F9: 800 | H9: 900 | I9: رسم تسجيل | J9: اعلام
B10: 4294 | C10: 2019-12-29 | E10: 100 | F10: 800 | H10: 900 | I10: رسم تسجيل | J10: محاسبة
B11: 4295 | C11: 2019-12-29 | G11: 5000 | H11: 5000 | I11: استكمال رسوم | J11: ترجمة
B12: 4296 | C12: 2019-12-29 | D12: 2000 | H12: 2000 | I12: كشف (1) | J12: محاسبة
B13: 4297 | C13: 2019-12-29 | G13: 1000 | H13: 1000 | I13: استكمال رسوم | J13: ادارة مشروعات
A14: عبد الكريم شحود الابراهيم | B14: 4298 | C14: 2019-12-29 | E14: 100 | F14: 800 | H14: 900 | I14: رسم تسجيل | J14: اعلام
B15: 4299 | C15: 2019-12-29 | G15: 4300 | H15: 4300 | I15: استكمال رسوم | J15: محاسبة
B16: 4300 | C16: 2019-12-29 | D16: 2000 | H16: 2000 | I16: كشف (1) | J16: محاسبة
A17: نالين جمعه داود | B17: 4301 | C17: 2019-12-29 | G17: 1000 | H17: 1000 | I17: استكمال رسوم | J17: اعلام
A18: سما الخباز | B18: 4302 | C18: 2019-12-29 | E18: 100 | F18: 800 | H18: 900 | I18: رسم تسجيل | J18: اعلام
A19: نضال راضي | B19: 4303 | C19: 2019-12-29 | E19: 100 | F19: 800 | H19: 900 | I19: رسم تسجيل | J19: اعلام
B20: 4304 | C20: 2019-12-29 | E20: 100 | F20: 800 | H20: 900 | I20: رسم تسجيل | J20: ترجمة
B21: 4305 | C21: 2019-12-29 | E21: 100 | F21: 800 | H21: 900 | I21: رسم تسجيل | J21: ادارة مشروعات
B22: 4306 | C22: 2019-12-29 | E22: 100 | F22: 800 | H22: 900 | I22: رسم تسجيل | J22: ترجمة
B23: 4307 | C23: 2019-12-29 | E23: 100 | F23: 800 | H23: 900 | I23: رسم تسجيل | J23: محاسبة
B24: 4308 | C24: 2019-12-29 | E24: 100 | F24: 800 | H24: 900 | I24: رسم تسجيل | J24: محاسبة
A25: دعاء قصار | B25: 4309 | C25: 2019-12-29 | G25: 1000 | H25: 1000 | I25: استكمال رسوم | J25: اعلام
B26: 4310 | C26: 2019-12-29 | D26: 2000 | H26: 2000 | I26: كشف (1) | J26: ترجمة
A27: داليا ديراني | B27: 4311 | C27: 2019-12-29 | E27: 100 | F27: 800 | H27: 900 | I27: رسم تسجيل | J27: اعلام
B28: 4312 | C28: 2019-12-29 | D28: 5000 | H28: 5000 | I28: كشف (6) | J28: ترجمة
B29: 4313 | C29: 2019-12-29 | G29: 1000 | H29: 1000 | I29: استكمال رسوم | J29: ترجمة
A30: ياسمين الجاجه | B30: 4314 | C30: 2019-12-29 | E30: 100 | F30: 800 | H30: 900 | I30: رسم تسجيل | J30: اعلام
A31: ملهم الصالح | B31: 4315 | C31: 2019-12-30 | G31: 1000 | H31: 1000 | I31: استكمال رسوم | J31: اعلام
B32: 4316 | C32: 2019-12-30 | D32: 200 | H32: 200 | I32: بدل ضائع بطاقة | J32: ترجمة
B33: 4317 | C33: 2019-12-30 | D33: 200 | H33: 200 | I33: بدل ضائع بطاقة | J33: رياض اطفال
B34: 4318 | C34: 2019-12-30 | E34: 100 | F34: 800 | H34: 900 | I34: رسم تسجيل | J34: ترجمة
B35: 4319 | C35: 2019-12-30 | E35: 100 | F35: 800 | H35: 900 | I35: رسم تسجيل | J35: محاسبة
B36: 4320 | C36: 2019-12-30 | E36: 100 | F36: 800 | H36: 900 | I36: رسم تسجيل | J36: محاسبة
A37: رغد حناوي | B37: 4321 | C37: 2019-12-30 | E37: 100 | F37: 800 | H37: 900 | I37: رسم تسجيل | J37: اعلام
A38: خضر سليمان | B38: 4322 | C38: 2019-12-30 | E38: 100 | F38: 800 | H38: 900 | I38: رسم تسجيل | J38: اعلام
B39: 4323 | C39: 2019-12-30 | D39: 5000 | H39: 5000 | I39: بدل ضائع مصدقة (1) | J39: رياض اطفال
B40: 4324 | C40: 2019-12-30 | D40: 200 | H40: 200 | I40: بدل ضائع بطاقة | J40: محاسبة
B41: 4325 | C41: 2019-12-30 | E41: 100 | F41: 800 | H41: 900 | I41: رسم تسجيل | J41: محاسبة
B42: 4326 | C42: 2019-12-30 | E42: 100 | F42: 800 | H42: 900 | I42: رسم تسجيل | J42: ترجمة
B43: 4327 | C43: 2019-12-30 | E43: 100 | F43: 800 | H43: 900 | I43: رسم تسجيل | J43: رياض اطفال
B44: 4328 | C44: 2019-12-30 | E44: 100 | F44: 800 | H44: 900 | I44: رسم تسجيل | J44: ترجمة
A45: شاديه القاسم | B45: 4329 | C45: 2019-12-30 | G45: 1000 | H45: 1000 | I45: استكمال رسوم | J45: اعلام
B46: 4330 | C46: 2019-12-30 | E46: 100 | F46: 800 | H46: 900 | I46: رسم تسجيل | J46: محاسبة
D47: =SUM(D2:D46) -> 21600 | E47: =SUM(E2:E46) -> 2700 | F47: =SUM(F2:F46) -> 21600 | G47: =SUM(G2:G46) -> 16300 | H47: =SUM(H2:H46) -> 62200

Sheet p43
A1: الاسم | B1: رقم ايصال | C1: تاريخ | D1: مختلفة | E1: تسليف | F1: رسم سنوي | G1: خدمات | H1: مجموع | I1: النوع | J1: القسم | K1: mine!A1
B2: 4331 | C2: 2019-12-30 | E2: 100 | F2: 800 | H2: 900 | I2: رسم تسجيل | J2: ترجمة
B3: 4332 | C3: 2019-12-30 | E3: 100 | F3: 800 | H3: 900 | I3: رسم تسجيل | J3: ترجمة
B4: 4333 | C4: 2019-12-30 | E4: 100 | F4: 800 | H4: 900 | I4: رسم تسجيل | J4: محاسبة
A5: ليال صقر | B5: 4334 | C5: 2019-12-30 | G5: 1000 | H5: 1000 | I5: استكمال رسوم | J5: اعلام
A6: لمى عطوني | B6: 4335 | C6: 2019-12-30 | G6: 1000 | H6: 1000 | I6: استكمال رسوم | J6: اعلام
B7: 4336 | C7: 2019-12-30 | D7: 2000 | H7: 2000 | I7: كشف (1) | J7: محاسبة
B8: 4337 | C8: 2019-12-30 | D8: 200 | H8: 200 | I8: بدل ضائع بطاقة | J8: رياض اطفال
B9: 4338 | C9: 2019-12-30 | E9: 100 | F9: 800 | H9: 900 | I9: رسم تسجيل | J9: محاسبة
B10: 4339 | C10: 2019-12-30 | D10: 2000 | H10: 2000 | I10: كشف (1) | J10: رياض اطفال
B11: 4340 | C11: 2019-12-30 | E11: 100 | F11: 800 | H11: 900 | I11: رسم تسجيل | J11: رياض اطفال
B12: 4341 | C12: 2019-12-30 | D12: 200 | H12: 200 | I12: بدل ضائع بطاقة | J12: ترجمة
B13: 4342 | C13: 2019-12-30 | E13: 100 | F13: 800 | H13: 900 | I13: رسم تسجيل | J13: ترجمة
B14: 4343 | C14: 2019-12-30 | D14: 2000 | H14: 2000 | I14: كشف (1) | J14: محاسبة
B15: 4344 | C15: 2019-12-30 | D15: 5000 | H15: 5000 | I15: كشف (6) | J15: ترجمة
B16: 4345 | C16: 2019-12-30 | D16: 200 | H16: 200 | I16: بدل ضائع بطاقة | J16: محاسبة
B17: 4346 | C17: 2019-12-30 | D17: 200 | H17: 200 | I17: بدل ضائع بطاقة | J17: رياض اطفال
B18: 4347 | C18: 2019-12-30 | D18: 2000 | H18: 2000 | I18: كشف (1) | J18: ترجمة
B19: 4348 | C19: 2019-12-30 | D19: 2000 | H19: 2000 | I19: كشف (1) | J19: ترجمة
B20: 4349 | C20: 2019-12-30 | E20: 100 | F20: 800 | H20: 900 | I20: رسم تسجيل | J20: ترجمة
A21: رشا الحسيني | B21: 4350 | C21: 2019-12-30 | E21: 100 | F21: 800 | H21: 900 | I21: رسم تسجيل | J21: اعلام
B22: 4351 | C22: 2019-12-30 | E22: 100 | F22: 800 | H22: 900 | I22: رسم تسجيل | J22: ترجمة
B23: 4352 | C23: 2019-12-30 | D23: 2000 | H23: 2000 | I23: كشف (1) | J23: محاسبة
B24: 4353 | C24: 2019-12-30 | G24: 1000 | H24: 1000 | I24: استكمال رسوم | J24: محاسبة
B25: 4354 | C25: 2019-12-31 | E25: 100 | F25: 800 | H25: 900 | I25: رسم تسجيل | J25: محاسبة
B26: 4355 | C26: 2019-12-31 | E26: 100 | F26: 800 | H26: 900 | I26: رسم تسجيل | J26: ترجمة
B27: 4356 | C27: 2019-12-31 | E27: 100 | F27: 800 | H27: 900 | I27: رسم تسجيل | J27: محاسبة
B28: 4357 | C28: 2019-12-31 | D28: 2000 | H28: 2000 | I28: كشف (1) | J28: ترجمة
B29: 4358 | C29: 2019-12-31 | E29: 100 | F29: 800 | H29: 900 | I29: رسم تسجيل | J29: رياض اطفال
B30: 4359 | C30: 2019-12-31 | E30: 100 | F30: 800 | H30: 900 | I30: رسم تسجيل | J30: ترجمة
B31: 4360 | C31: 2019-12-31 | D31: 200 | H31: 200 | I31: بدل ضائع بطاقة | J31: رياض اطفال
B32: 4361 | C32: 2019-12-31 | D32: 2000 | H32: 2000 | I32: كشف (1) | J32: ترجمة
A33: سلام عز الدين | B33: 4362 | C33: 2019-12-31 | E33: 100 | F33: 800 | H33: 900 | I33: رسم تسجيل | J33: اعلام
A34: باسم الرحية | B34: 4363 | C34: 2019-12-31 | G34: 1000 | H34: 1000 | I34: استكمال رسوم | J34: اعلام
A35: نديم ريدان | B35: 4364 | C35: 2020-01-05 | G35: 1000 | H35: 1000 | I35: استكمال رسوم | J35: اعلام
B36: 4365 | C36: 2020-01-05 | E36: 100 | F36: 800 | H36: 900 | I36: رسم تسجيل | J36: محاسبة
B37: 4366 | C37: 2020-01-05 | D37: 200 | H37: 200 | I37: بدل ضائع بطاقة | J37: محاسبة
B38: 4367 | C38: 2020-01-05 | D38: 5000 | H38: 5000 | I38: كشف (6) | J38: ترجمة
A39: غسان دياب | B39: 4368 | C39: 2020-01-05 | G39: 1000 | H39: 1000 | I39: استكمال رسوم | J39: اعلام
B40: 4369 | C40: 2020-01-05 | D40: 5000 | H40: 5000 | I40: بدل ضائع مصدقة (1) | J40: رياض اطفال
B41: 4370 | C41: 2020-01-05 | D41: 2000 | H41: 2000 | I41: كشف (1) | J41: محاسبة
A42: بشار الشحيد | B42: 4371 | C42: 2020-01-05 | E42: 100 | F42: 800 | H42: 900 | I42: رسم تسجيل | J42: اعلام
B43: 4372 | C43: 2020-01-05 | E43: 100 | F43: 800 | H43: 900 | I43: رسم تسجيل | J43: ادارة مشروعات
A44: سماح الخطيب | B44: 4373 | C44: 2020-01-05 | G44: 1000 | H44: 1000 | I44: استكمال رسوم | J44: اعلام
B45: 4374 | C45: 2020-01-06 | D45: 2000 | H45: 2000 | I45: كشف (1) | J45: محاسبة
B46: 4375 | C46: 2020-01-06 | E46: 100 | F46: 800 | H46: 900 | I46: رسم تسجيل | J46: ادارة مشروعات
D47: =SUM(D2:D46) -> 36200 | E47: =SUM(E2:E46) -> 1900 | F47: =SUM(F2:F46) -> 15200 | G47: =SUM(G2:G46) -> 7000 | H47: =SUM(H2:H46) -> 60300

Sheet p44
A1: الاسم | B1: رقم ايصال | C1: تاريخ | D1: مختلفة | E1: تسليف | F1: رسم سنوي | G1: خدمات | H1: مجموع | I1: النوع | J1: القسم | K1: mine!A1
B2: 4376 | C2: 2020-01-06 | D2: 2000 | H2: 2000 | I2: كشف (1) | J2: ترجمة
B3: 4377 | C3: 2020-01-06 | E3: 100 | F3: 800 | H3: 900 | I3: رسم تسجيل | J3: ادارة مشروعات
B4: 4378 | C4: 2020-01-06 | G4: 5000 | H4: 5000 | I4: استكمال رسوم | J4: ادارة مشروعات
B5: 4379 | C5: 2020-01-06 | E5: 100 | F5: 800 | H5: 900 | I5: رسم تسجيل | J5: ادارة مشروعات
A6: هنادي بهاء الدين الشعراني | B6: 4380 | C6: 2020-01-06 | G6: 1000 | H6: 1000 | I6: استكمال رسوم | J6: اعلام
B7: 4381 | C7: 2020-01-06 | E7: 100 | F7: 800 | H7: 900 | I7: رسم تسجيل | J7: محاسبة
B8: 4382 | C8: 2020-01-06 | D8: 2000 | H8: 2000 | I8: كشف (1) | J8: محاسبة
A9: نور الهدى السحار | B9: 4383 | C9: 2020-01-06 | G9: 1000 | H9: 1000 | I9: استكمال رسوم | J9: اعلام
B10: 4384 | C10: 2020-01-06 | D10: 2000 | H10: 2000 | I10: كشف (1) | J10: ادارة مشروعات
B11: 4385 | C11: 2020-01-06 | G11: 1000 | H11: 1000 | I11: استكمال رسوم | J11: محاسبة
B12: 4386 | C12: 2020-01-06 | E12: 100 | F12: 800 | H12: 900 | I12: رسم تسجيل | J12: محاسبة
B13: 4387 | C13: 2020-01-06 | D13: 2000 | H13: 2000 | I13: كشف (1) | J13: ادارة مشروعات
B14: 4388 | C14: 2020-01-07 | D14: 5000 | H14: 5000 | I14: بدل ضائع مصدقة (1) | J14: رياض اطفال
B15: 4389 | C15: 2020-01-07 | G15: 1000 | H15: 1000 | I15: استكمال رسوم | J15: محاسبة
B16: 4390 | C16: 2020-01-07 | E16: 100 | F16: 800 | H16: 900 | I16: رسم تسجيل | J16: ترجمة
B17: 4391 | C17: 2020-01-07 | E17: 100 | F17: 800 | H17: 900 | I17: رسم تسجيل | J17: ترجمة
B18: 4392 | C18: 2020-01-07 | G18: 2500 | H18: 2500 | I18: استكمال رسوم | J18: ادارة مشروعات
B19: 4393 | C19: 2020-01-07 | G19: 5000 | H19: 5000 | I19: استكمال رسوم | J19: ترجمة
B20: 4394 | C20: 2020-01-07 | D20: 2000 | H20: 2000 | I20: كشف (1) | J20: ادارة مشروعات
B21: 4395 | C21: 2020-01-07 | E21: 100 | F21: 800 | H21: 900 | I21: رسم تسجيل | J21: ترجمة
B22: 4396 | C22: 2020-01-07 | G22: 1400 | H22: 1400 | I22: استكمال رسوم | J22: ترجمة
A23: احلام بناوي | B23: 4397 | C23: 2020-01-07 | D23: 2000 | H23: 2000 | I23: كشف (1) | J23: اعلام
B24: 4398 | C24: 2020-01-07 | D24: 200 | H24: 200 | I24: بدل ضائع بطاقة | J24: محاسبة
B25: 4399 | C25: 2020-01-07 | D25: 2000 | H25: 2000 | I25: كشف (1) | J25: ادارة مشروعات
A26: رباب حسن | B26: 4400 | C26: 2020-01-07 | G26: 1000 | H26: 1000 | I26: استكمال رسوم | J26: اعلام
B27: 4401 | C27: 2020-01-07 | D27: 2000 | H27: 2000 | I27: كشف (1) | J27: ادارة مشروعات
B28: 4402 | C28: 2020-01-07 | D28: 200 | H28: 200 | I28: بدل ضائع بطاقة | J28: محاسبة
B29: 4403 | C29: 2020-01-08 | E29: 100 | F29: 800 | H29: 900 | I29: رسم تسجيل | J29: محاسبة
B30: 4404 | C30: 2020-01-08 | D30: 200 | H30: 200 | I30: بدل ضائع بطاقة | J30: محاسبة
B31: 4405 | C31: 2020-01-08 | D31: 200 | H31: 200 | I31: بدل ضائع بطاقة | J31: ادارة مشروعات
B32: 4406 | C32: 2020-01-08 | E32: 100 | F32: 800 | H32: 900 | I32: رسم تسجيل | J32: ترجمة
B33: 4407 | C33: 2020-01-08 | E33: 100 | F33: 800 | H33: 900 | I33: رسم تسجيل | J33: ترجمة
B34: 4408 | C34: 2020-01-08 | E34: 100 | F34: 800 | H34: 900 | I34: رسم تسجيل | J34: ترجمة
B35: 4409 | C35: 2020-01-08 | D35: 5000 | H35: 5000 | I35: رسم شهادة | J35: ترجمة
B36: 4410 | C36: 2020-01-08 | E36: 100 | F36: 800 | H36: 900 | I36: رسم تسجيل | J36: ترجمة
B37: 4411 | C37: 2020-01-08 | E37: 100 | F37: 800 | H37: 900 | I37: رسم تسجيل | J37: رياض اطفال
B38: 4412 | C38: 2020-01-08 | D38: 2000 | H38: 2000 | I38: كشف (1) | J38: ادارة مشروعات
B39: 4413 | C39: 2020-01-08 | D39: 5000 | H39: 5000 | I39: رسم شهادة | J39: ترجمة
B40: 4414 | C40: 2020-01-08 | G40: 100 | H40: 100 | I40: براءة ذمة | J40: ترجمة
B41: 4415 | C41: 2020-01-08 | G41: 4000 | H41: 4000 | I41: استكمال رسوم | J41: ترجمة
B42: 4416 | C42: 2020-01-08 | G42: 1000 | H42: 1000 | I42: استكمال رسوم | J42: ادارة مشروعات
B43: 4417 | C43: 2020-01-08 | G43: 2000 | H43: 2000 | I43: استكمال رسوم | J43: ادارة مشروعات
B44: 4418 | C44: 2020-01-08 | E44: 100 | F44: 800 | H44: 900 | I44: رسم تسجيل | J44: محاسبة
B45: 4419 | C45: 2020-01-08 | D45: 5000 | H45: 5000 | I45: كشف (6) | J45: محاسبة
B46: 4420 | C46: 2020-01-08 | G46: 1000 | H46: 1000 | I46: استكمال رسوم | J46: ادارة مشروعات
D47: =SUM(D2:D46) -> 38800 | E47: =SUM(E2:E46) -> 1400 | F47: =SUM(F2:F46) -> 11200 | G47: =SUM(G2:G46) -> 27000 | H47: =SUM(H2:H46) -> 78400

Sheet p45
A1: الاسم | B1: رقم ايصال | C1: تاريخ | D1: مختلفة | E1: تسليف | F1: رسم سنوي | G1: خدمات | H1: مجموع | I1: النوع | J1: القسم | K1: mine!A1
B2: 4421 | C2: 2020-01-08 | D2: 2000 | H2: 2000 | I2: كشف (1) | J2: ادارة مشروعات
B3: 4422 | C3: 2020-01-09 | D3: 2000 | H3: 2000 | I3: كشف (1) | J3: ترجمة
B4: 4423 | C4: 2020-01-09 | D4: 2000 | H4: 2000 | I4: كشف (1) | J4: محاسبة
B5: 4424 | C5: 2020-01-09 | D5: 200 | H5: 200 | I5: بدل ضائع بطاقة | J5: محاسبة
B6: 4425 | C6: 2020-01-09 | D6: 2000 | H6: 2000 | I6: كشف (1) | J6: محاسبة
B7: 4426 | C7: 2020-01-09 | E7: 100 | F7: 800 | H7: 900 | I7: رسم تسجيل | J7: ادارة مشروعات
B8: 4427 | C8: 2020-01-12 | G8: 1000 | H8: 1000 | I8: استكمال رسوم | J8: ادارة مشروعات
A9: الاء خليفه | B9: 4428 | C9: 2020-01-12 | E9: 100 | F9: 800 | H9: 900 | I9: رسم تسجيل | J9: اعلام
A10: مجد عليان تبلو | B10: 4429 | C10: 2020-01-12 | G10: 1500 | H10: 1500 | I10: استكمال رسوم | J10: اعلام
B11: 4430 | C11: 2020-01-12 | D11: 2000 | H11: 2000 | I11: كشف (1) | J11: محاسبة
A12: زينب فاضل | B12: 4431 | C12: 2020-01-12 | G12: 1000 | H12: 1000 | I12: استكمال رسوم | J12: اعلام
B13: 4432 | C13: 2020-01-12 | E13: 100 | F13: 800 | H13: 900 | I13: رسم تسجيل | J13: ترجمة
A14: جمانه عبد الله | B14: 4433 | C14: 2020-01-12 | D14: 2000 | H14: 2000 | I14: كشف (1) | J14: اعلام
B15: 4434 | C15: 2020-01-12 | E15: 100 | F15: 800 | H15: 900 | I15: رسم تسجيل | J15: محاسبة
B16: 4435 | C16: 2020-01-12 | E16: 100 | F16: 800 | H16: 900 | I16: رسم تسجيل | J16: ترجمة
B17: 4436 | C17: 2020-01-12 | E17: 100 | F17: 800 | H17: 900 | I17: رسم تسجيل | J17: محاسبة
B18: 4437 | C18: 2020-01-12 | D18: 5000 | H18: 5000 | I18: بدل ضائع مصدقة (1) | J18: رياض اطفال
B19: 4438 | C19: 2020-01-12 | D19: 2000 | H19: 2000 | I19: كشف (1) | J19: ادارة مشروعات
B20: 4439 | C20: 2020-01-12 | D20: 2000 | H20: 2000 | I20: كشف (1) | J20: محاسبة
A21: رامي زين الدين | B21: 4440 | C21: 2020-01-12 | D21: 3000 | H21: 3000 | I21: كشف (1) | J21: اعلام | K21: تتمة
B22: 4441 | C22: 2020-01-12 | E22: 100 | F22: 800 | H22: 900 | I22: رسم تسجيل | J22: رياض اطفال
B23: 4442 | C23: 2020-01-12 | D23: 2000 | H23: 2000 | I23: كشف (1) | J23: ترجمة
B24: 4443 | C24: 2020-01-12 | D24: 2000 | H24: 2000 | I24: كشف (1) | J24: ترجمة
B25: 4444 | C25: 2020-01-12 | G25: 3500 | H25: 3500 | I25: استكمال رسوم | J25: ادارة مشروعات
B26: 4445 | C26: 2020-01-12 | D26: 200 | H26: 200 | I26: بدل ضائع بطاقة | J26: ادارة مشروعات
B27: 4446 | C27: 2020-01-12 | E27: 100 | F27: 800 | H27: 900 | I27: رسم تسجيل | J27: محاسبة
B28: 4447 | C28: 2020-01-12 | E28: 100 | F28: 800 | H28: 900 | I28: رسم تسجيل | J28: محاسبة
B29: 4448 | C29: 2020-01-12 | D29: 2000 | H29: 2000 | I29: كشف (1) | J29: ترجمة
B30: 4449 | C30: 2020-01-12 | D30: 5000 | H30: 5000 | I30: كشف (6) | J30: ادارة مشروعات
B31: 4450 | C31: 2020-01-12 | G31: 1000 | H31: 1000 | I31: استكمال رسوم | J31: محاسبة
A32: نبراس العبيد الذيب | B32: 4451 | C32: 2020-01-13 | G32: 2600 | H32: 2600 | I32: استكمال رسوم | J32: اعلام
A33: ناريمان السالم | B33: 4452 | C33: 2020-01-13 | G33: 1000 | H33: 1000 | I33: استكمال رسوم | J33: اعلام
B34: 4453 | C34: 2020-01-13 | G34: 1000 | H34: 1000 | I34: استكمال رسوم | J34: ترجمة
B35: 4454 | C35: 2020-01-13 | G35: 1000 | H35: 1000 | I35: استكمال رسوم | J35: ادارة مشروعات
A36: صفاء حسن | B36: 4455 | C36: 2020-01-13 | E36: 100 | F36: 800 | H36: 900 | I36: رسم تسجيل | J36: اعلام
B37: 4456 | C37: 2020-01-13 | G37: 3000 | H37: 3000 | I37: استكمال رسوم | J37: ادارة مشروعات
B38: 4457 | C38: 2020-01-13 | D38: 2000 | H38: 2000 | I38: كشف (1) | J38: محاسبة
B39: 4458 | C39: 2020-01-13 | G39: 5000 | H39: 5000 | I39: استكمال رسوم | J39: ترجمة
A40: دارين حمداش | B40: 4459 | C40: 2020-01-13 | G40: 4400 | H40: 4400 | I40: استكمال رسوم | J40: اعلام
B41: 4460 | C41: 2020-01-13 | E41: 100 | F41: 800 | H41: 900 | I41: رسم تسجيل | J41: محاسبة
B42: 4461 | C42: 2020-01-13 | D42: 5000 | H42: 5000 | I42: كشف (6) | J42: محاسبة
B43: 4462 | C43: 2020-01-13 | D43: 2000 | H43: 2000 | I43: كشف (1) | J43: ترجمة
A44: رائد النفوري | B44: 4463 | C44: 2020-01-13 | E44: 100 | F44: 800 | H44: 900 | I44: رسم تسجيل | J44: اعلام
A45: رشا حمصي | B45: 4464 | C45: 2020-01-13 | E45: 100 | F45: 800 | H45: 900 | I45: رسم تسجيل | J45: اعلام
B46: 4465 | C46: 2020-01-13 | G46: 1900 | H46: 1900 | I46: استكمال رسوم | J46: ادارة مشروعات
D47: =SUM(D2:D46) -> 44400 | E47: =SUM(E2:E46) -> 1300 | F47: =SUM(F2:F46) -> 10400 | G47: =SUM(G2:G46) -> 27900 | H47: =SUM(H2:H46) -> 84000
C49: =COUNTA(B2:B46) -> 45
C50: =COUNTBLANK(B2:B46) -> 0

Sheet p46
A1: الاسم | B1: رقم ايصال | C1: تاريخ | D1: مختلفة | E1: تسليف | F1: رسم سنوي | G1: خدمات | H1: مجموع | I1: النوع | J1: القسم | K1: mine!A1
B2: 4466 | C2: 2020-01-13 | E2: 100 | F2: 800 | H2: 900 | I2: رسم تسجيل | J2: محاسبة
B3: 4467 | C3: 2020-01-13 | E3: 100 | F3: 800 | H3: 900 | I3: رسم تسجيل | J3: محاسبة
B4: 4468 | C4: 2020-01-13 | E4: 100 | F4: 800 | H4: 900 | I4: رسم تسجيل | J4: ترجمة
B5: 4469 | C5: 2020-01-13 | E5: 100 | F5: 800 | H5: 900 | I5: رسم تسجيل | J5: محاسبة
B6: 4470 | C6: 2020-01-13 | D6: 200 | H6: 200 | I6: بدل ضائع بطاقة | J6: محاسبة
B7: 4471 | C7: 2020-01-13 | D7: 5000 | H7: 5000 | I7: بدل تالف شهادة | J7: محاسبة
A8: الاء الخطيب | B8: 4472 | C8: 2020-01-13 | G8: 1000 | H8: 1000 | I8: استكمال رسوم | J8: اعلام
B9: 4473 | C9: 2020-01-13 | D9: 2000 | H9: 2000 | I9: كشف (1) | J9: ترجمة
B10: 4474 | C10: 2020-01-13 | G10: 2000 | H10: 2000 | I10: استكمال رسوم | J10: ادارة مشروعات
B11: 4475 | C11: 2020-01-13 | E11: 100 | F11: 800 | H11: 900 | I11: رسم تسجيل | J11: محاسبة
B12: 4476 | C12: 2020-01-13 | E12: 100 | F12: 800 | H12: 900 | I12: رسم تسجيل | J12: ترجمة
B13: 4477 | C13: 2020-01-13 | E13: 100 | F13: 800 | H13: 900 | I13: رسم تسجيل | J13: محاسبة
B14: 4478 | C14: 2020-01-13 | G14: 1000 | H14: 1000 | I14: استكمال رسوم | J14: ترجمة
B15: 4479 | C15: 2020-01-13 | D15: 2000 | H15: 2000 | I15: كشف (1) | J15: ادارة مشروعات
B16: 4480 | C16: 2020-01-13 | D16: 5000 | H16: 5000 | I16: كشف (6) | J16: ترجمة
B17: 4481 | C17: 2020-01-13 | E17: 100 | F17: 800 | H17: 900 | I17: رسم تسجيل | J17: محاسبة
B18: 4482 | C18: 2020-01-13 | E18: 100 | F18: 800 | H18: 900 | I18: رسم تسجيل | J18: محاسبة
B19: 4483 | C19: 2020-01-13 | D19: 2000 | H19: 2000 | I19: كشف (1) | J19: ادارة مشروعات
B20: 4484 | C20: 2020-01-13 | G20: 1000 | H20: 1000 | I20: استكمال رسوم | J20: ترجمة
A21: نور الهدى المصري | B21: 4485 | C21: 2020-01-14 | G21: 1000 | H21: 1000 | I21: استكمال رسوم | J21: اعلام
B22: 4486 | C22: 2020-01-14 | G22: 2000 | H22: 2000 | I22: استكمال رسوم | J22: ترجمة
B23: 4487 | C23: 2020-01-14 | G23: 5000 | H23: 5000 | I23: استكمال رسوم | J23: ادارة مشروعات
B24: 4488 | C24: 2020-01-14 | G24: 1500 | H24: 1500 | I24: استكمال رسوم | J24: ادارة مشروعات
B25: 4489 | C25: 2020-01-14 | E25: 100 | F25: 800 | H25: 900 | I25: رسم تسجيل | J25: ترجمة
B26: 4490 | C26: 2020-01-14 | G26: 1000 | H26: 1000 | I26: استكمال رسوم | J26: محاسبة
B27: 4491 | C27: 2020-01-14 | D27: 200 | H27: 200 | I27: بدل ضائع بطاقة | J27: محاسبة
B28: 4492 | C28: 2020-01-14 | D28: 200 | H28: 200 | I28: بدل ضائع بطاقة | J28: ترجمة
B29: 4493 | C29: 2020-01-14 | D29: 5000 | H29: 5000 | I29: كشف (6) | J29: ترجمة
B30: 4494 | C30: 2020-01-14 | D30: 5000 | H30: 5000 | I30: رسم شهادة | J30: محاسبة
B31: 4495 | C31: 2020-01-14 | G31: 2500 | H31: 2500 | I31: استكمال رسوم | J31: ترجمة
B32: 4496 | C32: 2020-01-14 | E32: 100 | F32: 800 | H32: 900 | I32: رسم تسجيل | J32: ادارة مشروعات
B33: 4497 | C33: 2020-01-14 | D33: 200 | H33: 200 | I33: بدل ضائع بطاقة | J33: محاسبة
A34: شيرين ابراهيم آغا | B34: 4498 | C34: 2020-01-14 | E34: 100 | F34: 800 | H34: 900 | I34: رسم تسجيل | J34: اعلام
B35: 4499 | C35: 2020-01-14 | E35: 100 | F35: 800 | H35: 900 | I35: رسم تسجيل | J35: ترجمة
B36: 4500 | C36: 2020-01-14 | D36: 200 | H36: 200 | I36: بدل ضائع بطاقة | J36: ادارة مشروعات
B37: 4501 | C37: 2020-01-14 | G37: 5000 | H37: 5000 | I37: استكمال رسوم | J37: ادارة مشروعات
B38: 4502 | C38: 2020-01-14 | G38: 1500 | H38: 1500 | I38: استكمال رسوم | J38: ادارة مشروعات
B39: 4503 | C39: 2020-01-14 | E39: 100 | F39: 800 | H39: 900 | I39: رسم تسجيل | J39: محاسبة
B40: 4504 | C40: 2020-01-14 | G40: 3000 | H40: 3000 | I40: استكمال رسوم | J40: ادارة مشروعات
A41: رانية الحاج عيسى | B41: 4505 | C41: 2020-01-14 | G41: 1000 | H41: 1000 | I41: استكمال رسوم | J41: اعلام
A42: يارا كبول | B42: 4506 | C42: 2020-01-14 | D42: 5000 | H42: 5000 | I42: رسم شهادة | J42: اعلام
A43: يارا كبول | B43: 4507 | C43: 2020-01-14 | E43: 100 | F43: 800 | H43: 900 | I43: رسم تسجيل | J43: اعلام
A44: روان الحباس | B44: 4508 | C44: 2020-01-14 | E44: 100 | F44: 800 | H44: 900 | I44: رسم تسجيل | J44: اعلام
B45: 4509 | C45: 2020-01-14 | E45: 100 | F45: 800 | H45: 900 | I45: رسم تسجيل | J45: محاسبة
B46: 4510 | C46: 2020-01-14 | E46: 100 | F46: 800 | H46: 900 | I46: رسم تسجيل | J46: محاسبة
D47: =SUM(D2:D46) -> 32000 | E47: =SUM(E2:E46) -> 1800 | F47: =SUM(F2:F46) -> 14400 | G47: =SUM(G2:G46) -> 28500 | H47: =SUM(H2:H46) -> 76700
C49: =COUNTA(B2:B46) -> 45
C50: =COUNTBLANK(B2:B46) -> 0

Sheet p47
A1: الاسم | B1: رقم ايصال | C1: تاريخ | D1: مختلفة | E1: تسليف | F1: رسم سنوي | G1: خدمات | H1: مجموع | I1: النوع | J1: القسم | K1: mine!A1
B2: 4511 | C2: 2020-01-14 | D2: 5000 | H2: 5000 | I2: كشف (6) | J2: محاسبة
B3: 4512 | C3: 2020-01-14 | D3: 200 | H3: 200 | I3: بدل ضائع بطاقة | J3: ادارة مشروعات
B4: 4513 | C4: 2020-01-14 | D4: 2000 | H4: 2000 | I4: كشف (1) | J4: محاسبة
A5: اسراء منور | B5: 4514 | C5: 2020-01-14 | G5: 1000 | H5: 1000 | I5: استكمال رسوم | J5: اعلام
B6: 4515 | C6: 2020-01-14 | D6: 200 | H6: 200 | I6: بدل ضائع بطاقة | J6: ادارة مشروعات
A7: اسراء عطيه | B7: 4516 | C7: 2020-01-14 | G7: 1000 | H7: 1000 | I7: استكمال رسوم | J7: اعلام
A8: رنوة دلعو | B8: 4517 | C8: 2020-01-14 | G8: 1000 | H8: 1000 | I8: استكمال رسوم | J8: اعلام
B9: 4518 | C9: 2020-01-14 | E9: 100 | F9: 800 | H9: 900 | I9: رسم تسجيل | J9: ادارة مشروعات
B10: 4519 | C10: 2020-01-14 | E10: 100 | F10: 800 | H10: 900 | I10: رسم تسجيل | J10: ادارة مشروعات
B11: 4520 | C11: 2020-01-14 | D11: 200 | H11: 200 | I11: بدل ضائع بطاقة | J11: ادارة مشروعات
B12: 4521 | C12: 2020-01-14 | E12: 100 | F12: 800 | H12: 900 | I12: رسم تسجيل | J12: ترجمة
B13: 4522 | C13: 2020-01-14 | D13: 2000 | H13: 2000 | I13: كشف (1) | J13: محاسبة
B14: 4523 | C14: 2020-01-14 | D14: 2000 | H14: 2000 | I14: كشف (1) | J14: محاسبة
A15: رهف الزمريق | B15: 4524 | C15: 2020-01-14 | E15: 100 | F15: 800 | H15: 900 | I15: رسم تسجيل | J15: اعلام
B16: 4525 | C16: 2020-01-14 | E16: 100 | F16: 800 | H16: 900 | I16: رسم تسجيل | J16: ترجمة
B17: 4526 | C17: 2020-01-14 | E17: 100 | F17: 800 | H17: 900 | I17: رسم تسجيل | J17: محاسبة
B18: 4527 | C18: 2020-01-14 | E18: 100 | F18: 800 | H18: 900 | I18: رسم تسجيل | J18: محاسبة
B19: 4528 | C19: 2020-01-14 | E19: 100 | F19: 800 | H19: 900 | I19: رسم تسجيل | J19: محاسبة
B20: 4529 | C20: 2020-01-14 | G20: 1500 | H20: 1500 | I20: استكمال رسوم | J20: ادارة مشروعات
B21: 4530 | C21: 2020-01-14 | D21: 5000 | H21: 5000 | I21: بدل ضائع مصدقة (1) | J21: رياض اطفال
B22: 4531 | C22: 2020-01-14 | D22: 2000 | H22: 2000 | I22: كشف (1) | J22: ترجمة
A23: محمد السلوم | B23: 4532 | C23: 2020-01-14 | E23: 100 | F23: 800 | H23: 900 | I23: رسم تسجيل | J23: اعلام
B24: 4533 | C24: 2020-01-14 | E24: 100 | F24: 800 | H24: 900 | I24: رسم تسجيل | J24: ترجمة
B25: 4534 | C25: 2020-01-14 | D25: 200 | H25: 200 | I25: بدل ضائع بطاقة | J25: ترجمة
A26: علا ابراهيم | B26: 4535 | C26: 2020-01-14 | D26: 2000 | H26: 2000 | I26: كشف (1) | J26: اعلام
B27: 4536 | C27: 2020-01-15 | E27: 100 | F27: 800 | H27: 900 | I27: رسم تسجيل | J27: محاسبة
A28: رنيم شروف | B28: 4537 | C28: 2020-01-15 | G28: 1000 | H28: 1000 | I28: استكمال رسوم | J28: اعلام
B29: 4538 | C29: 2020-01-15 | E29: 100 | F29: 800 | H29: 900 | I29: رسم تسجيل | J29: ادارة مشروعات
A30: طارق دنون | B30: 4539 | C30: 2020-01-15 | D30: 200 | H30: 200 | I30: بدل ضائع بطاقة | J30: اعلام
A31: سالي حامد | B31: 4540 | C31: 2020-01-15 | G31: 1000 | H31: 1000 | I31: استكمال رسوم | J31: اعلام
A32: فريال مني | B32: 4541 | C32: 2020-01-15 | G32: 1000 | H32: 1000 | I32: استكمال رسوم | J32: اعلام
A33: عزيزة فرعة | B33: 4542 | C33: 2020-01-15 | G33: 1000 | H33: 1000 | I33: استكمال رسوم | J33: اعلام
A34: ولاء صالح | B34: 4543 | C34: 2020-01-15 | E34: 100 | F34: 800 | H34: 900 | I34: رسم تسجيل | J34: اعلام
B35: 4544 | C35: 2020-01-15 | E35: 100 | F35: 800 | H35: 900 | I35: رسم تسجيل | J35: ادارة مشروعات
B36: 4545 | C36: 2020-01-15 | G36: 1000 | H36: 1000 | I36: استكمال رسوم | J36: ادارة مشروعات
B37: 4546 | C37: 2020-01-15 | D37: 2000 | H37: 2000 | I37: كشف (1) | J37: ادارة مشروعات
B38: 4547 | C38: 2020-01-15 | E38: 100 | F38: 800 | H38: 900 | I38: رسم تسجيل | J38: ترجمة
A39: احمد السيمجي الموصلي | B39: 4548 | C39: 2020-01-15 | G39: 1000 | H39: 1000 | I39: استكمال رسوم | J39: اعلام
B40: 4549 | C40: 2020-01-15 | E40: 100 | F40: 800 | H40: 900 | I40: رسم تسجيل | J40: محاسبة
A41: ديانا الخضري | B41: 4550 | C41: 2020-01-15 | E41: 100 | F41: 800 | H41: 900 | I41: رسم تسجيل | J41: اعلام
B42: 4551 | C42: 2020-01-15 | E42: 100 | F42: 800 | H42: 900 | I42: رسم تسجيل | J42: محاسبة
A43: عائشه اللحام | B43: 4552 | C43: 2020-01-15 | G43: 1000 | H43: 1000 | I43: استكمال رسوم | J43: اعلام
A44: حسام الحميدي | B44: 4553 | C44: 2020-01-15 | D44: 2000 | H44: 2000 | I44: كشف (1) | J44: اعلام
B45: 4554 | C45: 2020-01-15 | D45: 200 | H45: 200 | I45: بدل ضائع بطاقة | J45: ادارة مشروعات
B46: 4555 | C46: 2020-01-15 | D46: 5000 | H46: 5000 | I46: رسم شهادة | J46: رياض اطفال
D47: =SUM(D2:D46) -> 30200 | E47: =SUM(E2:E46) -> 1800 | F47: =SUM(F2:F46) -> 14400 | G47: =SUM(G2:G46) -> 11500 | H47: =SUM(H2:H46) -> 57900
C49: =COUNTA(B2:B46) -> 45
C50: =COUNTBLANK(B2:B46) -> 0

Sheet p48
A1: الاسم | B1: رقم ايصال | C1: تاريخ | D1: مختلفة | E1: تسليف | F1: رسم سنوي | G1: خدمات | H1: مجموع | I1: النوع | J1: القسم | K1: mine!A1
B2: 4556 | C2: 2020-01-15 | D2: 200 | H2: 200 | I2: بدل ضائع بطاقة | J2: محاسبة
B3: 4557 | C3: 2020-01-15 | D3: 2000 | H3: 2000 | I3: كشف (1) | J3: محاسبة
A4: قتيبه عاشور | B4: 4558 | C4: 2020-01-15 | G4: 1000 | H4: 1000 | I4: استكمال رسوم | J4: اعلام
B5: 4559 | C5: 2020-01-15 | G5: 5000 | H5: 5000 | I5: استكمال رسوم | J5: محاسبة
B6: 4560 | C6: 2020-01-15 | D6: 2000 | H6: 2000 | I6: كشف (1) | J6: ادارة مشروعات
A7: سليمان الاحمد | B7: 4561 | C7: 2020-01-15 | E7: 100 | F7: 800 | H7: 900 | I7: رسم تسجيل | J7: اعلام
B8: 4562 | C8: 2020-01-15 | G8: 2500 | H8: 2500 | I8: استكمال رسوم | J8: ترجمة
B9: 4563 | C9: 2020-01-15 | G9: 1000 | H9: 1000 | I9: استكمال رسوم | J9: محاسبة
B10: 4564 | C10: 2020-01-15 | G10: 1000 | H10: 1000 | I10: استكمال رسوم | J10: ترجمة
B11: 4565 | C11: 2020-01-15 | D11: 200 | H11: 200 | I11: بدل ضائع بطاقة | J11: ترجمة
A12: زهير السعدي | B12: 4566 | C12: 2020-01-15 | G12: 1000 | H12: 1000 | I12: استكمال رسوم | J12: اعلام
B13: 4567 | C13: 2020-01-15 | E13: 100 | F13: 800 | H13: 900 | I13: رسم تسجيل | J13: ترجمة
B14: 4568 | C14: 2020-01-15 | D14: 5000 | H14: 5000 | I14: بدل ضائع مصدقة (1) | J14: ترجمة
B15: 4569 | C15: 2020-01-15 | E15: 100 | F15: 800 | H15: 900 | I15: رسم تسجيل | J15: ترجمة
B16: 4570 | C16: 2020-01-15 | D16: 2000 | H16: 2000 | I16: كشف (1) | J16: محاسبة
A17: محمود العلي | B17: 4571 | C17: 2020-01-15 | D17: 200 | H17: 200 | I17: بدل ضائع بطاقة | J17: اعلام
B18: 4572 | C18: 2020-01-15 | D18: 2000 | H18: 2000 | I18: كشف (1) | J18: ادارة مشروعات
B19: 4573 | C19: 2020-01-15 | E19: 100 | F19: 800 | H19: 900 | I19: رسم تسجيل | J19: محاسبة
B20: 4574 | C20: 2020-01-15 | E20: 100 | F20: 800 | H20: 900 | I20: رسم تسجيل | J20: محاسبة
A21: محمود عيون | B21: 4575 | C21: 2020-01-15 | G21: 2000 | H21: 2000 | I21: استكمال رسوم | J21: اعلام
B22: 4576 | C22: 2020-01-15 | G22: 4000 | H22: 4000 | I22: استكمال رسوم | J22: ادارة مشروعات
B23: 4577 | C23: 2020-01-15 | E23: 100 | F23: 800 | H23: 900 | I23: رسم تسجيل | J23: محاسبة
A24: فريزه الهندي | B24: 4578 | C24: 2020-01-15 | G24: 1000 | H24: 1000 | I24: استكمال رسوم | J24: اعلام
B25: 4579 | C25: 2020-01-15 | E25: 100 | F25: 800 | H25: 900 | I25: رسم تسجيل | J25: ترجمة
B26: 4580 | C26: 2020-01-15 | D26: 2000 | H26: 2000 | I26: كشف (1) | J26: محاسبة
A27: بشرى الشنواني | B27: 4581 | C27: 2020-01-15 | E27: 100 | F27: 800 | H27: 900 | I27: رسم تسجيل | J27: اعلام
A28: علي الجاموس | B28: 4582 | C28: 2020-01-15 | E28: 100 | F28: 800 | H28: 900 | I28: رسم تسجيل | J28: اعلام
B29: 4583 | C29: 2020-01-15 | D29: 2000 | H29: 2000 | I29: كشف (1) | J29: ترجمة
B30: 4584 | C30: 2020-01-16 | E30: 100 | F30: 800 | H30: 900 | I30: رسم تسجيل | J30: ادارة مشروعات
B31: 4585 | C31: 2020-01-16 | D31: 200 | H31: 200 | I31: بدل ضائع بطاقة | J31: ادارة مشروعات
B32: 4586 | C32: 2020-01-16 | G32: 4000 | H32: 4000 | I32: براءة ذمة | J32: ادارة مشروعات
B33: 4587 | C33: 2020-01-16 | G33: 100 | H33: 100 | I33: استكمال رسوم | J33: ادارة مشروعات
B34: 4588 | C34: 2020-01-16 | E34: 100 | F34: 800 | H34: 900 | I34: رسم تسجيل | J34: محاسبة
A35: احمد اسماعيل | B35: 4589 | C35: 2020-01-16 | E35: 100 | F35: 800 | H35: 900 | I35: رسم تسجيل | J35: اعلام
B36: 4590 | C36: 2020-01-16 | E36: 100 | F36: 800 | H36: 900 | I36: رسم تسجيل | J36: ادارة مشروعات
A37: هبه الله الرفاعي | B37: 4591 | C37: 2020-01-16 | E37: 100 | F37: 800 | H37: 900 | I37: رسم تسجيل | J37: اعلام
B38: 4592 | C38: 2020-01-16 | E38: 100 | F38: 800 | H38: 900 | I38: رسم تسجيل | J38: ادارة مشروعات
B39: 4593 | C39: 2020-01-16 | G39: 1000 | H39: 1000 | I39: استكمال رسوم | J39: ترجمة
B40: 4594 | C40: 2020-01-16 | G40: 1000 | H40: 1000 | I40: استكمال رسوم | J40: ادارة مشروعات
B41: 4595 | C41: 2020-01-16 | E41: 100 | F41: 800 | H41: 900 | I41: رسم تسجيل | J41: محاسبة
A42: وسيم البيك | B42: 4596 | C42: 2020-01-16 | G42: 1000 | H42: 1000 | I42: استكمال رسوم | J42: اعلام
B43: 4597 | C43: 2020-01-16 | E43: 100 | F43: 800 | H43: 900 | I43: رسم تسجيل | J43: ترجمة
B44: 4598 | C44: 2020-01-16 | E44: 100 | F44: 800 | H44: 900 | I44: رسم تسجيل | J44: محاسبة
B45: 4599 | C45: 2020-01-16 | E45: 100 | F45: 800 | H45: 900 | I45: رسم تسجيل | J45: محاسبة
A46: عمار الابراهيم | B46: 4600 | C46: 2020-01-16 | G46: 1000 | H46: 1000 | I46: استكمال رسوم | J46: اعلام
D47: =SUM(D2:D46) -> 17800 | E47: =SUM(E2:E46) -> 1900 | F47: 15200 | G47: 26600 | H47: 61500

Sheet p49
A1: الاسم | B1: رقم ايصال | C1: تاريخ | D1: مختلفة | E1: تسليف | F1: رسم سنوي | G1: خدمات | H1: مجموع | I1: النوع | J1: القسم | K1: mine!A1
A2: عامر عدل | B2: 4601 | C2: 2020-01-16 | E2: 100 | F2: 800 | H2: 900 | I2: رسم تسجيل | J2: اعلام
A3: ديمه السلامه | B3: 4602 | C3: 2020-01-16 | E3: 100 | F3: 800 | H3: 900 | I3: رسم تسجيل | J3: اعلام
A4: ميس مخلوف | B4: 4603 | C4: 2020-01-16 | G4: 2500 | H4: 2500 | I4: استكمال رسوم | J4: اعلام
B5: 4604 | C5: 2020-01-16 | E5: 100 | F5: 800 | H5: 900 | I5: رسم تسجيل | J5: ترجمة
B6: 4605 | C6: 2020-01-16 | G6: 1500 | H6: 1500 | I6: استكمال رسوم | J6: ترجمة
A7: محمد ابو شام | B7: 4606 | C7: 2020-01-16 | G7: 1000 | H7: 1000 | I7: استكمال رسوم | J7: اعلام
B8: 4607 | C8: 2020-01-16 | D8: 5000 | H8: 5000 | I8: كشف (6) | J8: ترجمة
A9: رامي حاج احمد | B9: 4608 | C9: 2020-01-16 | D9: 200 | H9: 200 | I9: بدل ضائع بطاقة | J9: اعلام
B10: 4609 | C10: 2020-01-16 | D10: 200 | H10: 200 | I10: بدل ضائع بطاقة | J10: ادارة مشروعات
B11: 4610 | C11: 2020-01-16 | E11: 100 | F11: 800 | H11: 900 | I11: رسم تسجيل | J11: محاسبة
B12: 4611 | C12: 2020-01-16 | E12: 100 | F12: 800 | H12: 900 | I12: رسم تسجيل | J12: ادارة مشروعات
B13: 4612 | C13: 2020-01-16 | G13: 4400 | H13: 4400 | I13: استكمال رسوم | J13: ادارة مشروعات
B14: 4613 | C14: 2020-01-16 | D14: 200 | H14: 200 | I14: بدل ضائع بطاقة | J14: ترجمة
B15: 4614 | C15: 2020-01-16 | G15: 1000 | H15: 1000 | I15: استكمال رسوم | J15: ادارة مشروعات
A16: محمد النفوري | B16: 4615 | C16: 2020-01-16 | E16: 100 | F16: 800 | H16: 900 | I16: رسم تسجيل | J16: اعلام
A17: غيث الطوالبه | B17: 4616 | C17: 2020-01-16 | E17: 100 | F17: 800 | H17: 900 | I17: رسم تسجيل | J17: اعلام
B18: 4617 | C18: 2020-01-19 | D18: 2000 | H18: 2000 | I18: كشف (1) | J18: محاسبة
B19: 4618 | C19: 2020-01-19 | G19: 1000 | H19: 1000 | I19: استكمال رسوم | J19: ترجمة
A20: نور حسن | B20: 4619 | C20: 2020-01-19 | D20: 200 | H20: 200 | I20: بدل ضائع بطاقة | J20: اعلام
B21: 4620 | C21: 2020-01-19 | D21: 2000 | H21: 2000 | I21: كشف (1) | J21: ادارة مشروعات
B22: 4621 | C22: 2020-01-19 | D22: 5000 | H22: 5000 | I22: كشف (6) | J22: ترجمة
B23: 4622 | C23: 2020-01-19 | D23: 5000 | H23: 5000 | I23: بدل ضائع مصدقة (1) | J23: رياض اطفال
B24: 4623 | C24: 2020-01-19 | D24: 5000 | H24: 5000 | I24: كشف (6) | J24: ترجمة
B25: 4624 | C25: 2020-01-19 | E25: 100 | F25: 800 | H25: 900 | I25: رسم تسجيل | J25: ادارة مشروعات
B26: 4625 | C26: 2020-01-19 | E26: 100 | F26: 800 | H26: 900 | I26: رسم تسجيل | J26: ترجمة
B27: 4626 | C27: 2020-01-19 | D27: 2000 | H27: 2000 | I27: كشف (1) | J27: ادارة مشروعات
B28: 4627 | C28: 2020-01-19 | D28: 5000 | H28: 5000 | I28: كشف (6) | J28: رياض اطفال
B29: 4628 | C29: 2020-01-19 | G29: 1000 | H29: 1000 | I29: استكمال رسوم | J29: محاسبة
B30: 4629 | C30: 2020-01-19 | G30: 1000 | H30: 1000 | I30: استكمال رسوم | J30: ادارة مشروعات
B31: 4630 | C31: 2020-01-20 | E31: 100 | F31: 800 | H31: 900 | I31: رسم تسجيل | J31: محاسبة
B32: 4631 | C32: 2020-01-20 | D32: 5000 | H32: 5000 | I32: كشف (6) | J32: محاسبة
A33: رغد السهو | B33: 4632 | C33: 2020-01-20 | D33: 5000 | H33: 5000 | I33: كشف (6) | J33: اعلام
B34: 4633 | C34: 2020-01-20 | G34: 1500 | H34: 1500 | I34: استكمال رسوم | J34: ادارة مشروعات
B35: 4634 | C35: 2020-01-20 | E35: 100 | F35: 800 | H35: 900 | I35: رسم تسجيل | J35: ادارة مشروعات
B36: 4635 | C36: 2020-01-20 | D36: 200 | H36: 200 | I36: بدل ضائع بطاقة | J36: محاسبة
A37: محمد زياد مجذوب | B37: 4636 | C37: 2020-01-20 | D37: 200 | H37: 200 | I37: بدل ضائع بطاقة | J37: اعلام
B38: 4637 | C38: 2020-01-20 | D38: 5000 | H38: 5000 | I38: كشف (6) | J38: محاسبة
B39: 4638 | C39: 2020-01-20 | E39: 100 | F39: 800 | H39: 900 | I39: رسم تسجيل | J39: محاسبة
B40: 4639 | C40: 2020-01-20 | D40: 2000 | H40: 2000 | I40: كشف (1) | J40: محاسبة
B41: 4640 | C41: 2020-01-21 | G41: 2500 | H41: 2500 | I41: استكمال رسوم | J41: ادارة مشروعات
B42: 4641 | C42: 2020-01-21 | G42: 1000 | H42: 1000 | I42: استكمال رسوم | J42: محاسبة
B43: 4642 | C43: 2020-01-21 | D43: 5000 | H43: 5000 | I43: كشف (6) | J43: ادارة مشروعات
B44: 4643 | C44: 2020-01-21 | D44: 200 | H44: 200 | I44: بدل ضائع بطاقة | J44: ادارة مشروعات
B45: 4644 | C45: 2020-01-21 | E45: 100 | F45: 800 | H45: 900 | I45: رسم تسجيل | J45: محاسبة
B46: 4645 | C46: 2020-01-21 | G46: 1000 | H46: 1000 | I46: استكمال رسوم | J46: ترجمة
D47: =SUM(D2:D46) -> 54400 | E47: =SUM(E2:E46) -> 1300 | F47: =SUM(F2:F46) -> 10400 | G47: =SUM(G2:G46) -> 19400 | H47: =SUM(H2:H46) -> 85500

Sheet p50
A1: الاسم | B1: رقم ايصال | C1: تاريخ | D1: مختلفة | E1: تسليف | F1: رسم سنوي | G1: خدمات | H1: مجموع | I1: النوع | J1: القسم | K1: mine!A1
B2: 4646 | C2: 2020-01-21 | D2: 5000 | H2: 5000 | I2: كشف (6) | J2: محاسبة
A3: جان بول دوه جي | B3: 4647 | C3: 2020-01-21 | G3: 1000 | H3: 1000 | I3: استكمال رسوم | J3: اعلام
B4: 4648 | C4: 2020-01-22 | G4: 1400 | H4: 1400 | I4: استكمال رسوم | J4: ترجمة
B5: 4649 | C5: 2020-01-22 | G5: 500 | H5: 500 | I5: استكمال رسوم | J5: ترجمة
B6: 4650 | C6: 2020-01-22 | D6: 2000 | H6: 2000 | I6: كشف (1) | J6: ترجمة
B7: 4651 | C7: 2020-01-22 | D7: 2000 | H7: 2000 | I7: كشف (1) | J7: محاسبة
A8: كاترين سلطانه | B8: 4652 | C8: 2020-01-22 | D8: 2000 | H8: 2000 | I8: كشف (1) | J8: اعلام
B9: 4653 | C9: 2020-01-22 | E9: 100 | F9: 800 | H9: 900 | I9: رسم تسجيل | J9: ترجمة
B10: 4654 | C10: 2020-01-22 | D10: 5000 | H10: 5000 | I10: رسم شهادة | J10: ترجمة
B11: 4655 | C11: 2020-01-22 | E11: 100 | F11: 800 | H11: 900 | I11: رسم تسجيل | J11: ترجمة
B12: 4656 | C12: 2020-01-22 | E12: 100 | F12: 800 | H12: 900 | I12: رسم تسجيل | J12: ترجمة
B13: 4657 | C13: 2020-01-22 | G13: 1000 | H13: 1000 | I13: استكمال رسوم | J13: ادارة مشروعات
B14: 4658 | C14: 2020-01-22 | D14: 5000 | H14: 5000 | I14: كشف (6) | J14: ترجمة
B15: 4659 | C15: 2020-01-23 | D15: 2000 | H15: 2000 | I15: كشف (1) | J15: ادارة مشروعات
B16: 4660 | C16: 2020-01-23 | D16: 2000 | H16: 2000 | I16: كشف (1) | J16: محاسبة
B17: 4661 | C17: 2020-01-23 | E17: 100 | F17: 800 | H17: 900 | I17: رسم تسجيل | J17: ترجمة
A18: ناريمان خضور | B18: 4662 | C18: 2020-01-23 | G18: 500 | H18: 500 | I18: استكمال رسوم | J18: اعلام
B19: 4663 | C19: 2020-01-23 | D19: 5000 | H19: 5000 | I19: بدل ضائع مصدقة (1) | J19: معلم صف
B20: 4664 | C20: 2020-01-23 | D20: 5000 | H20: 5000 | I20: كشف (6) | J20: محاسبة
B21: 4665 | C21: 2020-01-23 | E21: 100 | F21: 800 | H21: 900 | I21: رسم تسجيل | J21: ترجمة
A22: احمد غانم | B22: 4666 | C22: 2020-01-23 | G22: 1000 | H22: 1000 | I22: استكمال رسوم | J22: اعلام
B23: 4667 | C23: 2020-01-23 | D23: 5000 | H23: 5000 | I23: رسم شهادة | J23: ترجمة
B24: 4668 | C24: 2020-01-23 | D24: 2000 | H24: 2000 | I24: كشف (1) | J24: ادارة مشروعات
B25: 4669 | C25: 2020-01-23 | D25: 200 | H25: 200 | I25: بدل ضائع بطاقة | J25: محاسبة
B26: 4670 | C26: 2020-01-23 | G26: 1000 | H26: 1000 | I26: استكمال رسوم | J26: ادارة مشروعات
B27: 4671 | C27: 2020-01-23 | G27: 1000 | H27: 1000 | I27: استكمال رسوم | J27: ادارة مشروعات
B28: 4672 | C28: 2020-01-23 | D28: 200 | H28: 200 | I28: بدل ضائع بطاقة | J28: ادارة مشروعات
B29: 4673 | C29: 2020-01-23 | G29: 600 | H29: 600 | I29: استكمال رسوم | J29: محاسبة
B30: 4674 | C30: 2020-01-26 | G30: 1500 | H30: 1500 | I30: استكمال رسوم | J30: ادارة مشروعات
B31: 4675 | C31: 2020-01-26 | D31: 5000 | H31: 5000 | I31: بدل ضائع مصدقة (1) | J31: رياض اطفال
B32: 4676 | C32: 2020-01-26 | E32: 100 | F32: 800 | H32: 900 | I32: رسم تسجيل | J32: ترجمة
B33: 4677 | C33: 2020-01-26 | D33: 5000 | H33: 5000 | I33: بدل ضائع مصدقة (1) | J33: رياض اطفال
B34: 4678 | C34: 2020-01-26 | G34: 3000 | H34: 3000 | I34: براءة ذمة | J34: ترجمة
B35: 4679 | C35: 2020-01-26 | D35: 2000 | H35: 2000 | I35: كشف (1) | J35: ادارة مشروعات
B36: 4680 | C36: 2020-01-26 | D36: 2000 | H36: 2000 | I36: كشف (1) | J36: ادارة مشروعات
B37: 4681 | C37: 2020-01-26 | G37: 1000 | H37: 1000 | I37: استكمال رسوم | J37: ترجمة
B38: 4682 | C38: 2020-01-26 | E38: 100 | F38: 800 | H38: 900 | I38: رسم تسجيل | J38: ترجمة
B39: 4683 | C39: 2020-01-26 | E39: 100 | F39: 800 | H39: 900 | I39: رسم تسجيل | J39: محاسبة
B40: 4684 | C40: 2020-01-26 | D40: 2000 | H40: 2000 | I40: كشف (1) | J40: ادارة مشروعات
A41: اصاله علي | B41: 4685 | C41: 2020-01-26 | D41: 2000 | H41: 2000 | I41: كشف (1) | J41: اعلام
B42: 4686 | C42: 2020-01-26 | G42: 1000 | H42: 1000 | I42: استكمال رسوم | J42: ادارة مشروعات
B43: 4687 | C43: 2020-01-26 | E43: 100 | F43: 800 | H43: 900 | I43: رسم تسجيل | J43: ترجمة
A44: ديانا رسوق | B44: 4688 | C44: 2020-01-26 | G44: 1000 | H44: 1000 | I44: براءة ذمة | J44: اعلام
B45: 4689 | C45: 2020-01-26 | D45: 2000 | H45: 2000 | I45: كشف (1) | J45: ترجمة
B46: 4690 | C46: 2020-01-27 | E46: 100 | F46: 800 | H46: 900 | I46: رسم تسجيل | J46: محاسبة
D47: =SUM(D2:D46) -> 62400 | E47: =SUM(E2:E46) -> 1000 | F47: =SUM(F2:F46) -> 8000 | G47: =SUM(G2:G46) -> 15500 | H47: =SUM(H2:H46) -> 86900

Sheet p51
A1: الاسم | B1: رقم ايصال | C1: تاريخ | D1: مختلفة | E1: تسليف | F1: رسم سنوي | G1: خدمات | H1: مجموع | I1: النوع | J1: القسم | K1: mine!A1
B2: 4691 | C2: 2020-01-27 | D2: 2000 | H2: 2000 | I2: كشف (1) | J2: ترجمة
A3: يامن حسن | B3: 4692 | C3: 2020-01-27 | G3: 1000 | H3: 1000 | I3: استكمال رسوم | J3: اعلام
A4: علاء الدين كرديه | B4: 4693 | C4: 2020-01-27 | D4: 2000 | H4: 2000 | I4: كشف (1) | J4: اعلام
B5: 4694 | C5: 2020-01-27 | G5: 1000 | H5: 1000 | I5: استكمال رسوم | J5: محاسبة
B6: 4695 | C6: 2020-01-27 | G6: 1000 | H6: 1000 | I6: استكمال رسوم | J6: ترجمة
B7: 4696 | C7: 2020-01-27 | E7: 100 | F7: 800 | H7: 900 | I7: رسم تسجيل | J7: ترجمة
B8: 4697 | C8: 2020-01-27 | D8: 200 | H8: 200 | I8: بدل ضائع بطاقة | J8: ترجمة
A9: دانيا دكاك | B9: 4698 | C9: 2020-01-27 | G9: 1300 | H9: 1300 | I9: استكمال رسوم | J9: اعلام
B10: 4699 | C10: 2020-01-27 | G10: 1000 | H10: 1000 | I10: استكمال رسوم | J10: ترجمة
B11: 4700 | C11: 2020-01-27 | G11: 1000 | H11: 1000 | I11: استكمال رسوم | J11: محاسبة
B12: 4701 | C12: 2020-01-28 | E12: 100 | F12: 800 | H12: 900 | I12: رسم تسجيل | J12: ادارة مشروعات
B13: 4702 | C13: 2020-01-28 | D13: 200 | H13: 200 | I13: بدل ضائع بطاقة | J13: ترجمة
B14: 4703 | C14: 2020-01-28 | E14: 100 | F14: 800 | H14: 900 | I14: رسم تسجيل | J14: محاسبة
B15: 4704 | C15: 2020-01-28 | D15: 5000 | H15: 5000 | I15: كشف (6) | J15: محاسبة
A16: داليا مزيك | B16: 4705 | C16: 2020-01-28 | D16: 2000 | H16: 2000 | I16: كشف (1) | J16: اعلام
B17: 4706 | C17: 2020-01-28 | E17: 100 | F17: 800 | H17: 900 | I17: رسم تسجيل | J17: ادارة مشروعات
B18: 4707 | C18: 2020-01-28 | D18: 200 | H18: 200 | I18: بدل ضائع بطاقة | J18: محاسبة
A19: محمد قاسم احمد | B19: 4708 | C19: 2020-01-28 | G19: 1000 | H19: 1000 | I19: استكمال رسوم | J19: اعلام
B20: 4709 | C20: 2020-01-28 | D20: 2000 | H20: 2000 | I20: كشف (1) | J20: ترجمة
B21: 4710 | C21: 2020-01-28 | D21: 2000 | H21: 2000 | I21: كشف (1) | J21: ادارة مشروعات
A22: محمد فارس السقا | B22: 4711 | C22: 2020-01-28 | D22: 5000 | H22: 5000 | I22: كشف (6) | J22: اعلام
B23: 4712 | C23: 2020-01-29 | D23: 5000 | H23: 5000 | I23: مصدقة تخرج بديلة | J23: معلم صف
B24: 4713 | C24: 2020-01-29 | E24: 100 | F24: 800 | H24: 900 | I24: رسم تسجيل | J24: ادارة مشروعات
B25: 4714 | C25: 2020-01-29 | E25: 100 | F25: 800 | H25: 900 | I25: رسم تسجيل | J25: ترجمة
A26: هناء العلبي | B26: 4715 | C26: 2020-01-29 | G26: 1300 | H26: 1300 | I26: استكمال رسوم | J26: اعلام
B27: 4716 | C27: 2020-01-29 | G27: 1000 | H27: 1000 | I27: استكمال رسوم | J27: محاسبة
B28: 4717 | C28: 2020-01-29 | D28: 2000 | H28: 2000 | I28: كشف (1) | J28: ادارة مشروعات
A29: جولي اصطفان | B29: 4718 | C29: 2020-01-29 | D29: 200 | H29: 200 | I29: بدل ضائع بطاقة | J29: اعلام
B30: 4719 | C30: 2020-01-29 | D30: 2000 | H30: 2000 | I30: كشف (1) | J30: ترجمة
B31: 4720 | C31: 2020-01-29 | D31: 2000 | H31: 2000 | I31: كشف (1) | J31: ادارة مشروعات
B32: 4721 | C32: 2020-01-29 | E32: 100 | F32: 800 | H32: 900 | I32: رسم تسجيل | J32: محاسبة
A33: سوار محمد علي | B33: 4722 | C33: 2020-01-29 | D33: 2000 | H33: 2000 | I33: كشف (1) | J33: اعلام
A34: وئام ديوب | B34: 4723 | C34: 2020-01-29 | E34: 100 | F34: 800 | H34: 900 | I34: رسم تسجيل | J34: اعلام
A35: نور عباس | B35: 4724 | C35: 2020-01-29 | G35: 1000 | H35: 1000 | I35: استكمال رسوم | J35: اعلام
A36: اسراء جوعانه | B36: 4725 | C36: 2020-01-29 | D36: 200 | H36: 200 | I36: بدل ضائع بطاقة | J36: اعلام
B37: 4726 | C37: 2020-01-29 | D37: 2000 | H37: 2000 | I37: كشف (1) | J37: محاسبة
B38: 4727 | C38: 2020-01-29 | G38: 1000 | H38: 1000 | I38: استكمال رسوم | J38: محاسبة
B39: 4728 | C39: 2020-01-29 | D39: 5000 | H39: 5000 | I39: كشف (6) | J39: محاسبة
B40: 4729 | C40: 2020-01-29 | D40: 2000 | H40: 2000 | I40: كشف (1) | J40: ادارة مشروعات
A41: مسره الصبان | B41: 4730 | C41: 2020-01-29 | D41: 5000 | H41: 5000 | I41: كشف (6) | J41: اعلام
A42: نور حسن | B42: 4731 | C42: 2020-01-30 | G42: 1000 | H42: 1000 | I42: استكمال رسوم | J42: اعلام
B43: 4732 | C43: 2020-01-30 | E43: 100 | F43: 800 | H43: 900 | I43: رسم تسجيل | J43: ترجمة
B44: 4733 | C44: 2020-01-30 | G44: 1900 | H44: 1900 | I44: استكمال رسوم | J44: ادارة مشروعات
B45: 4734 | C45: 2020-01-30 | E45: 100 | F45: 800 | H45: 900 | I45: رسم تسجيل | J45: محاسبة
B46: 4735 | C46: 2020-01-30 | E46: 100 | F46: 800 | H46: 900 | I46: رسم تسجيل | J46: ترجمة
D47: =SUM(D2:D46) -> 48000 | E47: =SUM(E2:E46) -> 1100 | F47: =SUM(F2:F46) -> 8800 | G47: =SUM(G2:G46) -> 14500 | H47: =SUM(H2:H46) -> 72400

Sheet p52
A1: الاسم | B1: رقم ايصال | C1: تاريخ | D1: مختلفة | E1: تسليف | F1: رسم سنوي | G1: خدمات | H1: مجموع | I1: النوع | J1: القسم | K1: mine!A1
A2: محمد قره دامور | B2: 4736 | C2: 2020-01-30 | G2: 1000 | H2: 1000 | I2: استكمال رسوم | J2: اعلام
A3: ساره موسى | B3: 4737 | C3: 2020-01-30 | G3: 1000 | H3: 1000 | I3: استكمال رسوم | J3: اعلام
B4: 4738 | C4: 2020-01-30 | D4: 2000 | H4: 2000 | I4: كشف (1) | J4: محاسبة
A5: مهند ابو علي | B5: 4739 | C5: 2020-01-30 | G5: 1000 | H5: 1000 | I5: استكمال رسوم | J5: اعلام
A6: عبير حسن | B6: 4740 | C6: 2020-01-30 | G6: 1000 | H6: 1000 | I6: استكمال رسوم | J6: اعلام
A7: ديما عبيد | B7: 4741 | C7: 2020-01-30 | E7: 100 | F7: 800 | H7: 900 | I7: رسم تسجيل | J7: اعلام
B8: 4742 | C8: 2020-01-30 | E8: 100 | F8: 800 | H8: 900 | I8: رسم تسجيل | J8: محاسبة
B9: 4743 | C9: 2020-01-30 | D9: 2000 | H9: 2000 | I9: كشف (1) | J9: ترجمة
B10: 4744 | C10: 2020-01-30 | D10: 5000 | H10: 5000 | I10: رسم شهادة | J10: محاسبة
A11: انس عكاري | B11: 4745 | C11: 2020-01-30 | G11: 1500 | H11: 1500 | I11: استكمال رسوم | J11: اعلام
B12: 4746 | C12: 2020-01-30 | E12: 100 | F12: 800 | H12: 900 | I12: رسم تسجيل | J12: ادارة مشروعات
B13: 4747 | C13: 2020-02-02 | G13: 200 | H13: 200 | I13: براءة ذمة | J13: محاسبة
B14: 4748 | C14: 2020-02-02 | E14: 100 | F14: 800 | H14: 900 | I14: رسم تسجيل | J14: محاسبة
B15: 4749 | C15: 2020-02-02 | E15: 100 | F15: 800 | H15: 900 | I15: رسم تسجيل | J15: ترجمة
B16: 4750 | C16: 2020-02-02 | D16: 2000 | H16: 2000 | I16: كشف (1) | J16: محاسبة
B17: 4751 | C17: 2020-02-02 | E17: 100 | F17: 800 | H17: 900 | I17: رسم تسجيل | J17: ترجمة
B18: 4752 | C18: 2020-02-02 | D18: 5000 | H18: 5000 | I18: كشف (6) | J18: محاسبة
B19: 4753 | C19: 2020-02-02 | D19: 2000 | H19: 2000 | I19: كشف (1) | J19: محاسبة
B20: 4754 | C20: 2020-02-03 | D20: 2000 | H20: 2000 | I20: كشف (1) | J20: ادارة مشروعات
D47: =SUM(D2:D46) -> 20000 | E47: =SUM(E2:E46) -> 600 | F47: =SUM(F2:F46) -> 4800 | G47: =SUM(G2:G46) -> 5700 | H47: =SUM(H2:H46) -> 31100
